{"text_format":"1","workbook":"xlsx","n_sheets":11,"sheets":["Menu","Clientes","Produtos","Vendas","Relatório","Instruções","BDClientes","BDProdutos","BDVendas","BDMovEstoque","Tab"],"not_rendered":{"charts":6,"images":22,"macros":1,"external_links":0,"defined_names":3,"comments":0,"pivot_tables":6},"unopened":[],"bounds":{"document_bytes":16777216,"sheet_cells":100000,"rows_first":2000,"rows_last":500,"rows_between":2000,"halvings":0,"cell_chars":16384,"cell_head_chars":4096},"cells_cut":0,"cells_raw":0,"read":"whole","date_system":"1900"}

{"sheet":"Menu","index":0,"n_rows":26,"n_cols":7,"rows_kept":26,"cut":false,"hidden":false,"merged":[[25,4,25,5],[25,6,25,14]]}
[]
[]
[]
[]
[]
[]
[]
[]
[]
[]
[]
[]
[]
[]
[]
[]
[]
[]
[]
[]
[]
[]
[]
[]
[]
[null,null,null,null,"Empresa:",null,"Empresa ABCDE"]

{"sheet":"Clientes","index":1,"n_rows":19,"n_cols":4,"rows_kept":19,"cut":false,"hidden":false,"merged":[[14,2,14,7],[16,2,16,7],[18,2,18,3],[10,1,10,10]]}
[]
[]
[]
[]
[]
[]
[]
[]
[]
[]
[null,"CADASTRO DE CLIENTES\nCadastre os clientes da sua empresa."]
[]
[null,"Código:",null,"Campo Automático. Não é necessário preencher. "]
[]
[null,"Nome:"]
[]
[null,"Endereço:"]
[]
[null,"Telefone:"]

{"sheet":"Produtos","index":2,"n_rows":25,"n_cols":12,"rows_kept":25,"cut":false,"hidden":false,"merged":[[10,1,10,10],[20,2,20,7],[24,2,24,3],[18,3,18,4],[13,11,14,13],[15,11,16,13],[18,9,20,13],[14,2,14,7],[12,11,12,13],[16,2,16,4]]}
[]
[]
[]
[]
[]
[]
[]
[]
[]
[]
[null,"CADASTRO DE PRODUTOS\nCadastre os produtos da sua empresa."]
[]
[null,"Código:",null,"Campo Automático. Não é necessário preencher. ",null,null,null,null,null,null,null,"ESTOQUE ATUAL"]
[null,null,null,null,null,null,null,null,null,null,null,{"$f":"IFERROR(VLOOKUP(C13,BDProdutos!A:F,6,0),\"\")","v":""}]
[null,"Descrição:"]
[null,null,null,null,null,null,null,null,null,null,null,{"$f":"IFERROR(L14*C17,\"\")","v":""}]
[null,"Valor:"]
[]
[null,"Estoque Mínimo:",null,null,null,null,null,null,null,{"$f":"IF(L14<D19,\"O estoque atual é menor que o estoque mínimo\",\"\")","v":""}]
[]
[null,"Fornecedor:"]
[]
[]
[]
[null,"Quantidade:"]

{"sheet":"Vendas","index":3,"n_rows":68,"n_cols":14,"rows_kept":68,"cut":false,"hidden":false,"merged":[[60,13,60,14],[61,13,61,14],[62,13,62,14],[63,13,63,14],[64,13,64,14],[65,13,65,14],[66,13,66,14],[67,13,67,14],[51,13,51,14],[52,13,52,14],[53,13,53,14],[54,13,54,14],[55,13,55,14],[56,13,56,14],[57,13,57,14],[58,13,58,14],[59,13,59,14],[42,13,42,14],[43,13,43,14],[44,13,44,14],[45,13,45,14],[46,13,46,14],[47,13,47,14],[48,13,48,14],[49,13,49,14],[50,13,50,14],[33,13,33,14],[34,13,34,14],[35,13,35,14],[36,13,36,14],[37,13,37,14],[38,13,38,14],[39,13,39,14],[40,13,40,14],[41,13,41,14],[24,13,24,14],[25,13,25,14],[26,13,26,14],[27,13,27,14],[28,13,28,14],[29,13,29,14],[30,13,30,14],[31,13,31,14],[32,13,32,14],[10,1,10,10],[16,13,16,14],[17,13,17,14],[18,13,18,14],[19,13,19,14],[20,13,20,14],[21,13,21,14],[22,13,22,14],[23,13,23,14],[67,11,67,12],[64,11,64,12],[65,11,65,12],[66,11,66,12],[18,1,18,4],[59,1,59,4],[60,1,60,4],[63,1,63,4],[64,1,64,4],[61,1,61,4],[62,1,62,4],[64,5,64,9],[65,5,65,9],[66,5,66,9],[65,1,65,4],[66,1,66,4],[63,11,63,12],[18,5,18,9],[59,5,59,9],[60,5,60,9],[61,5,61,9],[62,5,62,9],[63,5,63,9],[18,11,18,12],[59,11,59,12],[60,11,60,12],[61,11,61,12],[14,2,14,5],[16,5,16,9],[16,11,16,12],[17,5,17,9],[12,3,12,7],[17,11,17,12],[16,1,16,4],[17,1,17,4],[24,11,24,12],[29,1,29,4],[29,5,29,9],[29,11,29,12],[30,1,30,4],[30,5,30,9],[30,11,30,12],[27,1,27,4],[27,5,27,9],[27,11,27,12],[28,1,28,4],[28,5,28,9],[28,11,28,12],[62,11,62,12],[21,1,21,4],[21,5,21,9],[21,11,21,12],[22,1,22,4],[22,5,22,9],[22,11,22,12],[19,1,19,4],[19,5,19,9],[19,11,19,12],[20,1,20,4],[20,5,20,9],[20,11,20,12],[25,1,25,4],[25,5,25,9],[25,11,25,12],[26,1,26,4],[26,5,26,9],[26,11,26,12],[23,1,23,4],[23,5,23,9],[23,11,23,12],[24,1,24,4],[24,5,24,9],[33,1,33,4],[33,5,33,9],[33,11,33,12],[34,1,34,4],[34,5,34,9],[34,11,34,12],[31,1,31,4],[31,5,31,9],[31,11,31,12],[32,1,32,4],[32,5,32,9],[32,11,32,12],[37,1,37,4],[37,5,37,9],[37,11,37,12],[38,1,38,4],[38,5,38,9],[38,11,38,12],[35,1,35,4],[35,5,35,9],[35,11,35,12],[36,1,36,4],[36,5,36,9],[36,11,36,12],[41,1,41,4],[41,5,41,9],[41,11,41,12],[42,1,42,4],[42,5,42,9],[42,11,42,12],[39,1,39,4],[39,5,39,9],[39,11,39,12],[40,1,40,4],[40,5,40,9],[40,11,40,12],[45,1,45,4],[45,5,45,9],[45,11,45,12],[46,1,46,4],[46,5,46,9],[46,11,46,12],[43,1,43,4],[43,5,43,9],[43,11,43,12],[44,1,44,4],[44,5,44,9],[44,11,44,12],[49,1,49,4],[49,5,49,9],[49,11,49,12],[50,1,50,4],[50,5,50,9],[50,11,50,12],[47,1,47,4],[47,5,47,9],[47,11,47,12],[48,1,48,4],[48,5,48,9],[48,11,48,12],[53,1,53,4],[53,5,53,9],[53,11,53,12],[54,1,54,4],[54,5,54,9],[54,11,54,12],[51,1,51,4],[51,5,51,9],[51,11,51,12],[52,1,52,4],[52,5,52,9],[52,11,52,12],[57,1,57,4],[57,5,57,9],[57,11,57,12],[58,1,58,4],[58,5,58,9],[58,11,58,12],[55,1,55,4],[55,5,55,9],[55,11,55,12],[56,1,56,4],[56,5,56,9],[56,11,56,12]]}
[]
[]
[]
[]
[]
[]
[]
[]
[]
[]
[null,"CADASTRO DE VENDAS\nCadastre as saídas dos produtos."]
[]
[null,"Cliente:",null,{"$f":"IFERROR(VLOOKUP(C13,BDClientes!A:B,2,0),\"\")","v":""}]
[]
[null,"Produto:"]
[]
[null,"Código Produto",null,null,null,"Descrição do Produto",null,null,null,null,"Qtde","Valor Unitário",null,"Subtotal"]
[null,null,null,null,null,{"$f":"IFERROR(INDEX(BDProdutos!A:H,MATCH(Vendas!B18,BDProdutos!A:A,0),2),\"\")","v":""},null,null,null,null,null,{"$f":"IFERROR(INDEX(BDProdutos!A:H,MATCH(Vendas!B18,BDProdutos!A:A,0),3),\"\")","v":""},null,{"$f":"IFERROR(K18*L18,\"\")","v":""}]
[null,null,null,null,null,{"$f":"IFERROR(INDEX(BDProdutos!A:H,MATCH(Vendas!B19,BDProdutos!A:A,0),2),\"\")","v":""},null,null,null,null,null,{"$f":"IFERROR(INDEX(BDProdutos!A:H,MATCH(Vendas!B19,BDProdutos!A:A,0),3),\"\")","v":""},null,{"$f":"IFERROR(K19*L19,\"\")","v":""}]
[null,null,null,null,null,{"$f":"IFERROR(INDEX(BDProdutos!A:H,MATCH(Vendas!B20,BDProdutos!A:A,0),2),\"\")","v":""},null,null,null,null,null,{"$f":"IFERROR(INDEX(BDProdutos!A:H,MATCH(Vendas!B20,BDProdutos!A:A,0),3),\"\")","v":""},null,""]
[null,null,null,null,null,{"$f":"IFERROR(INDEX(BDProdutos!A:H,MATCH(Vendas!B21,BDProdutos!A:A,0),2),\"\")","v":""},null,null,null,null,null,{"$f":"IFERROR(INDEX(BDProdutos!A:H,MATCH(Vendas!B21,BDProdutos!A:A,0),3),\"\")","v":""},null,""]
[null,null,null,null,null,{"$f":"IFERROR(INDEX(BDProdutos!A:H,MATCH(Vendas!B22,BDProdutos!A:A,0),2),\"\")","v":""},null,null,null,null,null,{"$f":"IFERROR(INDEX(BDProdutos!A:H,MATCH(Vendas!B22,BDProdutos!A:A,0),3),\"\")","v":""},null,""]
[null,null,null,null,null,{"$f":"IFERROR(INDEX(BDProdutos!A:H,MATCH(Vendas!B23,BDProdutos!A:A,0),2),\"\")","v":""},null,null,null,null,null,{"$f":"IFERROR(INDEX(BDProdutos!A:H,MATCH(Vendas!B23,BDProdutos!A:A,0),3),\"\")","v":""},null,""]
[null,null,null,null,null,{"$f":"IFERROR(INDEX(BDProdutos!A:H,MATCH(Vendas!B24,BDProdutos!A:A,0),2),\"\")","v":""},null,null,null,null,null,{"$f":"IFERROR(INDEX(BDProdutos!A:H,MATCH(Vendas!B24,BDProdutos!A:A,0),3),\"\")","v":""},null,""]
[null,null,null,null,null,{"$f":"IFERROR(INDEX(BDProdutos!A:H,MATCH(Vendas!B25,BDProdutos!A:A,0),2),\"\")","v":""},null,null,null,null,null,{"$f":"IFERROR(INDEX(BDProdutos!A:H,MATCH(Vendas!B25,BDProdutos!A:A,0),3),\"\")","v":""},null,""]
[null,null,null,null,null,{"$f":"IFERROR(INDEX(BDProdutos!A:H,MATCH(Vendas!B26,BDProdutos!A:A,0),2),\"\")","v":""},null,null,null,null,null,{"$f":"IFERROR(INDEX(BDProdutos!A:H,MATCH(Vendas!B26,BDProdutos!A:A,0),3),\"\")","v":""},null,""]
[null,null,null,null,null,{"$f":"IFERROR(INDEX(BDProdutos!A:H,MATCH(Vendas!B27,BDProdutos!A:A,0),2),\"\")","v":""},null,null,null,null,null,{"$f":"IFERROR(INDEX(BDProdutos!A:H,MATCH(Vendas!B27,BDProdutos!A:A,0),3),\"\")","v":""},null,""]
[null,null,null,null,null,{"$f":"IFERROR(INDEX(BDProdutos!A:H,MATCH(Vendas!B28,BDProdutos!A:A,0),2),\"\")","v":""},null,null,null,null,null,{"$f":"IFERROR(INDEX(BDProdutos!A:H,MATCH(Vendas!B28,BDProdutos!A:A,0),3),\"\")","v":""},null,""]
[null,null,null,null,null,{"$f":"IFERROR(INDEX(BDProdutos!A:H,MATCH(Vendas!B29,BDProdutos!A:A,0),2),\"\")","v":""},null,null,null,null,null,{"$f":"IFERROR(INDEX(BDProdutos!A:H,MATCH(Vendas!B29,BDProdutos!A:A,0),3),\"\")","v":""},null,""]
[null,null,null,null,null,{"$f":"IFERROR(INDEX(BDProdutos!A:H,MATCH(Vendas!B30,BDProdutos!A:A,0),2),\"\")","v":""},null,null,null,null,null,{"$f":"IFERROR(INDEX(BDProdutos!A:H,MATCH(Vendas!B30,BDProdutos!A:A,0),3),\"\")","v":""},null,""]
[null,null,null,null,null,{"$f":"IFERROR(INDEX(BDProdutos!A:H,MATCH(Vendas!B31,BDProdutos!A:A,0),2),\"\")","v":""},null,null,null,null,null,{"$f":"IFERROR(INDEX(BDProdutos!A:H,MATCH(Vendas!B31,BDProdutos!A:A,0),3),\"\")","v":""},null,""]
[null,null,null,null,null,{"$f":"IFERROR(INDEX(BDProdutos!A:H,MATCH(Vendas!B32,BDProdutos!A:A,0),2),\"\")","v":""},null,null,null,null,null,{"$f":"IFERROR(INDEX(BDProdutos!A:H,MATCH(Vendas!B32,BDProdutos!A:A,0),3),\"\")","v":""},null,""]
[null,null,null,null,null,{"$f":"IFERROR(INDEX(BDProdutos!A:H,MATCH(Vendas!B33,BDProdutos!A:A,0),2),\"\")","v":""},null,null,null,null,null,{"$f":"IFERROR(INDEX(BDProdutos!A:H,MATCH(Vendas!B33,BDProdutos!A:A,0),3),\"\")","v":""},null,""]
[null,null,null,null,null,{"$f":"IFERROR(INDEX(BDProdutos!A:H,MATCH(Vendas!B34,BDProdutos!A:A,0),2),\"\")","v":""},null,null,null,null,null,{"$f":"IFERROR(INDEX(BDProdutos!A:H,MATCH(Vendas!B34,BDProdutos!A:A,0),3),\"\")","v":""},null,""]
[null,null,null,null,null,{"$f":"IFERROR(INDEX(BDProdutos!A:H,MATCH(Vendas!B35,BDProdutos!A:A,0),2),\"\")","v":""},null,null,null,null,null,{"$f":"IFERROR(INDEX(BDProdutos!A:H,MATCH(Vendas!B35,BDProdutos!A:A,0),3),\"\")","v":""},null,""]
[null,null,null,null,null,{"$f":"IFERROR(INDEX(BDProdutos!A:H,MATCH(Vendas!B36,BDProdutos!A:A,0),2),\"\")","v":""},null,null,null,null,null,{"$f":"IFERROR(INDEX(BDProdutos!A:H,MATCH(Vendas!B36,BDProdutos!A:A,0),3),\"\")","v":""},null,""]
[null,null,null,null,null,{"$f":"IFERROR(INDEX(BDProdutos!A:H,MATCH(Vendas!B37,BDProdutos!A:A,0),2),\"\")","v":""},null,null,null,null,null,{"$f":"IFERROR(INDEX(BDProdutos!A:H,MATCH(Vendas!B37,BDProdutos!A:A,0),3),\"\")","v":""},null,""]
[null,null,null,null,null,{"$f":"IFERROR(INDEX(BDProdutos!A:H,MATCH(Vendas!B38,BDProdutos!A:A,0),2),\"\")","v":""},null,null,null,null,null,{"$f":"IFERROR(INDEX(BDProdutos!A:H,MATCH(Vendas!B38,BDProdutos!A:A,0),3),\"\")","v":""},null,""]
[null,null,null,null,null,{"$f":"IFERROR(INDEX(BDProdutos!A:H,MATCH(Vendas!B39,BDProdutos!A:A,0),2),\"\")","v":""},null,null,null,null,null,{"$f":"IFERROR(INDEX(BDProdutos!A:H,MATCH(Vendas!B39,BDProdutos!A:A,0),3),\"\")","v":""},null,""]
[null,null,null,null,null,{"$f":"IFERROR(INDEX(BDProdutos!A:H,MATCH(Vendas!B40,BDProdutos!A:A,0),2),\"\")","v":""},null,null,null,null,null,{"$f":"IFERROR(INDEX(BDProdutos!A:H,MATCH(Vendas!B40,BDProdutos!A:A,0),3),\"\")","v":""},null,""]
[null,null,null,null,null,{"$f":"IFERROR(INDEX(BDProdutos!A:H,MATCH(Vendas!B41,BDProdutos!A:A,0),2),\"\")","v":""},null,null,null,null,null,{"$f":"IFERROR(INDEX(BDProdutos!A:H,MATCH(Vendas!B41,BDProdutos!A:A,0),3),\"\")","v":""},null,""]
[null,null,null,null,null,{"$f":"IFERROR(INDEX(BDProdutos!A:H,MATCH(Vendas!B42,BDProdutos!A:A,0),2),\"\")","v":""},null,null,null,null,null,{"$f":"IFERROR(INDEX(BDProdutos!A:H,MATCH(Vendas!B42,BDProdutos!A:A,0),3),\"\")","v":""},null,""]
[null,null,null,null,null,{"$f":"IFERROR(INDEX(BDProdutos!A:H,MATCH(Vendas!B43,BDProdutos!A:A,0),2),\"\")","v":""},null,null,null,null,null,{"$f":"IFERROR(INDEX(BDProdutos!A:H,MATCH(Vendas!B43,BDProdutos!A:A,0),3),\"\")","v":""},null,""]
[null,null,null,null,null,{"$f":"IFERROR(INDEX(BDProdutos!A:H,MATCH(Vendas!B44,BDProdutos!A:A,0),2),\"\")","v":""},null,null,null,null,null,{"$f":"IFERROR(INDEX(BDProdutos!A:H,MATCH(Vendas!B44,BDProdutos!A:A,0),3),\"\")","v":""},null,""]
[null,null,null,null,null,{"$f":"IFERROR(INDEX(BDProdutos!A:H,MATCH(Vendas!B45,BDProdutos!A:A,0),2),\"\")","v":""},null,null,null,null,null,{"$f":"IFERROR(INDEX(BDProdutos!A:H,MATCH(Vendas!B45,BDProdutos!A:A,0),3),\"\")","v":""},null,""]
[null,null,null,null,null,{"$f":"IFERROR(INDEX(BDProdutos!A:H,MATCH(Vendas!B46,BDProdutos!A:A,0),2),\"\")","v":""},null,null,null,null,null,{"$f":"IFERROR(INDEX(BDProdutos!A:H,MATCH(Vendas!B46,BDProdutos!A:A,0),3),\"\")","v":""},null,""]
[null,null,null,null,null,{"$f":"IFERROR(INDEX(BDProdutos!A:H,MATCH(Vendas!B47,BDProdutos!A:A,0),2),\"\")","v":""},null,null,null,null,null,{"$f":"IFERROR(INDEX(BDProdutos!A:H,MATCH(Vendas!B47,BDProdutos!A:A,0),3),\"\")","v":""},null,""]
[null,null,null,null,null,{"$f":"IFERROR(INDEX(BDProdutos!A:H,MATCH(Vendas!B48,BDProdutos!A:A,0),2),\"\")","v":""},null,null,null,null,null,{"$f":"IFERROR(INDEX(BDProdutos!A:H,MATCH(Vendas!B48,BDProdutos!A:A,0),3),\"\")","v":""},null,""]
[null,null,null,null,null,{"$f":"IFERROR(INDEX(BDProdutos!A:H,MATCH(Vendas!B49,BDProdutos!A:A,0),2),\"\")","v":""},null,null,null,null,null,{"$f":"IFERROR(INDEX(BDProdutos!A:H,MATCH(Vendas!B49,BDProdutos!A:A,0),3),\"\")","v":""},null,""]
[null,null,null,null,null,{"$f":"IFERROR(INDEX(BDProdutos!A:H,MATCH(Vendas!B50,BDProdutos!A:A,0),2),\"\")","v":""},null,null,null,null,null,{"$f":"IFERROR(INDEX(BDProdutos!A:H,MATCH(Vendas!B50,BDProdutos!A:A,0),3),\"\")","v":""},null,""]
[null,null,null,null,null,{"$f":"IFERROR(INDEX(BDProdutos!A:H,MATCH(Vendas!B51,BDProdutos!A:A,0),2),\"\")","v":""},null,null,null,null,null,{"$f":"IFERROR(INDEX(BDProdutos!A:H,MATCH(Vendas!B51,BDProdutos!A:A,0),3),\"\")","v":""},null,""]
[null,null,null,null,null,{"$f":"IFERROR(INDEX(BDProdutos!A:H,MATCH(Vendas!B52,BDProdutos!A:A,0),2),\"\")","v":""},null,null,null,null,null,{"$f":"IFERROR(INDEX(BDProdutos!A:H,MATCH(Vendas!B52,BDProdutos!A:A,0),3),\"\")","v":""},null,""]
[null,null,null,null,null,{"$f":"IFERROR(INDEX(BDProdutos!A:H,MATCH(Vendas!B53,BDProdutos!A:A,0),2),\"\")","v":""},null,null,null,null,null,{"$f":"IFERROR(INDEX(BDProdutos!A:H,MATCH(Vendas!B53,BDProdutos!A:A,0),3),\"\")","v":""},null,""]
[null,null,null,null,null,{"$f":"IFERROR(INDEX(BDProdutos!A:H,MATCH(Vendas!B54,BDProdutos!A:A,0),2),\"\")","v":""},null,null,null,null,null,{"$f":"IFERROR(INDEX(BDProdutos!A:H,MATCH(Vendas!B54,BDProdutos!A:A,0),3),\"\")","v":""},null,""]
[null,null,null,null,null,{"$f":"IFERROR(INDEX(BDProdutos!A:H,MATCH(Vendas!B55,BDProdutos!A:A,0),2),\"\")","v":""},null,null,null,null,null,{"$f":"IFERROR(INDEX(BDProdutos!A:H,MATCH(Vendas!B55,BDProdutos!A:A,0),3),\"\")","v":""},null,""]
[null,null,null,null,null,{"$f":"IFERROR(INDEX(BDProdutos!A:H,MATCH(Vendas!B56,BDProdutos!A:A,0),2),\"\")","v":""},null,null,null,null,null,{"$f":"IFERROR(INDEX(BDProdutos!A:H,MATCH(Vendas!B56,BDProdutos!A:A,0),3),\"\")","v":""},null,""]
[null,null,null,null,null,{"$f":"IFERROR(INDEX(BDProdutos!A:H,MATCH(Vendas!B57,BDProdutos!A:A,0),2),\"\")","v":""},null,null,null,null,null,{"$f":"IFERROR(INDEX(BDProdutos!A:H,MATCH(Vendas!B57,BDProdutos!A:A,0),3),\"\")","v":""},null,""]
[null,null,null,null,null,{"$f":"IFERROR(INDEX(BDProdutos!A:H,MATCH(Vendas!B58,BDProdutos!A:A,0),2),\"\")","v":""},null,null,null,null,null,{"$f":"IFERROR(INDEX(BDProdutos!A:H,MATCH(Vendas!B58,BDProdutos!A:A,0),3),\"\")","v":""},null,""]
[null,null,null,null,null,{"$f":"IFERROR(INDEX(BDProdutos!A:H,MATCH(Vendas!B59,BDProdutos!A:A,0),2),\"\")","v":""},null,null,null,null,null,{"$f":"IFERROR(INDEX(BDProdutos!A:H,MATCH(Vendas!B59,BDProdutos!A:A,0),3),\"\")","v":""},null,""]
[null,null,null,null,null,{"$f":"IFERROR(INDEX(BDProdutos!A:H,MATCH(Vendas!B60,BDProdutos!A:A,0),2),\"\")","v":""},null,null,null,null,null,{"$f":"IFERROR(INDEX(BDProdutos!A:H,MATCH(Vendas!B60,BDProdutos!A:A,0),3),\"\")","v":""},null,""]
[null,null,null,null,null,{"$f":"IFERROR(INDEX(BDProdutos!A:H,MATCH(Vendas!B61,BDProdutos!A:A,0),2),\"\")","v":""},null,null,null,null,null,{"$f":"IFERROR(INDEX(BDProdutos!A:H,MATCH(Vendas!B61,BDProdutos!A:A,0),3),\"\")","v":""},null,""]
[null,null,null,null,null,{"$f":"IFERROR(INDEX(BDProdutos!A:H,MATCH(Vendas!B62,BDProdutos!A:A,0),2),\"\")","v":""},null,null,null,null,null,{"$f":"IFERROR(INDEX(BDProdutos!A:H,MATCH(Vendas!B62,BDProdutos!A:A,0),3),\"\")","v":""},null,""]
[null,null,null,null,null,{"$f":"IFERROR(INDEX(BDProdutos!A:H,MATCH(Vendas!B63,BDProdutos!A:A,0),2),\"\")","v":""},null,null,null,null,null,{"$f":"IFERROR(INDEX(BDProdutos!A:H,MATCH(Vendas!B63,BDProdutos!A:A,0),3),\"\")","v":""},null,""]
[null,null,null,null,null,{"$f":"IFERROR(INDEX(BDProdutos!A:H,MATCH(Vendas!B64,BDProdutos!A:A,0),2),\"\")","v":""},null,null,null,null,null,{"$f":"IFERROR(INDEX(BDProdutos!A:H,MATCH(Vendas!B64,BDProdutos!A:A,0),3),\"\")","v":""},null,""]
[null,null,null,null,null,{"$f":"IFERROR(INDEX(BDProdutos!A:H,MATCH(Vendas!B65,BDProdutos!A:A,0),2),\"\")","v":""},null,null,null,null,null,{"$f":"IFERROR(INDEX(BDProdutos!A:H,MATCH(Vendas!B65,BDProdutos!A:A,0),3),\"\")","v":""},null,""]
[null,null,null,null,null,{"$f":"IFERROR(INDEX(BDProdutos!A:H,MATCH(Vendas!B66,BDProdutos!A:A,0),2),\"\")","v":""},null,null,null,null,null,{"$f":"IFERROR(INDEX(BDProdutos!A:H,MATCH(Vendas!B66,BDProdutos!A:A,0),3),\"\")","v":""},null,""]
[null,null,null,null,null,{"$f":"IFERROR(INDEX(BDProdutos!A:H,MATCH(Vendas!B67,BDProdutos!A:A,0),2),\"\")","v":""},null,null,null,null,null,{"$f":"IFERROR(INDEX(BDProdutos!A:H,MATCH(Vendas!B67,BDProdutos!A:A,0),3),\"\")","v":""},null,""]
[null,null,null,null,null,null,null,null,null,"Total:",{"$f":"SUM(K18:K67)","v":0},null,null,{"$f":"SUM(N18:O67)","v":0}]

{"sheet":"Relatório","index":4,"n_rows":0,"n_cols":0,"rows_kept":0,"cut":false,"hidden":false,"merged":[]}

{"sheet":"Instruções","index":5,"n_rows":0,"n_cols":0,"rows_kept":0,"cut":false,"hidden":false,"merged":[]}

{"sheet":"BDClientes","index":6,"n_rows":1000,"n_cols":4,"rows_kept":1000,"cut":false,"hidden":false,"merged":[]}
["Código","Nome","Endereço","Telefone"]
[1,"Cliente A","Avenida Brasil",123456789]
[2]
[3]
[4]
[5]
[6]
[7]
[8]
[9]
[10]
[11]
[12]
[13]
[14]
[15]
[16]
[17]
[18]
[19]
[20]
[21]
[22]
[23]
[24]
[25]
[26]
[27]
[28]
[29]
[30]
[31]
[32]
[33]
[34]
[35]
[36]
[37]
[38]
[39]
[40]
[41]
[42]
[43]
[44]
[45]
[46]
[47]
[48]
[49]
[50]
[51]
[52]
[53]
[54]
[55]
[56]
[57]
[58]
[59]
[60]
[61]
[62]
[63]
[64]
[65]
[66]
[67]
[68]
[69]
[70]
[71]
[72]
[73]
[74]
[75]
[76]
[77]
[78]
[79]
[80]
[81]
[82]
[83]
[84]
[85]
[86]
[87]
[88]
[89]
[90]
[91]
[92]
[93]
[94]
[95]
[96]
[97]
[98]
[99]
[100]
[101]
[102]
[103]
[104]
[105]
[106]
[107]
[108]
[109]
[110]
[111]
[112]
[113]
[114]
[115]
[116]
[117]
[118]
[119]
[120]
[121]
[122]
[123]
[124]
[125]
[126]
[127]
[128]
[129]
[130]
[131]
[132]
[133]
[134]
[135]
[136]
[137]
[138]
[139]
[140]
[141]
[142]
[143]
[144]
[145]
[146]
[147]
[148]
[149]
[150]
[151]
[152]
[153]
[154]
[155]
[156]
[157]
[158]
[159]
[160]
[161]
[162]
[163]
[164]
[165]
[166]
[167]
[168]
[169]
[170]
[171]
[172]
[173]
[174]
[175]
[176]
[177]
[178]
[179]
[180]
[181]
[182]
[183]
[184]
[185]
[186]
[187]
[188]
[189]
[190]
[191]
[192]
[193]
[194]
[195]
[196]
[197]
[198]
[199]
[200]
[201]
[202]
[203]
[204]
[205]
[206]
[207]
[208]
[209]
[210]
[211]
[212]
[213]
[214]
[215]
[216]
[217]
[218]
[219]
[220]
[221]
[222]
[223]
[224]
[225]
[226]
[227]
[228]
[229]
[230]
[231]
[232]
[233]
[234]
[235]
[236]
[237]
[238]
[239]
[240]
[241]
[242]
[243]
[244]
[245]
[246]
[247]
[248]
[249]
[250]
[251]
[252]
[253]
[254]
[255]
[256]
[257]
[258]
[259]
[260]
[261]
[262]
[263]
[264]
[265]
[266]
[267]
[268]
[269]
[270]
[271]
[272]
[273]
[274]
[275]
[276]
[277]
[278]
[279]
[280]
[281]
[282]
[283]
[284]
[285]
[286]
[287]
[288]
[289]
[290]
[291]
[292]
[293]
[294]
[295]
[296]
[297]
[298]
[299]
[300]
[301]
[302]
[303]
[304]
[305]
[306]
[307]
[308]
[309]
[310]
[311]
[312]
[313]
[314]
[315]
[316]
[317]
[318]
[319]
[320]
[321]
[322]
[323]
[324]
[325]
[326]
[327]
[328]
[329]
[330]
[331]
[332]
[333]
[334]
[335]
[336]
[337]
[338]
[339]
[340]
[341]
[342]
[343]
[344]
[345]
[346]
[347]
[348]
[349]
[350]
[351]
[352]
[353]
[354]
[355]
[356]
[357]
[358]
[359]
[360]
[361]
[362]
[363]
[364]
[365]
[366]
[367]
[368]
[369]
[370]
[371]
[372]
[373]
[374]
[375]
[376]
[377]
[378]
[379]
[380]
[381]
[382]
[383]
[384]
[385]
[386]
[387]
[388]
[389]
[390]
[391]
[392]
[393]
[394]
[395]
[396]
[397]
[398]
[399]
[400]
[401]
[402]
[403]
[404]
[405]
[406]
[407]
[408]
[409]
[410]
[411]
[412]
[413]
[414]
[415]
[416]
[417]
[418]
[419]
[420]
[421]
[422]
[423]
[424]
[425]
[426]
[427]
[428]
[429]
[430]
[431]
[432]
[433]
[434]
[435]
[436]
[437]
[438]
[439]
[440]
[441]
[442]
[443]
[444]
[445]
[446]
[447]
[448]
[449]
[450]
[451]
[452]
[453]
[454]
[455]
[456]
[457]
[458]
[459]
[460]
[461]
[462]
[463]
[464]
[465]
[466]
[467]
[468]
[469]
[470]
[471]
[472]
[473]
[474]
[475]
[476]
[477]
[478]
[479]
[480]
[481]
[482]
[483]
[484]
[485]
[486]
[487]
[488]
[489]
[490]
[491]
[492]
[493]
[494]
[495]
[496]
[497]
[498]
[499]
[500]
[501]
[502]
[503]
[504]
[505]
[506]
[507]
[508]
[509]
[510]
[511]
[512]
[513]
[514]
[515]
[516]
[517]
[518]
[519]
[520]
[521]
[522]
[523]
[524]
[525]
[526]
[527]
[528]
[529]
[530]
[531]
[532]
[533]
[534]
[535]
[536]
[537]
[538]
[539]
[540]
[541]
[542]
[543]
[544]
[545]
[546]
[547]
[548]
[549]
[550]
[551]
[552]
[553]
[554]
[555]
[556]
[557]
[558]
[559]
[560]
[561]
[562]
[563]
[564]
[565]
[566]
[567]
[568]
[569]
[570]
[571]
[572]
[573]
[574]
[575]
[576]
[577]
[578]
[579]
[580]
[581]
[582]
[583]
[584]
[585]
[586]
[587]
[588]
[589]
[590]
[591]
[592]
[593]
[594]
[595]
[596]
[597]
[598]
[599]
[600]
[601]
[602]
[603]
[604]
[605]
[606]
[607]
[608]
[609]
[610]
[611]
[612]
[613]
[614]
[615]
[616]
[617]
[618]
[619]
[620]
[621]
[622]
[623]
[624]
[625]
[626]
[627]
[628]
[629]
[630]
[631]
[632]
[633]
[634]
[635]
[636]
[637]
[638]
[639]
[640]
[641]
[642]
[643]
[644]
[645]
[646]
[647]
[648]
[649]
[650]
[651]
[652]
[653]
[654]
[655]
[656]
[657]
[658]
[659]
[660]
[661]
[662]
[663]
[664]
[665]
[666]
[667]
[668]
[669]
[670]
[671]
[672]
[673]
[674]
[675]
[676]
[677]
[678]
[679]
[680]
[681]
[682]
[683]
[684]
[685]
[686]
[687]
[688]
[689]
[690]
[691]
[692]
[693]
[694]
[695]
[696]
[697]
[698]
[699]
[700]
[701]
[702]
[703]
[704]
[705]
[706]
[707]
[708]
[709]
[710]
[711]
[712]
[713]
[714]
[715]
[716]
[717]
[718]
[719]
[720]
[721]
[722]
[723]
[724]
[725]
[726]
[727]
[728]
[729]
[730]
[731]
[732]
[733]
[734]
[735]
[736]
[737]
[738]
[739]
[740]
[741]
[742]
[743]
[744]
[745]
[746]
[747]
[748]
[749]
[750]
[751]
[752]
[753]
[754]
[755]
[756]
[757]
[758]
[759]
[760]
[761]
[762]
[763]
[764]
[765]
[766]
[767]
[768]
[769]
[770]
[771]
[772]
[773]
[774]
[775]
[776]
[777]
[778]
[779]
[780]
[781]
[782]
[783]
[784]
[785]
[786]
[787]
[788]
[789]
[790]
[791]
[792]
[793]
[794]
[795]
[796]
[797]
[798]
[799]
[800]
[801]
[802]
[803]
[804]
[805]
[806]
[807]
[808]
[809]
[810]
[811]
[812]
[813]
[814]
[815]
[816]
[817]
[818]
[819]
[820]
[821]
[822]
[823]
[824]
[825]
[826]
[827]
[828]
[829]
[830]
[831]
[832]
[833]
[834]
[835]
[836]
[837]
[838]
[839]
[840]
[841]
[842]
[843]
[844]
[845]
[846]
[847]
[848]
[849]
[850]
[851]
[852]
[853]
[854]
[855]
[856]
[857]
[858]
[859]
[860]
[861]
[862]
[863]
[864]
[865]
[866]
[867]
[868]
[869]
[870]
[871]
[872]
[873]
[874]
[875]
[876]
[877]
[878]
[879]
[880]
[881]
[882]
[883]
[884]
[885]
[886]
[887]
[888]
[889]
[890]
[891]
[892]
[893]
[894]
[895]
[896]
[897]
[898]
[899]
[900]
[901]
[902]
[903]
[904]
[905]
[906]
[907]
[908]
[909]
[910]
[911]
[912]
[913]
[914]
[915]
[916]
[917]
[918]
[919]
[920]
[921]
[922]
[923]
[924]
[925]
[926]
[927]
[928]
[929]
[930]
[931]
[932]
[933]
[934]
[935]
[936]
[937]
[938]
[939]
[940]
[941]
[942]
[943]
[944]
[945]
[946]
[947]
[948]
[949]
[950]
[951]
[952]
[953]
[954]
[955]
[956]
[957]
[958]
[959]
[960]
[961]
[962]
[963]
[964]
[965]
[966]
[967]
[968]
[969]
[970]
[971]
[972]
[973]
[974]
[975]
[976]
[977]
[978]
[979]
[980]
[981]
[982]
[983]
[984]
[985]
[986]
[987]
[988]
[989]
[990]
[991]
[992]
[993]
[994]
[995]
[996]
[997]
[998]
[999]

{"sheet":"BDProdutos","index":7,"n_rows":501,"n_cols":8,"rows_kept":501,"cut":false,"hidden":false,"merged":[]}
["Código","Descrição","Valor","Estoque Mínimo","Fornecedor","Saldo Estoque","Estoque Crítico","Saldo Estoque R$"]
[1,"Produto 1",50,30,"Fornecedor ABC",{"$f":"SUMIFS(BDMovEstoque!C:C,BDMovEstoque!A:A,Tabela3[[#This Row],[Código]],BDMovEstoque!G:G,\"Entrada\")-SUMIFS(BDMovEstoque!C:C,BDMovEstoque!A:A,Tabela3[[#This Row],[Código]],BDMovEstoque!G:G,\"Saída\")","v":80},{"$f":"IF(Tabela3[[#This Row],[Saldo Estoque]]<Tabela3[[#This Row],[Estoque Mínimo]],\"Sim\",\"\")","v":""},{"$f":"Tabela3[[#This Row],[Saldo Estoque]]*Tabela3[[#This Row],[Valor]]","v":4000}]
[2,"Produto 2",10,20,"Fornecedor ABC",{"$f":"SUMIFS(BDMovEstoque!C:C,BDMovEstoque!A:A,Tabela3[[#This Row],[Código]],BDMovEstoque!G:G,\"Entrada\")-SUMIFS(BDMovEstoque!C:C,BDMovEstoque!A:A,Tabela3[[#This Row],[Código]],BDMovEstoque!G:G,\"Saída\")","v":10},{"$f":"IF(Tabela3[[#This Row],[Saldo Estoque]]<Tabela3[[#This Row],[Estoque Mínimo]],\"Sim\",\"\")","v":"Sim"},{"$f":"Tabela3[[#This Row],[Saldo Estoque]]*Tabela3[[#This Row],[Valor]]","v":100}]
[3,"Produto 3",15,50,"Fornecedor ABC",{"$f":"SUMIFS(BDMovEstoque!C:C,BDMovEstoque!A:A,Tabela3[[#This Row],[Código]],BDMovEstoque!G:G,\"Entrada\")-SUMIFS(BDMovEstoque!C:C,BDMovEstoque!A:A,Tabela3[[#This Row],[Código]],BDMovEstoque!G:G,\"Saída\")","v":0},{"$f":"IF(Tabela3[[#This Row],[Saldo Estoque]]<Tabela3[[#This Row],[Estoque Mínimo]],\"Sim\",\"\")","v":"Sim"},{"$f":"Tabela3[[#This Row],[Saldo Estoque]]*Tabela3[[#This Row],[Valor]]","v":0}]
[4,"Produto 4",100,5,"Fornecedor ABC",{"$f":"SUMIFS(BDMovEstoque!C:C,BDMovEstoque!A:A,Tabela3[[#This Row],[Código]],BDMovEstoque!G:G,\"Entrada\")-SUMIFS(BDMovEstoque!C:C,BDMovEstoque!A:A,Tabela3[[#This Row],[Código]],BDMovEstoque!G:G,\"Saída\")","v":0},{"$f":"IF(Tabela3[[#This Row],[Saldo Estoque]]<Tabela3[[#This Row],[Estoque Mínimo]],\"Sim\",\"\")","v":"Sim"},{"$f":"Tabela3[[#This Row],[Saldo Estoque]]*Tabela3[[#This Row],[Valor]]","v":0}]
[5,"Produto 5",30,2,"Fornecedor ABC",{"$f":"SUMIFS(BDMovEstoque!C:C,BDMovEstoque!A:A,Tabela3[[#This Row],[Código]],BDMovEstoque!G:G,\"Entrada\")-SUMIFS(BDMovEstoque!C:C,BDMovEstoque!A:A,Tabela3[[#This Row],[Código]],BDMovEstoque!G:G,\"Saída\")","v":0},{"$f":"IF(Tabela3[[#This Row],[Saldo Estoque]]<Tabela3[[#This Row],[Estoque Mínimo]],\"Sim\",\"\")","v":"Sim"},{"$f":"Tabela3[[#This Row],[Saldo Estoque]]*Tabela3[[#This Row],[Valor]]","v":0}]
[6,"Produto 6",25,2,"Fornecedor ABC",{"$f":"SUMIFS(BDMovEstoque!C:C,BDMovEstoque!A:A,Tabela3[[#This Row],[Código]],BDMovEstoque!G:G,\"Entrada\")-SUMIFS(BDMovEstoque!C:C,BDMovEstoque!A:A,Tabela3[[#This Row],[Código]],BDMovEstoque!G:G,\"Saída\")","v":0},{"$f":"IF(Tabela3[[#This Row],[Saldo Estoque]]<Tabela3[[#This Row],[Estoque Mínimo]],\"Sim\",\"\")","v":"Sim"},{"$f":"Tabela3[[#This Row],[Saldo Estoque]]*Tabela3[[#This Row],[Valor]]","v":0}]
[7,null,null,null,null,{"$f":"SUMIFS(BDMovEstoque!C:C,BDMovEstoque!A:A,Tabela3[[#This Row],[Código]],BDMovEstoque!G:G,\"Entrada\")-SUMIFS(BDMovEstoque!C:C,BDMovEstoque!A:A,Tabela3[[#This Row],[Código]],BDMovEstoque!G:G,\"Saída\")","v":0},{"$f":"IF(Tabela3[[#This Row],[Saldo Estoque]]<Tabela3[[#This Row],[Estoque Mínimo]],\"Sim\",\"\")","v":""},{"$f":"Tabela3[[#This Row],[Saldo Estoque]]*Tabela3[[#This Row],[Valor]]","v":0}]
[8,null,null,null,null,{"$f":"SUMIFS(BDMovEstoque!C:C,BDMovEstoque!A:A,Tabela3[[#This Row],[Código]],BDMovEstoque!G:G,\"Entrada\")-SUMIFS(BDMovEstoque!C:C,BDMovEstoque!A:A,Tabela3[[#This Row],[Código]],BDMovEstoque!G:G,\"Saída\")","v":0},{"$f":"IF(Tabela3[[#This Row],[Saldo Estoque]]<Tabela3[[#This Row],[Estoque Mínimo]],\"Sim\",\"\")","v":""},{"$f":"Tabela3[[#This Row],[Saldo Estoque]]*Tabela3[[#This Row],[Valor]]","v":0}]
[9,null,null,null,null,{"$f":"SUMIFS(BDMovEstoque!C:C,BDMovEstoque!A:A,Tabela3[[#This Row],[Código]],BDMovEstoque!G:G,\"Entrada\")-SUMIFS(BDMovEstoque!C:C,BDMovEstoque!A:A,Tabela3[[#This Row],[Código]],BDMovEstoque!G:G,\"Saída\")","v":0},{"$f":"IF(Tabela3[[#This Row],[Saldo Estoque]]<Tabela3[[#This Row],[Estoque Mínimo]],\"Sim\",\"\")","v":""},{"$f":"Tabela3[[#This Row],[Saldo Estoque]]*Tabela3[[#This Row],[Valor]]","v":0}]
[10,null,null,null,null,{"$f":"SUMIFS(BDMovEstoque!C:C,BDMovEstoque!A:A,Tabela3[[#This Row],[Código]],BDMovEstoque!G:G,\"Entrada\")-SUMIFS(BDMovEstoque!C:C,BDMovEstoque!A:A,Tabela3[[#This Row],[Código]],BDMovEstoque!G:G,\"Saída\")","v":0},{"$f":"IF(Tabela3[[#This Row],[Saldo Estoque]]<Tabela3[[#This Row],[Estoque Mínimo]],\"Sim\",\"\")","v":""},{"$f":"Tabela3[[#This Row],[Saldo Estoque]]*Tabela3[[#This Row],[Valor]]","v":0}]
[11,null,null,null,null,{"$f":"SUMIFS(BDMovEstoque!C:C,BDMovEstoque!A:A,Tabela3[[#This Row],[Código]],BDMovEstoque!G:G,\"Entrada\")-SUMIFS(BDMovEstoque!C:C,BDMovEstoque!A:A,Tabela3[[#This Row],[Código]],BDMovEstoque!G:G,\"Saída\")","v":0},{"$f":"IF(Tabela3[[#This Row],[Saldo Estoque]]<Tabela3[[#This Row],[Estoque Mínimo]],\"Sim\",\"\")","v":""},{"$f":"Tabela3[[#This Row],[Saldo Estoque]]*Tabela3[[#This Row],[Valor]]","v":0}]
[12,null,null,null,null,{"$f":"SUMIFS(BDMovEstoque!C:C,BDMovEstoque!A:A,Tabela3[[#This Row],[Código]],BDMovEstoque!G:G,\"Entrada\")-SUMIFS(BDMovEstoque!C:C,BDMovEstoque!A:A,Tabela3[[#This Row],[Código]],BDMovEstoque!G:G,\"Saída\")","v":0},{"$f":"IF(Tabela3[[#This Row],[Saldo Estoque]]<Tabela3[[#This Row],[Estoque Mínimo]],\"Sim\",\"\")","v":""},{"$f":"Tabela3[[#This Row],[Saldo Estoque]]*Tabela3[[#This Row],[Valor]]","v":0}]
[13,null,null,null,null,{"$f":"SUMIFS(BDMovEstoque!C:C,BDMovEstoque!A:A,Tabela3[[#This Row],[Código]],BDMovEstoque!G:G,\"Entrada\")-SUMIFS(BDMovEstoque!C:C,BDMovEstoque!A:A,Tabela3[[#This Row],[Código]],BDMovEstoque!G:G,\"Saída\")","v":0},{"$f":"IF(Tabela3[[#This Row],[Saldo Estoque]]<Tabela3[[#This Row],[Estoque Mínimo]],\"Sim\",\"\")","v":""},{"$f":"Tabela3[[#This Row],[Saldo Estoque]]*Tabela3[[#This Row],[Valor]]","v":0}]
[14,null,null,null,null,{"$f":"SUMIFS(BDMovEstoque!C:C,BDMovEstoque!A:A,Tabela3[[#This Row],[Código]],BDMovEstoque!G:G,\"Entrada\")-SUMIFS(BDMovEstoque!C:C,BDMovEstoque!A:A,Tabela3[[#This Row],[Código]],BDMovEstoque!G:G,\"Saída\")","v":0},{"$f":"IF(Tabela3[[#This Row],[Saldo Estoque]]<Tabela3[[#This Row],[Estoque Mínimo]],\"Sim\",\"\")","v":""},{"$f":"Tabela3[[#This Row],[Saldo Estoque]]*Tabela3[[#This Row],[Valor]]","v":0}]
[15,null,null,null,null,{"$f":"SUMIFS(BDMovEstoque!C:C,BDMovEstoque!A:A,Tabela3[[#This Row],[Código]],BDMovEstoque!G:G,\"Entrada\")-SUMIFS(BDMovEstoque!C:C,BDMovEstoque!A:A,Tabela3[[#This Row],[Código]],BDMovEstoque!G:G,\"Saída\")","v":0},{"$f":"IF(Tabela3[[#This Row],[Saldo Estoque]]<Tabela3[[#This Row],[Estoque Mínimo]],\"Sim\",\"\")","v":""},{"$f":"Tabela3[[#This Row],[Saldo Estoque]]*Tabela3[[#This Row],[Valor]]","v":0}]
[16,null,null,null,null,{"$f":"SUMIFS(BDMovEstoque!C:C,BDMovEstoque!A:A,Tabela3[[#This Row],[Código]],BDMovEstoque!G:G,\"Entrada\")-SUMIFS(BDMovEstoque!C:C,BDMovEstoque!A:A,Tabela3[[#This Row],[Código]],BDMovEstoque!G:G,\"Saída\")","v":0},{"$f":"IF(Tabela3[[#This Row],[Saldo Estoque]]<Tabela3[[#This Row],[Estoque Mínimo]],\"Sim\",\"\")","v":""},{"$f":"Tabela3[[#This Row],[Saldo Estoque]]*Tabela3[[#This Row],[Valor]]","v":0}]
[17,null,null,null,null,{"$f":"SUMIFS(BDMovEstoque!C:C,BDMovEstoque!A:A,Tabela3[[#This Row],[Código]],BDMovEstoque!G:G,\"Entrada\")-SUMIFS(BDMovEstoque!C:C,BDMovEstoque!A:A,Tabela3[[#This Row],[Código]],BDMovEstoque!G:G,\"Saída\")","v":0},{"$f":"IF(Tabela3[[#This Row],[Saldo Estoque]]<Tabela3[[#This Row],[Estoque Mínimo]],\"Sim\",\"\")","v":""},{"$f":"Tabela3[[#This Row],[Saldo Estoque]]*Tabela3[[#This Row],[Valor]]","v":0}]
[18,null,null,null,null,{"$f":"SUMIFS(BDMovEstoque!C:C,BDMovEstoque!A:A,Tabela3[[#This Row],[Código]],BDMovEstoque!G:G,\"Entrada\")-SUMIFS(BDMovEstoque!C:C,BDMovEstoque!A:A,Tabela3[[#This Row],[Código]],BDMovEstoque!G:G,\"Saída\")","v":0},{"$f":"IF(Tabela3[[#This Row],[Saldo Estoque]]<Tabela3[[#This Row],[Estoque Mínimo]],\"Sim\",\"\")","v":""},{"$f":"Tabela3[[#This Row],[Saldo Estoque]]*Tabela3[[#This Row],[Valor]]","v":0}]
[19,null,null,null,null,{"$f":"SUMIFS(BDMovEstoque!C:C,BDMovEstoque!A:A,Tabela3[[#This Row],[Código]],BDMovEstoque!G:G,\"Entrada\")-SUMIFS(BDMovEstoque!C:C,BDMovEstoque!A:A,Tabela3[[#This Row],[Código]],BDMovEstoque!G:G,\"Saída\")","v":0},{"$f":"IF(Tabela3[[#This Row],[Saldo Estoque]]<Tabela3[[#This Row],[Estoque Mínimo]],\"Sim\",\"\")","v":""},{"$f":"Tabela3[[#This Row],[Saldo Estoque]]*Tabela3[[#This Row],[Valor]]","v":0}]
[20,null,null,null,null,{"$f":"SUMIFS(BDMovEstoque!C:C,BDMovEstoque!A:A,Tabela3[[#This Row],[Código]],BDMovEstoque!G:G,\"Entrada\")-SUMIFS(BDMovEstoque!C:C,BDMovEstoque!A:A,Tabela3[[#This Row],[Código]],BDMovEstoque!G:G,\"Saída\")","v":0},{"$f":"IF(Tabela3[[#This Row],[Saldo Estoque]]<Tabela3[[#This Row],[Estoque Mínimo]],\"Sim\",\"\")","v":""},{"$f":"Tabela3[[#This Row],[Saldo Estoque]]*Tabela3[[#This Row],[Valor]]","v":0}]
[21,null,null,null,null,{"$f":"SUMIFS(BDMovEstoque!C:C,BDMovEstoque!A:A,Tabela3[[#This Row],[Código]],BDMovEstoque!G:G,\"Entrada\")-SUMIFS(BDMovEstoque!C:C,BDMovEstoque!A:A,Tabela3[[#This Row],[Código]],BDMovEstoque!G:G,\"Saída\")","v":0},{"$f":"IF(Tabela3[[#This Row],[Saldo Estoque]]<Tabela3[[#This Row],[Estoque Mínimo]],\"Sim\",\"\")","v":""},{"$f":"Tabela3[[#This Row],[Saldo Estoque]]*Tabela3[[#This Row],[Valor]]","v":0}]
[22,null,null,null,null,{"$f":"SUMIFS(BDMovEstoque!C:C,BDMovEstoque!A:A,Tabela3[[#This Row],[Código]],BDMovEstoque!G:G,\"Entrada\")-SUMIFS(BDMovEstoque!C:C,BDMovEstoque!A:A,Tabela3[[#This Row],[Código]],BDMovEstoque!G:G,\"Saída\")","v":0},{"$f":"IF(Tabela3[[#This Row],[Saldo Estoque]]<Tabela3[[#This Row],[Estoque Mínimo]],\"Sim\",\"\")","v":""},{"$f":"Tabela3[[#This Row],[Saldo Estoque]]*Tabela3[[#This Row],[Valor]]","v":0}]
[23,null,null,null,null,{"$f":"SUMIFS(BDMovEstoque!C:C,BDMovEstoque!A:A,Tabela3[[#This Row],[Código]],BDMovEstoque!G:G,\"Entrada\")-SUMIFS(BDMovEstoque!C:C,BDMovEstoque!A:A,Tabela3[[#This Row],[Código]],BDMovEstoque!G:G,\"Saída\")","v":0},{"$f":"IF(Tabela3[[#This Row],[Saldo Estoque]]<Tabela3[[#This Row],[Estoque Mínimo]],\"Sim\",\"\")","v":""},{"$f":"Tabela3[[#This Row],[Saldo Estoque]]*Tabela3[[#This Row],[Valor]]","v":0}]
[24,null,null,null,null,{"$f":"SUMIFS(BDMovEstoque!C:C,BDMovEstoque!A:A,Tabela3[[#This Row],[Código]],BDMovEstoque!G:G,\"Entrada\")-SUMIFS(BDMovEstoque!C:C,BDMovEstoque!A:A,Tabela3[[#This Row],[Código]],BDMovEstoque!G:G,\"Saída\")","v":0},{"$f":"IF(Tabela3[[#This Row],[Saldo Estoque]]<Tabela3[[#This Row],[Estoque Mínimo]],\"Sim\",\"\")","v":""},{"$f":"Tabela3[[#This Row],[Saldo Estoque]]*Tabela3[[#This Row],[Valor]]","v":0}]
[25,null,null,null,null,{"$f":"SUMIFS(BDMovEstoque!C:C,BDMovEstoque!A:A,Tabela3[[#This Row],[Código]],BDMovEstoque!G:G,\"Entrada\")-SUMIFS(BDMovEstoque!C:C,BDMovEstoque!A:A,Tabela3[[#This Row],[Código]],BDMovEstoque!G:G,\"Saída\")","v":0},{"$f":"IF(Tabela3[[#This Row],[Saldo Estoque]]<Tabela3[[#This Row],[Estoque Mínimo]],\"Sim\",\"\")","v":""},{"$f":"Tabela3[[#This Row],[Saldo Estoque]]*Tabela3[[#This Row],[Valor]]","v":0}]
[26,null,null,null,null,{"$f":"SUMIFS(BDMovEstoque!C:C,BDMovEstoque!A:A,Tabela3[[#This Row],[Código]],BDMovEstoque!G:G,\"Entrada\")-SUMIFS(BDMovEstoque!C:C,BDMovEstoque!A:A,Tabela3[[#This Row],[Código]],BDMovEstoque!G:G,\"Saída\")","v":0},{"$f":"IF(Tabela3[[#This Row],[Saldo Estoque]]<Tabela3[[#This Row],[Estoque Mínimo]],\"Sim\",\"\")","v":""},{"$f":"Tabela3[[#This Row],[Saldo Estoque]]*Tabela3[[#This Row],[Valor]]","v":0}]
[27,null,null,null,null,{"$f":"SUMIFS(BDMovEstoque!C:C,BDMovEstoque!A:A,Tabela3[[#This Row],[Código]],BDMovEstoque!G:G,\"Entrada\")-SUMIFS(BDMovEstoque!C:C,BDMovEstoque!A:A,Tabela3[[#This Row],[Código]],BDMovEstoque!G:G,\"Saída\")","v":0},{"$f":"IF(Tabela3[[#This Row],[Saldo Estoque]]<Tabela3[[#This Row],[Estoque Mínimo]],\"Sim\",\"\")","v":""},{"$f":"Tabela3[[#This Row],[Saldo Estoque]]*Tabela3[[#This Row],[Valor]]","v":0}]
[28,null,null,null,null,{"$f":"SUMIFS(BDMovEstoque!C:C,BDMovEstoque!A:A,Tabela3[[#This Row],[Código]],BDMovEstoque!G:G,\"Entrada\")-SUMIFS(BDMovEstoque!C:C,BDMovEstoque!A:A,Tabela3[[#This Row],[Código]],BDMovEstoque!G:G,\"Saída\")","v":0},{"$f":"IF(Tabela3[[#This Row],[Saldo Estoque]]<Tabela3[[#This Row],[Estoque Mínimo]],\"Sim\",\"\")","v":""},{"$f":"Tabela3[[#This Row],[Saldo Estoque]]*Tabela3[[#This Row],[Valor]]","v":0}]
[29,null,null,null,null,{"$f":"SUMIFS(BDMovEstoque!C:C,BDMovEstoque!A:A,Tabela3[[#This Row],[Código]],BDMovEstoque!G:G,\"Entrada\")-SUMIFS(BDMovEstoque!C:C,BDMovEstoque!A:A,Tabela3[[#This Row],[Código]],BDMovEstoque!G:G,\"Saída\")","v":0},{"$f":"IF(Tabela3[[#This Row],[Saldo Estoque]]<Tabela3[[#This Row],[Estoque Mínimo]],\"Sim\",\"\")","v":""},{"$f":"Tabela3[[#This Row],[Saldo Estoque]]*Tabela3[[#This Row],[Valor]]","v":0}]
[30,null,null,null,null,{"$f":"SUMIFS(BDMovEstoque!C:C,BDMovEstoque!A:A,Tabela3[[#This Row],[Código]],BDMovEstoque!G:G,\"Entrada\")-SUMIFS(BDMovEstoque!C:C,BDMovEstoque!A:A,Tabela3[[#This Row],[Código]],BDMovEstoque!G:G,\"Saída\")","v":0},{"$f":"IF(Tabela3[[#This Row],[Saldo Estoque]]<Tabela3[[#This Row],[Estoque Mínimo]],\"Sim\",\"\")","v":""},{"$f":"Tabela3[[#This Row],[Saldo Estoque]]*Tabela3[[#This Row],[Valor]]","v":0}]
[31,null,null,null,null,{"$f":"SUMIFS(BDMovEstoque!C:C,BDMovEstoque!A:A,Tabela3[[#This Row],[Código]],BDMovEstoque!G:G,\"Entrada\")-SUMIFS(BDMovEstoque!C:C,BDMovEstoque!A:A,Tabela3[[#This Row],[Código]],BDMovEstoque!G:G,\"Saída\")","v":0},{"$f":"IF(Tabela3[[#This Row],[Saldo Estoque]]<Tabela3[[#This Row],[Estoque Mínimo]],\"Sim\",\"\")","v":""},{"$f":"Tabela3[[#This Row],[Saldo Estoque]]*Tabela3[[#This Row],[Valor]]","v":0}]
[32,null,null,null,null,{"$f":"SUMIFS(BDMovEstoque!C:C,BDMovEstoque!A:A,Tabela3[[#This Row],[Código]],BDMovEstoque!G:G,\"Entrada\")-SUMIFS(BDMovEstoque!C:C,BDMovEstoque!A:A,Tabela3[[#This Row],[Código]],BDMovEstoque!G:G,\"Saída\")","v":0},{"$f":"IF(Tabela3[[#This Row],[Saldo Estoque]]<Tabela3[[#This Row],[Estoque Mínimo]],\"Sim\",\"\")","v":""},{"$f":"Tabela3[[#This Row],[Saldo Estoque]]*Tabela3[[#This Row],[Valor]]","v":0}]
[33,null,null,null,null,{"$f":"SUMIFS(BDMovEstoque!C:C,BDMovEstoque!A:A,Tabela3[[#This Row],[Código]],BDMovEstoque!G:G,\"Entrada\")-SUMIFS(BDMovEstoque!C:C,BDMovEstoque!A:A,Tabela3[[#This Row],[Código]],BDMovEstoque!G:G,\"Saída\")","v":0},{"$f":"IF(Tabela3[[#This Row],[Saldo Estoque]]<Tabela3[[#This Row],[Estoque Mínimo]],\"Sim\",\"\")","v":""},{"$f":"Tabela3[[#This Row],[Saldo Estoque]]*Tabela3[[#This Row],[Valor]]","v":0}]
[34,null,null,null,null,{"$f":"SUMIFS(BDMovEstoque!C:C,BDMovEstoque!A:A,Tabela3[[#This Row],[Código]],BDMovEstoque!G:G,\"Entrada\")-SUMIFS(BDMovEstoque!C:C,BDMovEstoque!A:A,Tabela3[[#This Row],[Código]],BDMovEstoque!G:G,\"Saída\")","v":0},{"$f":"IF(Tabela3[[#This Row],[Saldo Estoque]]<Tabela3[[#This Row],[Estoque Mínimo]],\"Sim\",\"\")","v":""},{"$f":"Tabela3[[#This Row],[Saldo Estoque]]*Tabela3[[#This Row],[Valor]]","v":0}]
[35,null,null,null,null,{"$f":"SUMIFS(BDMovEstoque!C:C,BDMovEstoque!A:A,Tabela3[[#This Row],[Código]],BDMovEstoque!G:G,\"Entrada\")-SUMIFS(BDMovEstoque!C:C,BDMovEstoque!A:A,Tabela3[[#This Row],[Código]],BDMovEstoque!G:G,\"Saída\")","v":0},{"$f":"IF(Tabela3[[#This Row],[Saldo Estoque]]<Tabela3[[#This Row],[Estoque Mínimo]],\"Sim\",\"\")","v":""},{"$f":"Tabela3[[#This Row],[Saldo Estoque]]*Tabela3[[#This Row],[Valor]]","v":0}]
[36,null,null,null,null,{"$f":"SUMIFS(BDMovEstoque!C:C,BDMovEstoque!A:A,Tabela3[[#This Row],[Código]],BDMovEstoque!G:G,\"Entrada\")-SUMIFS(BDMovEstoque!C:C,BDMovEstoque!A:A,Tabela3[[#This Row],[Código]],BDMovEstoque!G:G,\"Saída\")","v":0},{"$f":"IF(Tabela3[[#This Row],[Saldo Estoque]]<Tabela3[[#This Row],[Estoque Mínimo]],\"Sim\",\"\")","v":""},{"$f":"Tabela3[[#This Row],[Saldo Estoque]]*Tabela3[[#This Row],[Valor]]","v":0}]
[37,null,null,null,null,{"$f":"SUMIFS(BDMovEstoque!C:C,BDMovEstoque!A:A,Tabela3[[#This Row],[Código]],BDMovEstoque!G:G,\"Entrada\")-SUMIFS(BDMovEstoque!C:C,BDMovEstoque!A:A,Tabela3[[#This Row],[Código]],BDMovEstoque!G:G,\"Saída\")","v":0},{"$f":"IF(Tabela3[[#This Row],[Saldo Estoque]]<Tabela3[[#This Row],[Estoque Mínimo]],\"Sim\",\"\")","v":""},{"$f":"Tabela3[[#This Row],[Saldo Estoque]]*Tabela3[[#This Row],[Valor]]","v":0}]
[38,null,null,null,null,{"$f":"SUMIFS(BDMovEstoque!C:C,BDMovEstoque!A:A,Tabela3[[#This Row],[Código]],BDMovEstoque!G:G,\"Entrada\")-SUMIFS(BDMovEstoque!C:C,BDMovEstoque!A:A,Tabela3[[#This Row],[Código]],BDMovEstoque!G:G,\"Saída\")","v":0},{"$f":"IF(Tabela3[[#This Row],[Saldo Estoque]]<Tabela3[[#This Row],[Estoque Mínimo]],\"Sim\",\"\")","v":""},{"$f":"Tabela3[[#This Row],[Saldo Estoque]]*Tabela3[[#This Row],[Valor]]","v":0}]
[39,null,null,null,null,{"$f":"SUMIFS(BDMovEstoque!C:C,BDMovEstoque!A:A,Tabela3[[#This Row],[Código]],BDMovEstoque!G:G,\"Entrada\")-SUMIFS(BDMovEstoque!C:C,BDMovEstoque!A:A,Tabela3[[#This Row],[Código]],BDMovEstoque!G:G,\"Saída\")","v":0},{"$f":"IF(Tabela3[[#This Row],[Saldo Estoque]]<Tabela3[[#This Row],[Estoque Mínimo]],\"Sim\",\"\")","v":""},{"$f":"Tabela3[[#This Row],[Saldo Estoque]]*Tabela3[[#This Row],[Valor]]","v":0}]
[40,null,null,null,null,{"$f":"SUMIFS(BDMovEstoque!C:C,BDMovEstoque!A:A,Tabela3[[#This Row],[Código]],BDMovEstoque!G:G,\"Entrada\")-SUMIFS(BDMovEstoque!C:C,BDMovEstoque!A:A,Tabela3[[#This Row],[Código]],BDMovEstoque!G:G,\"Saída\")","v":0},{"$f":"IF(Tabela3[[#This Row],[Saldo Estoque]]<Tabela3[[#This Row],[Estoque Mínimo]],\"Sim\",\"\")","v":""},{"$f":"Tabela3[[#This Row],[Saldo Estoque]]*Tabela3[[#This Row],[Valor]]","v":0}]
[41,null,null,null,null,{"$f":"SUMIFS(BDMovEstoque!C:C,BDMovEstoque!A:A,Tabela3[[#This Row],[Código]],BDMovEstoque!G:G,\"Entrada\")-SUMIFS(BDMovEstoque!C:C,BDMovEstoque!A:A,Tabela3[[#This Row],[Código]],BDMovEstoque!G:G,\"Saída\")","v":0},{"$f":"IF(Tabela3[[#This Row],[Saldo Estoque]]<Tabela3[[#This Row],[Estoque Mínimo]],\"Sim\",\"\")","v":""},{"$f":"Tabela3[[#This Row],[Saldo Estoque]]*Tabela3[[#This Row],[Valor]]","v":0}]
[42,null,null,null,null,{"$f":"SUMIFS(BDMovEstoque!C:C,BDMovEstoque!A:A,Tabela3[[#This Row],[Código]],BDMovEstoque!G:G,\"Entrada\")-SUMIFS(BDMovEstoque!C:C,BDMovEstoque!A:A,Tabela3[[#This Row],[Código]],BDMovEstoque!G:G,\"Saída\")","v":0},{"$f":"IF(Tabela3[[#This Row],[Saldo Estoque]]<Tabela3[[#This Row],[Estoque Mínimo]],\"Sim\",\"\")","v":""},{"$f":"Tabela3[[#This Row],[Saldo Estoque]]*Tabela3[[#This Row],[Valor]]","v":0}]
[43,null,null,null,null,{"$f":"SUMIFS(BDMovEstoque!C:C,BDMovEstoque!A:A,Tabela3[[#This Row],[Código]],BDMovEstoque!G:G,\"Entrada\")-SUMIFS(BDMovEstoque!C:C,BDMovEstoque!A:A,Tabela3[[#This Row],[Código]],BDMovEstoque!G:G,\"Saída\")","v":0},{"$f":"IF(Tabela3[[#This Row],[Saldo Estoque]]<Tabela3[[#This Row],[Estoque Mínimo]],\"Sim\",\"\")","v":""},{"$f":"Tabela3[[#This Row],[Saldo Estoque]]*Tabela3[[#This Row],[Valor]]","v":0}]
[44,null,null,null,null,{"$f":"SUMIFS(BDMovEstoque!C:C,BDMovEstoque!A:A,Tabela3[[#This Row],[Código]],BDMovEstoque!G:G,\"Entrada\")-SUMIFS(BDMovEstoque!C:C,BDMovEstoque!A:A,Tabela3[[#This Row],[Código]],BDMovEstoque!G:G,\"Saída\")","v":0},{"$f":"IF(Tabela3[[#This Row],[Saldo Estoque]]<Tabela3[[#This Row],[Estoque Mínimo]],\"Sim\",\"\")","v":""},{"$f":"Tabela3[[#This Row],[Saldo Estoque]]*Tabela3[[#This Row],[Valor]]","v":0}]
[45,null,null,null,null,{"$f":"SUMIFS(BDMovEstoque!C:C,BDMovEstoque!A:A,Tabela3[[#This Row],[Código]],BDMovEstoque!G:G,\"Entrada\")-SUMIFS(BDMovEstoque!C:C,BDMovEstoque!A:A,Tabela3[[#This Row],[Código]],BDMovEstoque!G:G,\"Saída\")","v":0},{"$f":"IF(Tabela3[[#This Row],[Saldo Estoque]]<Tabela3[[#This Row],[Estoque Mínimo]],\"Sim\",\"\")","v":""},{"$f":"Tabela3[[#This Row],[Saldo Estoque]]*Tabela3[[#This Row],[Valor]]","v":0}]
[46,null,null,null,null,{"$f":"SUMIFS(BDMovEstoque!C:C,BDMovEstoque!A:A,Tabela3[[#This Row],[Código]],BDMovEstoque!G:G,\"Entrada\")-SUMIFS(BDMovEstoque!C:C,BDMovEstoque!A:A,Tabela3[[#This Row],[Código]],BDMovEstoque!G:G,\"Saída\")","v":0},{"$f":"IF(Tabela3[[#This Row],[Saldo Estoque]]<Tabela3[[#This Row],[Estoque Mínimo]],\"Sim\",\"\")","v":""},{"$f":"Tabela3[[#This Row],[Saldo Estoque]]*Tabela3[[#This Row],[Valor]]","v":0}]
[47,null,null,null,null,{"$f":"SUMIFS(BDMovEstoque!C:C,BDMovEstoque!A:A,Tabela3[[#This Row],[Código]],BDMovEstoque!G:G,\"Entrada\")-SUMIFS(BDMovEstoque!C:C,BDMovEstoque!A:A,Tabela3[[#This Row],[Código]],BDMovEstoque!G:G,\"Saída\")","v":0},{"$f":"IF(Tabela3[[#This Row],[Saldo Estoque]]<Tabela3[[#This Row],[Estoque Mínimo]],\"Sim\",\"\")","v":""},{"$f":"Tabela3[[#This Row],[Saldo Estoque]]*Tabela3[[#This Row],[Valor]]","v":0}]
[48,null,null,null,null,{"$f":"SUMIFS(BDMovEstoque!C:C,BDMovEstoque!A:A,Tabela3[[#This Row],[Código]],BDMovEstoque!G:G,\"Entrada\")-SUMIFS(BDMovEstoque!C:C,BDMovEstoque!A:A,Tabela3[[#This Row],[Código]],BDMovEstoque!G:G,\"Saída\")","v":0},{"$f":"IF(Tabela3[[#This Row],[Saldo Estoque]]<Tabela3[[#This Row],[Estoque Mínimo]],\"Sim\",\"\")","v":""},{"$f":"Tabela3[[#This Row],[Saldo Estoque]]*Tabela3[[#This Row],[Valor]]","v":0}]
[49,null,null,null,null,{"$f":"SUMIFS(BDMovEstoque!C:C,BDMovEstoque!A:A,Tabela3[[#This Row],[Código]],BDMovEstoque!G:G,\"Entrada\")-SUMIFS(BDMovEstoque!C:C,BDMovEstoque!A:A,Tabela3[[#This Row],[Código]],BDMovEstoque!G:G,\"Saída\")","v":0},{"$f":"IF(Tabela3[[#This Row],[Saldo Estoque]]<Tabela3[[#This Row],[Estoque Mínimo]],\"Sim\",\"\")","v":""},{"$f":"Tabela3[[#This Row],[Saldo Estoque]]*Tabela3[[#This Row],[Valor]]","v":0}]
[50,null,null,null,null,{"$f":"SUMIFS(BDMovEstoque!C:C,BDMovEstoque!A:A,Tabela3[[#This Row],[Código]],BDMovEstoque!G:G,\"Entrada\")-SUMIFS(BDMovEstoque!C:C,BDMovEstoque!A:A,Tabela3[[#This Row],[Código]],BDMovEstoque!G:G,\"Saída\")","v":0},{"$f":"IF(Tabela3[[#This Row],[Saldo Estoque]]<Tabela3[[#This Row],[Estoque Mínimo]],\"Sim\",\"\")","v":""},{"$f":"Tabela3[[#This Row],[Saldo Estoque]]*Tabela3[[#This Row],[Valor]]","v":0}]
[51,null,null,null,null,{"$f":"SUMIFS(BDMovEstoque!C:C,BDMovEstoque!A:A,Tabela3[[#This Row],[Código]],BDMovEstoque!G:G,\"Entrada\")-SUMIFS(BDMovEstoque!C:C,BDMovEstoque!A:A,Tabela3[[#This Row],[Código]],BDMovEstoque!G:G,\"Saída\")","v":0},{"$f":"IF(Tabela3[[#This Row],[Saldo Estoque]]<Tabela3[[#This Row],[Estoque Mínimo]],\"Sim\",\"\")","v":""},{"$f":"Tabela3[[#This Row],[Saldo Estoque]]*Tabela3[[#This Row],[Valor]]","v":0}]
[52,null,null,null,null,{"$f":"SUMIFS(BDMovEstoque!C:C,BDMovEstoque!A:A,Tabela3[[#This Row],[Código]],BDMovEstoque!G:G,\"Entrada\")-SUMIFS(BDMovEstoque!C:C,BDMovEstoque!A:A,Tabela3[[#This Row],[Código]],BDMovEstoque!G:G,\"Saída\")","v":0},{"$f":"IF(Tabela3[[#This Row],[Saldo Estoque]]<Tabela3[[#This Row],[Estoque Mínimo]],\"Sim\",\"\")","v":""},{"$f":"Tabela3[[#This Row],[Saldo Estoque]]*Tabela3[[#This Row],[Valor]]","v":0}]
[53,null,null,null,null,{"$f":"SUMIFS(BDMovEstoque!C:C,BDMovEstoque!A:A,Tabela3[[#This Row],[Código]],BDMovEstoque!G:G,\"Entrada\")-SUMIFS(BDMovEstoque!C:C,BDMovEstoque!A:A,Tabela3[[#This Row],[Código]],BDMovEstoque!G:G,\"Saída\")","v":0},{"$f":"IF(Tabela3[[#This Row],[Saldo Estoque]]<Tabela3[[#This Row],[Estoque Mínimo]],\"Sim\",\"\")","v":""},{"$f":"Tabela3[[#This Row],[Saldo Estoque]]*Tabela3[[#This Row],[Valor]]","v":0}]
[54,null,null,null,null,{"$f":"SUMIFS(BDMovEstoque!C:C,BDMovEstoque!A:A,Tabela3[[#This Row],[Código]],BDMovEstoque!G:G,\"Entrada\")-SUMIFS(BDMovEstoque!C:C,BDMovEstoque!A:A,Tabela3[[#This Row],[Código]],BDMovEstoque!G:G,\"Saída\")","v":0},{"$f":"IF(Tabela3[[#This Row],[Saldo Estoque]]<Tabela3[[#This Row],[Estoque Mínimo]],\"Sim\",\"\")","v":""},{"$f":"Tabela3[[#This Row],[Saldo Estoque]]*Tabela3[[#This Row],[Valor]]","v":0}]
[55,null,null,null,null,{"$f":"SUMIFS(BDMovEstoque!C:C,BDMovEstoque!A:A,Tabela3[[#This Row],[Código]],BDMovEstoque!G:G,\"Entrada\")-SUMIFS(BDMovEstoque!C:C,BDMovEstoque!A:A,Tabela3[[#This Row],[Código]],BDMovEstoque!G:G,\"Saída\")","v":0},{"$f":"IF(Tabela3[[#This Row],[Saldo Estoque]]<Tabela3[[#This Row],[Estoque Mínimo]],\"Sim\",\"\")","v":""},{"$f":"Tabela3[[#This Row],[Saldo Estoque]]*Tabela3[[#This Row],[Valor]]","v":0}]
[56,null,null,null,null,{"$f":"SUMIFS(BDMovEstoque!C:C,BDMovEstoque!A:A,Tabela3[[#This Row],[Código]],BDMovEstoque!G:G,\"Entrada\")-SUMIFS(BDMovEstoque!C:C,BDMovEstoque!A:A,Tabela3[[#This Row],[Código]],BDMovEstoque!G:G,\"Saída\")","v":0},{"$f":"IF(Tabela3[[#This Row],[Saldo Estoque]]<Tabela3[[#This Row],[Estoque Mínimo]],\"Sim\",\"\")","v":""},{"$f":"Tabela3[[#This Row],[Saldo Estoque]]*Tabela3[[#This Row],[Valor]]","v":0}]
[57,null,null,null,null,{"$f":"SUMIFS(BDMovEstoque!C:C,BDMovEstoque!A:A,Tabela3[[#This Row],[Código]],BDMovEstoque!G:G,\"Entrada\")-SUMIFS(BDMovEstoque!C:C,BDMovEstoque!A:A,Tabela3[[#This Row],[Código]],BDMovEstoque!G:G,\"Saída\")","v":0},{"$f":"IF(Tabela3[[#This Row],[Saldo Estoque]]<Tabela3[[#This Row],[Estoque Mínimo]],\"Sim\",\"\")","v":""},{"$f":"Tabela3[[#This Row],[Saldo Estoque]]*Tabela3[[#This Row],[Valor]]","v":0}]
[58,null,null,null,null,{"$f":"SUMIFS(BDMovEstoque!C:C,BDMovEstoque!A:A,Tabela3[[#This Row],[Código]],BDMovEstoque!G:G,\"Entrada\")-SUMIFS(BDMovEstoque!C:C,BDMovEstoque!A:A,Tabela3[[#This Row],[Código]],BDMovEstoque!G:G,\"Saída\")","v":0},{"$f":"IF(Tabela3[[#This Row],[Saldo Estoque]]<Tabela3[[#This Row],[Estoque Mínimo]],\"Sim\",\"\")","v":""},{"$f":"Tabela3[[#This Row],[Saldo Estoque]]*Tabela3[[#This Row],[Valor]]","v":0}]
[59,null,null,null,null,{"$f":"SUMIFS(BDMovEstoque!C:C,BDMovEstoque!A:A,Tabela3[[#This Row],[Código]],BDMovEstoque!G:G,\"Entrada\")-SUMIFS(BDMovEstoque!C:C,BDMovEstoque!A:A,Tabela3[[#This Row],[Código]],BDMovEstoque!G:G,\"Saída\")","v":0},{"$f":"IF(Tabela3[[#This Row],[Saldo Estoque]]<Tabela3[[#This Row],[Estoque Mínimo]],\"Sim\",\"\")","v":""},{"$f":"Tabela3[[#This Row],[Saldo Estoque]]*Tabela3[[#This Row],[Valor]]","v":0}]
[60,null,null,null,null,{"$f":"SUMIFS(BDMovEstoque!C:C,BDMovEstoque!A:A,Tabela3[[#This Row],[Código]],BDMovEstoque!G:G,\"Entrada\")-SUMIFS(BDMovEstoque!C:C,BDMovEstoque!A:A,Tabela3[[#This Row],[Código]],BDMovEstoque!G:G,\"Saída\")","v":0},{"$f":"IF(Tabela3[[#This Row],[Saldo Estoque]]<Tabela3[[#This Row],[Estoque Mínimo]],\"Sim\",\"\")","v":""},{"$f":"Tabela3[[#This Row],[Saldo Estoque]]*Tabela3[[#This Row],[Valor]]","v":0}]
[61,null,null,null,null,{"$f":"SUMIFS(BDMovEstoque!C:C,BDMovEstoque!A:A,Tabela3[[#This Row],[Código]],BDMovEstoque!G:G,\"Entrada\")-SUMIFS(BDMovEstoque!C:C,BDMovEstoque!A:A,Tabela3[[#This Row],[Código]],BDMovEstoque!G:G,\"Saída\")","v":0},{"$f":"IF(Tabela3[[#This Row],[Saldo Estoque]]<Tabela3[[#This Row],[Estoque Mínimo]],\"Sim\",\"\")","v":""},{"$f":"Tabela3[[#This Row],[Saldo Estoque]]*Tabela3[[#This Row],[Valor]]","v":0}]
[62,null,null,null,null,{"$f":"SUMIFS(BDMovEstoque!C:C,BDMovEstoque!A:A,Tabela3[[#This Row],[Código]],BDMovEstoque!G:G,\"Entrada\")-SUMIFS(BDMovEstoque!C:C,BDMovEstoque!A:A,Tabela3[[#This Row],[Código]],BDMovEstoque!G:G,\"Saída\")","v":0},{"$f":"IF(Tabela3[[#This Row],[Saldo Estoque]]<Tabela3[[#This Row],[Estoque Mínimo]],\"Sim\",\"\")","v":""},{"$f":"Tabela3[[#This Row],[Saldo Estoque]]*Tabela3[[#This Row],[Valor]]","v":0}]
[63,null,null,null,null,{"$f":"SUMIFS(BDMovEstoque!C:C,BDMovEstoque!A:A,Tabela3[[#This Row],[Código]],BDMovEstoque!G:G,\"Entrada\")-SUMIFS(BDMovEstoque!C:C,BDMovEstoque!A:A,Tabela3[[#This Row],[Código]],BDMovEstoque!G:G,\"Saída\")","v":0},{"$f":"IF(Tabela3[[#This Row],[Saldo Estoque]]<Tabela3[[#This Row],[Estoque Mínimo]],\"Sim\",\"\")","v":""},{"$f":"Tabela3[[#This Row],[Saldo Estoque]]*Tabela3[[#This Row],[Valor]]","v":0}]
[64,null,null,null,null,{"$f":"SUMIFS(BDMovEstoque!C:C,BDMovEstoque!A:A,Tabela3[[#This Row],[Código]],BDMovEstoque!G:G,\"Entrada\")-SUMIFS(BDMovEstoque!C:C,BDMovEstoque!A:A,Tabela3[[#This Row],[Código]],BDMovEstoque!G:G,\"Saída\")","v":0},{"$f":"IF(Tabela3[[#This Row],[Saldo Estoque]]<Tabela3[[#This Row],[Estoque Mínimo]],\"Sim\",\"\")","v":""},{"$f":"Tabela3[[#This Row],[Saldo Estoque]]*Tabela3[[#This Row],[Valor]]","v":0}]
[65,null,null,null,null,{"$f":"SUMIFS(BDMovEstoque!C:C,BDMovEstoque!A:A,Tabela3[[#This Row],[Código]],BDMovEstoque!G:G,\"Entrada\")-SUMIFS(BDMovEstoque!C:C,BDMovEstoque!A:A,Tabela3[[#This Row],[Código]],BDMovEstoque!G:G,\"Saída\")","v":0},{"$f":"IF(Tabela3[[#This Row],[Saldo Estoque]]<Tabela3[[#This Row],[Estoque Mínimo]],\"Sim\",\"\")","v":""},{"$f":"Tabela3[[#This Row],[Saldo Estoque]]*Tabela3[[#This Row],[Valor]]","v":0}]
[66,null,null,null,null,{"$f":"SUMIFS(BDMovEstoque!C:C,BDMovEstoque!A:A,Tabela3[[#This Row],[Código]],BDMovEstoque!G:G,\"Entrada\")-SUMIFS(BDMovEstoque!C:C,BDMovEstoque!A:A,Tabela3[[#This Row],[Código]],BDMovEstoque!G:G,\"Saída\")","v":0},{"$f":"IF(Tabela3[[#This Row],[Saldo Estoque]]<Tabela3[[#This Row],[Estoque Mínimo]],\"Sim\",\"\")","v":""},{"$f":"Tabela3[[#This Row],[Saldo Estoque]]*Tabela3[[#This Row],[Valor]]","v":0}]
[67,null,null,null,null,{"$f":"SUMIFS(BDMovEstoque!C:C,BDMovEstoque!A:A,Tabela3[[#This Row],[Código]],BDMovEstoque!G:G,\"Entrada\")-SUMIFS(BDMovEstoque!C:C,BDMovEstoque!A:A,Tabela3[[#This Row],[Código]],BDMovEstoque!G:G,\"Saída\")","v":0},{"$f":"IF(Tabela3[[#This Row],[Saldo Estoque]]<Tabela3[[#This Row],[Estoque Mínimo]],\"Sim\",\"\")","v":""},{"$f":"Tabela3[[#This Row],[Saldo Estoque]]*Tabela3[[#This Row],[Valor]]","v":0}]
[68,null,null,null,null,{"$f":"SUMIFS(BDMovEstoque!C:C,BDMovEstoque!A:A,Tabela3[[#This Row],[Código]],BDMovEstoque!G:G,\"Entrada\")-SUMIFS(BDMovEstoque!C:C,BDMovEstoque!A:A,Tabela3[[#This Row],[Código]],BDMovEstoque!G:G,\"Saída\")","v":0},{"$f":"IF(Tabela3[[#This Row],[Saldo Estoque]]<Tabela3[[#This Row],[Estoque Mínimo]],\"Sim\",\"\")","v":""},{"$f":"Tabela3[[#This Row],[Saldo Estoque]]*Tabela3[[#This Row],[Valor]]","v":0}]
[69,null,null,null,null,{"$f":"SUMIFS(BDMovEstoque!C:C,BDMovEstoque!A:A,Tabela3[[#This Row],[Código]],BDMovEstoque!G:G,\"Entrada\")-SUMIFS(BDMovEstoque!C:C,BDMovEstoque!A:A,Tabela3[[#This Row],[Código]],BDMovEstoque!G:G,\"Saída\")","v":0},{"$f":"IF(Tabela3[[#This Row],[Saldo Estoque]]<Tabela3[[#This Row],[Estoque Mínimo]],\"Sim\",\"\")","v":""},{"$f":"Tabela3[[#This Row],[Saldo Estoque]]*Tabela3[[#This Row],[Valor]]","v":0}]
[70,null,null,null,null,{"$f":"SUMIFS(BDMovEstoque!C:C,BDMovEstoque!A:A,Tabela3[[#This Row],[Código]],BDMovEstoque!G:G,\"Entrada\")-SUMIFS(BDMovEstoque!C:C,BDMovEstoque!A:A,Tabela3[[#This Row],[Código]],BDMovEstoque!G:G,\"Saída\")","v":0},{"$f":"IF(Tabela3[[#This Row],[Saldo Estoque]]<Tabela3[[#This Row],[Estoque Mínimo]],\"Sim\",\"\")","v":""},{"$f":"Tabela3[[#This Row],[Saldo Estoque]]*Tabela3[[#This Row],[Valor]]","v":0}]
[71,null,null,null,null,{"$f":"SUMIFS(BDMovEstoque!C:C,BDMovEstoque!A:A,Tabela3[[#This Row],[Código]],BDMovEstoque!G:G,\"Entrada\")-SUMIFS(BDMovEstoque!C:C,BDMovEstoque!A:A,Tabela3[[#This Row],[Código]],BDMovEstoque!G:G,\"Saída\")","v":0},{"$f":"IF(Tabela3[[#This Row],[Saldo Estoque]]<Tabela3[[#This Row],[Estoque Mínimo]],\"Sim\",\"\")","v":""},{"$f":"Tabela3[[#This Row],[Saldo Estoque]]*Tabela3[[#This Row],[Valor]]","v":0}]
[72,null,null,null,null,{"$f":"SUMIFS(BDMovEstoque!C:C,BDMovEstoque!A:A,Tabela3[[#This Row],[Código]],BDMovEstoque!G:G,\"Entrada\")-SUMIFS(BDMovEstoque!C:C,BDMovEstoque!A:A,Tabela3[[#This Row],[Código]],BDMovEstoque!G:G,\"Saída\")","v":0},{"$f":"IF(Tabela3[[#This Row],[Saldo Estoque]]<Tabela3[[#This Row],[Estoque Mínimo]],\"Sim\",\"\")","v":""},{"$f":"Tabela3[[#This Row],[Saldo Estoque]]*Tabela3[[#This Row],[Valor]]","v":0}]
[73,null,null,null,null,{"$f":"SUMIFS(BDMovEstoque!C:C,BDMovEstoque!A:A,Tabela3[[#This Row],[Código]],BDMovEstoque!G:G,\"Entrada\")-SUMIFS(BDMovEstoque!C:C,BDMovEstoque!A:A,Tabela3[[#This Row],[Código]],BDMovEstoque!G:G,\"Saída\")","v":0},{"$f":"IF(Tabela3[[#This Row],[Saldo Estoque]]<Tabela3[[#This Row],[Estoque Mínimo]],\"Sim\",\"\")","v":""},{"$f":"Tabela3[[#This Row],[Saldo Estoque]]*Tabela3[[#This Row],[Valor]]","v":0}]
[74,null,null,null,null,{"$f":"SUMIFS(BDMovEstoque!C:C,BDMovEstoque!A:A,Tabela3[[#This Row],[Código]],BDMovEstoque!G:G,\"Entrada\")-SUMIFS(BDMovEstoque!C:C,BDMovEstoque!A:A,Tabela3[[#This Row],[Código]],BDMovEstoque!G:G,\"Saída\")","v":0},{"$f":"IF(Tabela3[[#This Row],[Saldo Estoque]]<Tabela3[[#This Row],[Estoque Mínimo]],\"Sim\",\"\")","v":""},{"$f":"Tabela3[[#This Row],[Saldo Estoque]]*Tabela3[[#This Row],[Valor]]","v":0}]
[75,null,null,null,null,{"$f":"SUMIFS(BDMovEstoque!C:C,BDMovEstoque!A:A,Tabela3[[#This Row],[Código]],BDMovEstoque!G:G,\"Entrada\")-SUMIFS(BDMovEstoque!C:C,BDMovEstoque!A:A,Tabela3[[#This Row],[Código]],BDMovEstoque!G:G,\"Saída\")","v":0},{"$f":"IF(Tabela3[[#This Row],[Saldo Estoque]]<Tabela3[[#This Row],[Estoque Mínimo]],\"Sim\",\"\")","v":""},{"$f":"Tabela3[[#This Row],[Saldo Estoque]]*Tabela3[[#This Row],[Valor]]","v":0}]
[76,null,null,null,null,{"$f":"SUMIFS(BDMovEstoque!C:C,BDMovEstoque!A:A,Tabela3[[#This Row],[Código]],BDMovEstoque!G:G,\"Entrada\")-SUMIFS(BDMovEstoque!C:C,BDMovEstoque!A:A,Tabela3[[#This Row],[Código]],BDMovEstoque!G:G,\"Saída\")","v":0},{"$f":"IF(Tabela3[[#This Row],[Saldo Estoque]]<Tabela3[[#This Row],[Estoque Mínimo]],\"Sim\",\"\")","v":""},{"$f":"Tabela3[[#This Row],[Saldo Estoque]]*Tabela3[[#This Row],[Valor]]","v":0}]
[77,null,null,null,null,{"$f":"SUMIFS(BDMovEstoque!C:C,BDMovEstoque!A:A,Tabela3[[#This Row],[Código]],BDMovEstoque!G:G,\"Entrada\")-SUMIFS(BDMovEstoque!C:C,BDMovEstoque!A:A,Tabela3[[#This Row],[Código]],BDMovEstoque!G:G,\"Saída\")","v":0},{"$f":"IF(Tabela3[[#This Row],[Saldo Estoque]]<Tabela3[[#This Row],[Estoque Mínimo]],\"Sim\",\"\")","v":""},{"$f":"Tabela3[[#This Row],[Saldo Estoque]]*Tabela3[[#This Row],[Valor]]","v":0}]
[78,null,null,null,null,{"$f":"SUMIFS(BDMovEstoque!C:C,BDMovEstoque!A:A,Tabela3[[#This Row],[Código]],BDMovEstoque!G:G,\"Entrada\")-SUMIFS(BDMovEstoque!C:C,BDMovEstoque!A:A,Tabela3[[#This Row],[Código]],BDMovEstoque!G:G,\"Saída\")","v":0},{"$f":"IF(Tabela3[[#This Row],[Saldo Estoque]]<Tabela3[[#This Row],[Estoque Mínimo]],\"Sim\",\"\")","v":""},{"$f":"Tabela3[[#This Row],[Saldo Estoque]]*Tabela3[[#This Row],[Valor]]","v":0}]
[79,null,null,null,null,{"$f":"SUMIFS(BDMovEstoque!C:C,BDMovEstoque!A:A,Tabela3[[#This Row],[Código]],BDMovEstoque!G:G,\"Entrada\")-SUMIFS(BDMovEstoque!C:C,BDMovEstoque!A:A,Tabela3[[#This Row],[Código]],BDMovEstoque!G:G,\"Saída\")","v":0},{"$f":"IF(Tabela3[[#This Row],[Saldo Estoque]]<Tabela3[[#This Row],[Estoque Mínimo]],\"Sim\",\"\")","v":""},{"$f":"Tabela3[[#This Row],[Saldo Estoque]]*Tabela3[[#This Row],[Valor]]","v":0}]
[80,null,null,null,null,{"$f":"SUMIFS(BDMovEstoque!C:C,BDMovEstoque!A:A,Tabela3[[#This Row],[Código]],BDMovEstoque!G:G,\"Entrada\")-SUMIFS(BDMovEstoque!C:C,BDMovEstoque!A:A,Tabela3[[#This Row],[Código]],BDMovEstoque!G:G,\"Saída\")","v":0},{"$f":"IF(Tabela3[[#This Row],[Saldo Estoque]]<Tabela3[[#This Row],[Estoque Mínimo]],\"Sim\",\"\")","v":""},{"$f":"Tabela3[[#This Row],[Saldo Estoque]]*Tabela3[[#This Row],[Valor]]","v":0}]
[81,null,null,null,null,{"$f":"SUMIFS(BDMovEstoque!C:C,BDMovEstoque!A:A,Tabela3[[#This Row],[Código]],BDMovEstoque!G:G,\"Entrada\")-SUMIFS(BDMovEstoque!C:C,BDMovEstoque!A:A,Tabela3[[#This Row],[Código]],BDMovEstoque!G:G,\"Saída\")","v":0},{"$f":"IF(Tabela3[[#This Row],[Saldo Estoque]]<Tabela3[[#This Row],[Estoque Mínimo]],\"Sim\",\"\")","v":""},{"$f":"Tabela3[[#This Row],[Saldo Estoque]]*Tabela3[[#This Row],[Valor]]","v":0}]
[82,null,null,null,null,{"$f":"SUMIFS(BDMovEstoque!C:C,BDMovEstoque!A:A,Tabela3[[#This Row],[Código]],BDMovEstoque!G:G,\"Entrada\")-SUMIFS(BDMovEstoque!C:C,BDMovEstoque!A:A,Tabela3[[#This Row],[Código]],BDMovEstoque!G:G,\"Saída\")","v":0},{"$f":"IF(Tabela3[[#This Row],[Saldo Estoque]]<Tabela3[[#This Row],[Estoque Mínimo]],\"Sim\",\"\")","v":""},{"$f":"Tabela3[[#This Row],[Saldo Estoque]]*Tabela3[[#This Row],[Valor]]","v":0}]
[83,null,null,null,null,{"$f":"SUMIFS(BDMovEstoque!C:C,BDMovEstoque!A:A,Tabela3[[#This Row],[Código]],BDMovEstoque!G:G,\"Entrada\")-SUMIFS(BDMovEstoque!C:C,BDMovEstoque!A:A,Tabela3[[#This Row],[Código]],BDMovEstoque!G:G,\"Saída\")","v":0},{"$f":"IF(Tabela3[[#This Row],[Saldo Estoque]]<Tabela3[[#This Row],[Estoque Mínimo]],\"Sim\",\"\")","v":""},{"$f":"Tabela3[[#This Row],[Saldo Estoque]]*Tabela3[[#This Row],[Valor]]","v":0}]
[84,null,null,null,null,{"$f":"SUMIFS(BDMovEstoque!C:C,BDMovEstoque!A:A,Tabela3[[#This Row],[Código]],BDMovEstoque!G:G,\"Entrada\")-SUMIFS(BDMovEstoque!C:C,BDMovEstoque!A:A,Tabela3[[#This Row],[Código]],BDMovEstoque!G:G,\"Saída\")","v":0},{"$f":"IF(Tabela3[[#This Row],[Saldo Estoque]]<Tabela3[[#This Row],[Estoque Mínimo]],\"Sim\",\"\")","v":""},{"$f":"Tabela3[[#This Row],[Saldo Estoque]]*Tabela3[[#This Row],[Valor]]","v":0}]
[85,null,null,null,null,{"$f":"SUMIFS(BDMovEstoque!C:C,BDMovEstoque!A:A,Tabela3[[#This Row],[Código]],BDMovEstoque!G:G,\"Entrada\")-SUMIFS(BDMovEstoque!C:C,BDMovEstoque!A:A,Tabela3[[#This Row],[Código]],BDMovEstoque!G:G,\"Saída\")","v":0},{"$f":"IF(Tabela3[[#This Row],[Saldo Estoque]]<Tabela3[[#This Row],[Estoque Mínimo]],\"Sim\",\"\")","v":""},{"$f":"Tabela3[[#This Row],[Saldo Estoque]]*Tabela3[[#This Row],[Valor]]","v":0}]
[86,null,null,null,null,{"$f":"SUMIFS(BDMovEstoque!C:C,BDMovEstoque!A:A,Tabela3[[#This Row],[Código]],BDMovEstoque!G:G,\"Entrada\")-SUMIFS(BDMovEstoque!C:C,BDMovEstoque!A:A,Tabela3[[#This Row],[Código]],BDMovEstoque!G:G,\"Saída\")","v":0},{"$f":"IF(Tabela3[[#This Row],[Saldo Estoque]]<Tabela3[[#This Row],[Estoque Mínimo]],\"Sim\",\"\")","v":""},{"$f":"Tabela3[[#This Row],[Saldo Estoque]]*Tabela3[[#This Row],[Valor]]","v":0}]
[87,null,null,null,null,{"$f":"SUMIFS(BDMovEstoque!C:C,BDMovEstoque!A:A,Tabela3[[#This Row],[Código]],BDMovEstoque!G:G,\"Entrada\")-SUMIFS(BDMovEstoque!C:C,BDMovEstoque!A:A,Tabela3[[#This Row],[Código]],BDMovEstoque!G:G,\"Saída\")","v":0},{"$f":"IF(Tabela3[[#This Row],[Saldo Estoque]]<Tabela3[[#This Row],[Estoque Mínimo]],\"Sim\",\"\")","v":""},{"$f":"Tabela3[[#This Row],[Saldo Estoque]]*Tabela3[[#This Row],[Valor]]","v":0}]
[88,null,null,null,null,{"$f":"SUMIFS(BDMovEstoque!C:C,BDMovEstoque!A:A,Tabela3[[#This Row],[Código]],BDMovEstoque!G:G,\"Entrada\")-SUMIFS(BDMovEstoque!C:C,BDMovEstoque!A:A,Tabela3[[#This Row],[Código]],BDMovEstoque!G:G,\"Saída\")","v":0},{"$f":"IF(Tabela3[[#This Row],[Saldo Estoque]]<Tabela3[[#This Row],[Estoque Mínimo]],\"Sim\",\"\")","v":""},{"$f":"Tabela3[[#This Row],[Saldo Estoque]]*Tabela3[[#This Row],[Valor]]","v":0}]
[89,null,null,null,null,{"$f":"SUMIFS(BDMovEstoque!C:C,BDMovEstoque!A:A,Tabela3[[#This Row],[Código]],BDMovEstoque!G:G,\"Entrada\")-SUMIFS(BDMovEstoque!C:C,BDMovEstoque!A:A,Tabela3[[#This Row],[Código]],BDMovEstoque!G:G,\"Saída\")","v":0},{"$f":"IF(Tabela3[[#This Row],[Saldo Estoque]]<Tabela3[[#This Row],[Estoque Mínimo]],\"Sim\",\"\")","v":""},{"$f":"Tabela3[[#This Row],[Saldo Estoque]]*Tabela3[[#This Row],[Valor]]","v":0}]
[90,null,null,null,null,{"$f":"SUMIFS(BDMovEstoque!C:C,BDMovEstoque!A:A,Tabela3[[#This Row],[Código]],BDMovEstoque!G:G,\"Entrada\")-SUMIFS(BDMovEstoque!C:C,BDMovEstoque!A:A,Tabela3[[#This Row],[Código]],BDMovEstoque!G:G,\"Saída\")","v":0},{"$f":"IF(Tabela3[[#This Row],[Saldo Estoque]]<Tabela3[[#This Row],[Estoque Mínimo]],\"Sim\",\"\")","v":""},{"$f":"Tabela3[[#This Row],[Saldo Estoque]]*Tabela3[[#This Row],[Valor]]","v":0}]
[91,null,null,null,null,{"$f":"SUMIFS(BDMovEstoque!C:C,BDMovEstoque!A:A,Tabela3[[#This Row],[Código]],BDMovEstoque!G:G,\"Entrada\")-SUMIFS(BDMovEstoque!C:C,BDMovEstoque!A:A,Tabela3[[#This Row],[Código]],BDMovEstoque!G:G,\"Saída\")","v":0},{"$f":"IF(Tabela3[[#This Row],[Saldo Estoque]]<Tabela3[[#This Row],[Estoque Mínimo]],\"Sim\",\"\")","v":""},{"$f":"Tabela3[[#This Row],[Saldo Estoque]]*Tabela3[[#This Row],[Valor]]","v":0}]
[92,null,null,null,null,{"$f":"SUMIFS(BDMovEstoque!C:C,BDMovEstoque!A:A,Tabela3[[#This Row],[Código]],BDMovEstoque!G:G,\"Entrada\")-SUMIFS(BDMovEstoque!C:C,BDMovEstoque!A:A,Tabela3[[#This Row],[Código]],BDMovEstoque!G:G,\"Saída\")","v":0},{"$f":"IF(Tabela3[[#This Row],[Saldo Estoque]]<Tabela3[[#This Row],[Estoque Mínimo]],\"Sim\",\"\")","v":""},{"$f":"Tabela3[[#This Row],[Saldo Estoque]]*Tabela3[[#This Row],[Valor]]","v":0}]
[93,null,null,null,null,{"$f":"SUMIFS(BDMovEstoque!C:C,BDMovEstoque!A:A,Tabela3[[#This Row],[Código]],BDMovEstoque!G:G,\"Entrada\")-SUMIFS(BDMovEstoque!C:C,BDMovEstoque!A:A,Tabela3[[#This Row],[Código]],BDMovEstoque!G:G,\"Saída\")","v":0},{"$f":"IF(Tabela3[[#This Row],[Saldo Estoque]]<Tabela3[[#This Row],[Estoque Mínimo]],\"Sim\",\"\")","v":""},{"$f":"Tabela3[[#This Row],[Saldo Estoque]]*Tabela3[[#This Row],[Valor]]","v":0}]
[94,null,null,null,null,{"$f":"SUMIFS(BDMovEstoque!C:C,BDMovEstoque!A:A,Tabela3[[#This Row],[Código]],BDMovEstoque!G:G,\"Entrada\")-SUMIFS(BDMovEstoque!C:C,BDMovEstoque!A:A,Tabela3[[#This Row],[Código]],BDMovEstoque!G:G,\"Saída\")","v":0},{"$f":"IF(Tabela3[[#This Row],[Saldo Estoque]]<Tabela3[[#This Row],[Estoque Mínimo]],\"Sim\",\"\")","v":""},{"$f":"Tabela3[[#This Row],[Saldo Estoque]]*Tabela3[[#This Row],[Valor]]","v":0}]
[95,null,null,null,null,{"$f":"SUMIFS(BDMovEstoque!C:C,BDMovEstoque!A:A,Tabela3[[#This Row],[Código]],BDMovEstoque!G:G,\"Entrada\")-SUMIFS(BDMovEstoque!C:C,BDMovEstoque!A:A,Tabela3[[#This Row],[Código]],BDMovEstoque!G:G,\"Saída\")","v":0},{"$f":"IF(Tabela3[[#This Row],[Saldo Estoque]]<Tabela3[[#This Row],[Estoque Mínimo]],\"Sim\",\"\")","v":""},{"$f":"Tabela3[[#This Row],[Saldo Estoque]]*Tabela3[[#This Row],[Valor]]","v":0}]
[96,null,null,null,null,{"$f":"SUMIFS(BDMovEstoque!C:C,BDMovEstoque!A:A,Tabela3[[#This Row],[Código]],BDMovEstoque!G:G,\"Entrada\")-SUMIFS(BDMovEstoque!C:C,BDMovEstoque!A:A,Tabela3[[#This Row],[Código]],BDMovEstoque!G:G,\"Saída\")","v":0},{"$f":"IF(Tabela3[[#This Row],[Saldo Estoque]]<Tabela3[[#This Row],[Estoque Mínimo]],\"Sim\",\"\")","v":""},{"$f":"Tabela3[[#This Row],[Saldo Estoque]]*Tabela3[[#This Row],[Valor]]","v":0}]
[97,null,null,null,null,{"$f":"SUMIFS(BDMovEstoque!C:C,BDMovEstoque!A:A,Tabela3[[#This Row],[Código]],BDMovEstoque!G:G,\"Entrada\")-SUMIFS(BDMovEstoque!C:C,BDMovEstoque!A:A,Tabela3[[#This Row],[Código]],BDMovEstoque!G:G,\"Saída\")","v":0},{"$f":"IF(Tabela3[[#This Row],[Saldo Estoque]]<Tabela3[[#This Row],[Estoque Mínimo]],\"Sim\",\"\")","v":""},{"$f":"Tabela3[[#This Row],[Saldo Estoque]]*Tabela3[[#This Row],[Valor]]","v":0}]
[98,null,null,null,null,{"$f":"SUMIFS(BDMovEstoque!C:C,BDMovEstoque!A:A,Tabela3[[#This Row],[Código]],BDMovEstoque!G:G,\"Entrada\")-SUMIFS(BDMovEstoque!C:C,BDMovEstoque!A:A,Tabela3[[#This Row],[Código]],BDMovEstoque!G:G,\"Saída\")","v":0},{"$f":"IF(Tabela3[[#This Row],[Saldo Estoque]]<Tabela3[[#This Row],[Estoque Mínimo]],\"Sim\",\"\")","v":""},{"$f":"Tabela3[[#This Row],[Saldo Estoque]]*Tabela3[[#This Row],[Valor]]","v":0}]
[99,null,null,null,null,{"$f":"SUMIFS(BDMovEstoque!C:C,BDMovEstoque!A:A,Tabela3[[#This Row],[Código]],BDMovEstoque!G:G,\"Entrada\")-SUMIFS(BDMovEstoque!C:C,BDMovEstoque!A:A,Tabela3[[#This Row],[Código]],BDMovEstoque!G:G,\"Saída\")","v":0},{"$f":"IF(Tabela3[[#This Row],[Saldo Estoque]]<Tabela3[[#This Row],[Estoque Mínimo]],\"Sim\",\"\")","v":""},{"$f":"Tabela3[[#This Row],[Saldo Estoque]]*Tabela3[[#This Row],[Valor]]","v":0}]
[100,null,null,null,null,{"$f":"SUMIFS(BDMovEstoque!C:C,BDMovEstoque!A:A,Tabela3[[#This Row],[Código]],BDMovEstoque!G:G,\"Entrada\")-SUMIFS(BDMovEstoque!C:C,BDMovEstoque!A:A,Tabela3[[#This Row],[Código]],BDMovEstoque!G:G,\"Saída\")","v":0},{"$f":"IF(Tabela3[[#This Row],[Saldo Estoque]]<Tabela3[[#This Row],[Estoque Mínimo]],\"Sim\",\"\")","v":""},{"$f":"Tabela3[[#This Row],[Saldo Estoque]]*Tabela3[[#This Row],[Valor]]","v":0}]
[101,null,null,null,null,{"$f":"SUMIFS(BDMovEstoque!C:C,BDMovEstoque!A:A,Tabela3[[#This Row],[Código]],BDMovEstoque!G:G,\"Entrada\")-SUMIFS(BDMovEstoque!C:C,BDMovEstoque!A:A,Tabela3[[#This Row],[Código]],BDMovEstoque!G:G,\"Saída\")","v":0},{"$f":"IF(Tabela3[[#This Row],[Saldo Estoque]]<Tabela3[[#This Row],[Estoque Mínimo]],\"Sim\",\"\")","v":""},{"$f":"Tabela3[[#This Row],[Saldo Estoque]]*Tabela3[[#This Row],[Valor]]","v":0}]
[102,null,null,null,null,{"$f":"SUMIFS(BDMovEstoque!C:C,BDMovEstoque!A:A,Tabela3[[#This Row],[Código]],BDMovEstoque!G:G,\"Entrada\")-SUMIFS(BDMovEstoque!C:C,BDMovEstoque!A:A,Tabela3[[#This Row],[Código]],BDMovEstoque!G:G,\"Saída\")","v":0},{"$f":"IF(Tabela3[[#This Row],[Saldo Estoque]]<Tabela3[[#This Row],[Estoque Mínimo]],\"Sim\",\"\")","v":""},{"$f":"Tabela3[[#This Row],[Saldo Estoque]]*Tabela3[[#This Row],[Valor]]","v":0}]
[103,null,null,null,null,{"$f":"SUMIFS(BDMovEstoque!C:C,BDMovEstoque!A:A,Tabela3[[#This Row],[Código]],BDMovEstoque!G:G,\"Entrada\")-SUMIFS(BDMovEstoque!C:C,BDMovEstoque!A:A,Tabela3[[#This Row],[Código]],BDMovEstoque!G:G,\"Saída\")","v":0},{"$f":"IF(Tabela3[[#This Row],[Saldo Estoque]]<Tabela3[[#This Row],[Estoque Mínimo]],\"Sim\",\"\")","v":""},{"$f":"Tabela3[[#This Row],[Saldo Estoque]]*Tabela3[[#This Row],[Valor]]","v":0}]
[104,null,null,null,null,{"$f":"SUMIFS(BDMovEstoque!C:C,BDMovEstoque!A:A,Tabela3[[#This Row],[Código]],BDMovEstoque!G:G,\"Entrada\")-SUMIFS(BDMovEstoque!C:C,BDMovEstoque!A:A,Tabela3[[#This Row],[Código]],BDMovEstoque!G:G,\"Saída\")","v":0},{"$f":"IF(Tabela3[[#This Row],[Saldo Estoque]]<Tabela3[[#This Row],[Estoque Mínimo]],\"Sim\",\"\")","v":""},{"$f":"Tabela3[[#This Row],[Saldo Estoque]]*Tabela3[[#This Row],[Valor]]","v":0}]
[105,null,null,null,null,{"$f":"SUMIFS(BDMovEstoque!C:C,BDMovEstoque!A:A,Tabela3[[#This Row],[Código]],BDMovEstoque!G:G,\"Entrada\")-SUMIFS(BDMovEstoque!C:C,BDMovEstoque!A:A,Tabela3[[#This Row],[Código]],BDMovEstoque!G:G,\"Saída\")","v":0},{"$f":"IF(Tabela3[[#This Row],[Saldo Estoque]]<Tabela3[[#This Row],[Estoque Mínimo]],\"Sim\",\"\")","v":""},{"$f":"Tabela3[[#This Row],[Saldo Estoque]]*Tabela3[[#This Row],[Valor]]","v":0}]
[106,null,null,null,null,{"$f":"SUMIFS(BDMovEstoque!C:C,BDMovEstoque!A:A,Tabela3[[#This Row],[Código]],BDMovEstoque!G:G,\"Entrada\")-SUMIFS(BDMovEstoque!C:C,BDMovEstoque!A:A,Tabela3[[#This Row],[Código]],BDMovEstoque!G:G,\"Saída\")","v":0},{"$f":"IF(Tabela3[[#This Row],[Saldo Estoque]]<Tabela3[[#This Row],[Estoque Mínimo]],\"Sim\",\"\")","v":""},{"$f":"Tabela3[[#This Row],[Saldo Estoque]]*Tabela3[[#This Row],[Valor]]","v":0}]
[107,null,null,null,null,{"$f":"SUMIFS(BDMovEstoque!C:C,BDMovEstoque!A:A,Tabela3[[#This Row],[Código]],BDMovEstoque!G:G,\"Entrada\")-SUMIFS(BDMovEstoque!C:C,BDMovEstoque!A:A,Tabela3[[#This Row],[Código]],BDMovEstoque!G:G,\"Saída\")","v":0},{"$f":"IF(Tabela3[[#This Row],[Saldo Estoque]]<Tabela3[[#This Row],[Estoque Mínimo]],\"Sim\",\"\")","v":""},{"$f":"Tabela3[[#This Row],[Saldo Estoque]]*Tabela3[[#This Row],[Valor]]","v":0}]
[108,null,null,null,null,{"$f":"SUMIFS(BDMovEstoque!C:C,BDMovEstoque!A:A,Tabela3[[#This Row],[Código]],BDMovEstoque!G:G,\"Entrada\")-SUMIFS(BDMovEstoque!C:C,BDMovEstoque!A:A,Tabela3[[#This Row],[Código]],BDMovEstoque!G:G,\"Saída\")","v":0},{"$f":"IF(Tabela3[[#This Row],[Saldo Estoque]]<Tabela3[[#This Row],[Estoque Mínimo]],\"Sim\",\"\")","v":""},{"$f":"Tabela3[[#This Row],[Saldo Estoque]]*Tabela3[[#This Row],[Valor]]","v":0}]
[109,null,null,null,null,{"$f":"SUMIFS(BDMovEstoque!C:C,BDMovEstoque!A:A,Tabela3[[#This Row],[Código]],BDMovEstoque!G:G,\"Entrada\")-SUMIFS(BDMovEstoque!C:C,BDMovEstoque!A:A,Tabela3[[#This Row],[Código]],BDMovEstoque!G:G,\"Saída\")","v":0},{"$f":"IF(Tabela3[[#This Row],[Saldo Estoque]]<Tabela3[[#This Row],[Estoque Mínimo]],\"Sim\",\"\")","v":""},{"$f":"Tabela3[[#This Row],[Saldo Estoque]]*Tabela3[[#This Row],[Valor]]","v":0}]
[110,null,null,null,null,{"$f":"SUMIFS(BDMovEstoque!C:C,BDMovEstoque!A:A,Tabela3[[#This Row],[Código]],BDMovEstoque!G:G,\"Entrada\")-SUMIFS(BDMovEstoque!C:C,BDMovEstoque!A:A,Tabela3[[#This Row],[Código]],BDMovEstoque!G:G,\"Saída\")","v":0},{"$f":"IF(Tabela3[[#This Row],[Saldo Estoque]]<Tabela3[[#This Row],[Estoque Mínimo]],\"Sim\",\"\")","v":""},{"$f":"Tabela3[[#This Row],[Saldo Estoque]]*Tabela3[[#This Row],[Valor]]","v":0}]
[111,null,null,null,null,{"$f":"SUMIFS(BDMovEstoque!C:C,BDMovEstoque!A:A,Tabela3[[#This Row],[Código]],BDMovEstoque!G:G,\"Entrada\")-SUMIFS(BDMovEstoque!C:C,BDMovEstoque!A:A,Tabela3[[#This Row],[Código]],BDMovEstoque!G:G,\"Saída\")","v":0},{"$f":"IF(Tabela3[[#This Row],[Saldo Estoque]]<Tabela3[[#This Row],[Estoque Mínimo]],\"Sim\",\"\")","v":""},{"$f":"Tabela3[[#This Row],[Saldo Estoque]]*Tabela3[[#This Row],[Valor]]","v":0}]
[112,null,null,null,null,{"$f":"SUMIFS(BDMovEstoque!C:C,BDMovEstoque!A:A,Tabela3[[#This Row],[Código]],BDMovEstoque!G:G,\"Entrada\")-SUMIFS(BDMovEstoque!C:C,BDMovEstoque!A:A,Tabela3[[#This Row],[Código]],BDMovEstoque!G:G,\"Saída\")","v":0},{"$f":"IF(Tabela3[[#This Row],[Saldo Estoque]]<Tabela3[[#This Row],[Estoque Mínimo]],\"Sim\",\"\")","v":""},{"$f":"Tabela3[[#This Row],[Saldo Estoque]]*Tabela3[[#This Row],[Valor]]","v":0}]
[113,null,null,null,null,{"$f":"SUMIFS(BDMovEstoque!C:C,BDMovEstoque!A:A,Tabela3[[#This Row],[Código]],BDMovEstoque!G:G,\"Entrada\")-SUMIFS(BDMovEstoque!C:C,BDMovEstoque!A:A,Tabela3[[#This Row],[Código]],BDMovEstoque!G:G,\"Saída\")","v":0},{"$f":"IF(Tabela3[[#This Row],[Saldo Estoque]]<Tabela3[[#This Row],[Estoque Mínimo]],\"Sim\",\"\")","v":""},{"$f":"Tabela3[[#This Row],[Saldo Estoque]]*Tabela3[[#This Row],[Valor]]","v":0}]
[114,null,null,null,null,{"$f":"SUMIFS(BDMovEstoque!C:C,BDMovEstoque!A:A,Tabela3[[#This Row],[Código]],BDMovEstoque!G:G,\"Entrada\")-SUMIFS(BDMovEstoque!C:C,BDMovEstoque!A:A,Tabela3[[#This Row],[Código]],BDMovEstoque!G:G,\"Saída\")","v":0},{"$f":"IF(Tabela3[[#This Row],[Saldo Estoque]]<Tabela3[[#This Row],[Estoque Mínimo]],\"Sim\",\"\")","v":""},{"$f":"Tabela3[[#This Row],[Saldo Estoque]]*Tabela3[[#This Row],[Valor]]","v":0}]
[115,null,null,null,null,{"$f":"SUMIFS(BDMovEstoque!C:C,BDMovEstoque!A:A,Tabela3[[#This Row],[Código]],BDMovEstoque!G:G,\"Entrada\")-SUMIFS(BDMovEstoque!C:C,BDMovEstoque!A:A,Tabela3[[#This Row],[Código]],BDMovEstoque!G:G,\"Saída\")","v":0},{"$f":"IF(Tabela3[[#This Row],[Saldo Estoque]]<Tabela3[[#This Row],[Estoque Mínimo]],\"Sim\",\"\")","v":""},{"$f":"Tabela3[[#This Row],[Saldo Estoque]]*Tabela3[[#This Row],[Valor]]","v":0}]
[116,null,null,null,null,{"$f":"SUMIFS(BDMovEstoque!C:C,BDMovEstoque!A:A,Tabela3[[#This Row],[Código]],BDMovEstoque!G:G,\"Entrada\")-SUMIFS(BDMovEstoque!C:C,BDMovEstoque!A:A,Tabela3[[#This Row],[Código]],BDMovEstoque!G:G,\"Saída\")","v":0},{"$f":"IF(Tabela3[[#This Row],[Saldo Estoque]]<Tabela3[[#This Row],[Estoque Mínimo]],\"Sim\",\"\")","v":""},{"$f":"Tabela3[[#This Row],[Saldo Estoque]]*Tabela3[[#This Row],[Valor]]","v":0}]
[117,null,null,null,null,{"$f":"SUMIFS(BDMovEstoque!C:C,BDMovEstoque!A:A,Tabela3[[#This Row],[Código]],BDMovEstoque!G:G,\"Entrada\")-SUMIFS(BDMovEstoque!C:C,BDMovEstoque!A:A,Tabela3[[#This Row],[Código]],BDMovEstoque!G:G,\"Saída\")","v":0},{"$f":"IF(Tabela3[[#This Row],[Saldo Estoque]]<Tabela3[[#This Row],[Estoque Mínimo]],\"Sim\",\"\")","v":""},{"$f":"Tabela3[[#This Row],[Saldo Estoque]]*Tabela3[[#This Row],[Valor]]","v":0}]
[118,null,null,null,null,{"$f":"SUMIFS(BDMovEstoque!C:C,BDMovEstoque!A:A,Tabela3[[#This Row],[Código]],BDMovEstoque!G:G,\"Entrada\")-SUMIFS(BDMovEstoque!C:C,BDMovEstoque!A:A,Tabela3[[#This Row],[Código]],BDMovEstoque!G:G,\"Saída\")","v":0},{"$f":"IF(Tabela3[[#This Row],[Saldo Estoque]]<Tabela3[[#This Row],[Estoque Mínimo]],\"Sim\",\"\")","v":""},{"$f":"Tabela3[[#This Row],[Saldo Estoque]]*Tabela3[[#This Row],[Valor]]","v":0}]
[119,null,null,null,null,{"$f":"SUMIFS(BDMovEstoque!C:C,BDMovEstoque!A:A,Tabela3[[#This Row],[Código]],BDMovEstoque!G:G,\"Entrada\")-SUMIFS(BDMovEstoque!C:C,BDMovEstoque!A:A,Tabela3[[#This Row],[Código]],BDMovEstoque!G:G,\"Saída\")","v":0},{"$f":"IF(Tabela3[[#This Row],[Saldo Estoque]]<Tabela3[[#This Row],[Estoque Mínimo]],\"Sim\",\"\")","v":""},{"$f":"Tabela3[[#This Row],[Saldo Estoque]]*Tabela3[[#This Row],[Valor]]","v":0}]
[120,null,null,null,null,{"$f":"SUMIFS(BDMovEstoque!C:C,BDMovEstoque!A:A,Tabela3[[#This Row],[Código]],BDMovEstoque!G:G,\"Entrada\")-SUMIFS(BDMovEstoque!C:C,BDMovEstoque!A:A,Tabela3[[#This Row],[Código]],BDMovEstoque!G:G,\"Saída\")","v":0},{"$f":"IF(Tabela3[[#This Row],[Saldo Estoque]]<Tabela3[[#This Row],[Estoque Mínimo]],\"Sim\",\"\")","v":""},{"$f":"Tabela3[[#This Row],[Saldo Estoque]]*Tabela3[[#This Row],[Valor]]","v":0}]
[121,null,null,null,null,{"$f":"SUMIFS(BDMovEstoque!C:C,BDMovEstoque!A:A,Tabela3[[#This Row],[Código]],BDMovEstoque!G:G,\"Entrada\")-SUMIFS(BDMovEstoque!C:C,BDMovEstoque!A:A,Tabela3[[#This Row],[Código]],BDMovEstoque!G:G,\"Saída\")","v":0},{"$f":"IF(Tabela3[[#This Row],[Saldo Estoque]]<Tabela3[[#This Row],[Estoque Mínimo]],\"Sim\",\"\")","v":""},{"$f":"Tabela3[[#This Row],[Saldo Estoque]]*Tabela3[[#This Row],[Valor]]","v":0}]
[122,null,null,null,null,{"$f":"SUMIFS(BDMovEstoque!C:C,BDMovEstoque!A:A,Tabela3[[#This Row],[Código]],BDMovEstoque!G:G,\"Entrada\")-SUMIFS(BDMovEstoque!C:C,BDMovEstoque!A:A,Tabela3[[#This Row],[Código]],BDMovEstoque!G:G,\"Saída\")","v":0},{"$f":"IF(Tabela3[[#This Row],[Saldo Estoque]]<Tabela3[[#This Row],[Estoque Mínimo]],\"Sim\",\"\")","v":""},{"$f":"Tabela3[[#This Row],[Saldo Estoque]]*Tabela3[[#This Row],[Valor]]","v":0}]
[123,null,null,null,null,{"$f":"SUMIFS(BDMovEstoque!C:C,BDMovEstoque!A:A,Tabela3[[#This Row],[Código]],BDMovEstoque!G:G,\"Entrada\")-SUMIFS(BDMovEstoque!C:C,BDMovEstoque!A:A,Tabela3[[#This Row],[Código]],BDMovEstoque!G:G,\"Saída\")","v":0},{"$f":"IF(Tabela3[[#This Row],[Saldo Estoque]]<Tabela3[[#This Row],[Estoque Mínimo]],\"Sim\",\"\")","v":""},{"$f":"Tabela3[[#This Row],[Saldo Estoque]]*Tabela3[[#This Row],[Valor]]","v":0}]
[124,null,null,null,null,{"$f":"SUMIFS(BDMovEstoque!C:C,BDMovEstoque!A:A,Tabela3[[#This Row],[Código]],BDMovEstoque!G:G,\"Entrada\")-SUMIFS(BDMovEstoque!C:C,BDMovEstoque!A:A,Tabela3[[#This Row],[Código]],BDMovEstoque!G:G,\"Saída\")","v":0},{"$f":"IF(Tabela3[[#This Row],[Saldo Estoque]]<Tabela3[[#This Row],[Estoque Mínimo]],\"Sim\",\"\")","v":""},{"$f":"Tabela3[[#This Row],[Saldo Estoque]]*Tabela3[[#This Row],[Valor]]","v":0}]
[125,null,null,null,null,{"$f":"SUMIFS(BDMovEstoque!C:C,BDMovEstoque!A:A,Tabela3[[#This Row],[Código]],BDMovEstoque!G:G,\"Entrada\")-SUMIFS(BDMovEstoque!C:C,BDMovEstoque!A:A,Tabela3[[#This Row],[Código]],BDMovEstoque!G:G,\"Saída\")","v":0},{"$f":"IF(Tabela3[[#This Row],[Saldo Estoque]]<Tabela3[[#This Row],[Estoque Mínimo]],\"Sim\",\"\")","v":""},{"$f":"Tabela3[[#This Row],[Saldo Estoque]]*Tabela3[[#This Row],[Valor]]","v":0}]
[126,null,null,null,null,{"$f":"SUMIFS(BDMovEstoque!C:C,BDMovEstoque!A:A,Tabela3[[#This Row],[Código]],BDMovEstoque!G:G,\"Entrada\")-SUMIFS(BDMovEstoque!C:C,BDMovEstoque!A:A,Tabela3[[#This Row],[Código]],BDMovEstoque!G:G,\"Saída\")","v":0},{"$f":"IF(Tabela3[[#This Row],[Saldo Estoque]]<Tabela3[[#This Row],[Estoque Mínimo]],\"Sim\",\"\")","v":""},{"$f":"Tabela3[[#This Row],[Saldo Estoque]]*Tabela3[[#This Row],[Valor]]","v":0}]
[127,null,null,null,null,{"$f":"SUMIFS(BDMovEstoque!C:C,BDMovEstoque!A:A,Tabela3[[#This Row],[Código]],BDMovEstoque!G:G,\"Entrada\")-SUMIFS(BDMovEstoque!C:C,BDMovEstoque!A:A,Tabela3[[#This Row],[Código]],BDMovEstoque!G:G,\"Saída\")","v":0},{"$f":"IF(Tabela3[[#This Row],[Saldo Estoque]]<Tabela3[[#This Row],[Estoque Mínimo]],\"Sim\",\"\")","v":""},{"$f":"Tabela3[[#This Row],[Saldo Estoque]]*Tabela3[[#This Row],[Valor]]","v":0}]
[128,null,null,null,null,{"$f":"SUMIFS(BDMovEstoque!C:C,BDMovEstoque!A:A,Tabela3[[#This Row],[Código]],BDMovEstoque!G:G,\"Entrada\")-SUMIFS(BDMovEstoque!C:C,BDMovEstoque!A:A,Tabela3[[#This Row],[Código]],BDMovEstoque!G:G,\"Saída\")","v":0},{"$f":"IF(Tabela3[[#This Row],[Saldo Estoque]]<Tabela3[[#This Row],[Estoque Mínimo]],\"Sim\",\"\")","v":""},{"$f":"Tabela3[[#This Row],[Saldo Estoque]]*Tabela3[[#This Row],[Valor]]","v":0}]
[129,null,null,null,null,{"$f":"SUMIFS(BDMovEstoque!C:C,BDMovEstoque!A:A,Tabela3[[#This Row],[Código]],BDMovEstoque!G:G,\"Entrada\")-SUMIFS(BDMovEstoque!C:C,BDMovEstoque!A:A,Tabela3[[#This Row],[Código]],BDMovEstoque!G:G,\"Saída\")","v":0},{"$f":"IF(Tabela3[[#This Row],[Saldo Estoque]]<Tabela3[[#This Row],[Estoque Mínimo]],\"Sim\",\"\")","v":""},{"$f":"Tabela3[[#This Row],[Saldo Estoque]]*Tabela3[[#This Row],[Valor]]","v":0}]
[130,null,null,null,null,{"$f":"SUMIFS(BDMovEstoque!C:C,BDMovEstoque!A:A,Tabela3[[#This Row],[Código]],BDMovEstoque!G:G,\"Entrada\")-SUMIFS(BDMovEstoque!C:C,BDMovEstoque!A:A,Tabela3[[#This Row],[Código]],BDMovEstoque!G:G,\"Saída\")","v":0},{"$f":"IF(Tabela3[[#This Row],[Saldo Estoque]]<Tabela3[[#This Row],[Estoque Mínimo]],\"Sim\",\"\")","v":""},{"$f":"Tabela3[[#This Row],[Saldo Estoque]]*Tabela3[[#This Row],[Valor]]","v":0}]
[131,null,null,null,null,{"$f":"SUMIFS(BDMovEstoque!C:C,BDMovEstoque!A:A,Tabela3[[#This Row],[Código]],BDMovEstoque!G:G,\"Entrada\")-SUMIFS(BDMovEstoque!C:C,BDMovEstoque!A:A,Tabela3[[#This Row],[Código]],BDMovEstoque!G:G,\"Saída\")","v":0},{"$f":"IF(Tabela3[[#This Row],[Saldo Estoque]]<Tabela3[[#This Row],[Estoque Mínimo]],\"Sim\",\"\")","v":""},{"$f":"Tabela3[[#This Row],[Saldo Estoque]]*Tabela3[[#This Row],[Valor]]","v":0}]
[132,null,null,null,null,{"$f":"SUMIFS(BDMovEstoque!C:C,BDMovEstoque!A:A,Tabela3[[#This Row],[Código]],BDMovEstoque!G:G,\"Entrada\")-SUMIFS(BDMovEstoque!C:C,BDMovEstoque!A:A,Tabela3[[#This Row],[Código]],BDMovEstoque!G:G,\"Saída\")","v":0},{"$f":"IF(Tabela3[[#This Row],[Saldo Estoque]]<Tabela3[[#This Row],[Estoque Mínimo]],\"Sim\",\"\")","v":""},{"$f":"Tabela3[[#This Row],[Saldo Estoque]]*Tabela3[[#This Row],[Valor]]","v":0}]
[133,null,null,null,null,{"$f":"SUMIFS(BDMovEstoque!C:C,BDMovEstoque!A:A,Tabela3[[#This Row],[Código]],BDMovEstoque!G:G,\"Entrada\")-SUMIFS(BDMovEstoque!C:C,BDMovEstoque!A:A,Tabela3[[#This Row],[Código]],BDMovEstoque!G:G,\"Saída\")","v":0},{"$f":"IF(Tabela3[[#This Row],[Saldo Estoque]]<Tabela3[[#This Row],[Estoque Mínimo]],\"Sim\",\"\")","v":""},{"$f":"Tabela3[[#This Row],[Saldo Estoque]]*Tabela3[[#This Row],[Valor]]","v":0}]
[134,null,null,null,null,{"$f":"SUMIFS(BDMovEstoque!C:C,BDMovEstoque!A:A,Tabela3[[#This Row],[Código]],BDMovEstoque!G:G,\"Entrada\")-SUMIFS(BDMovEstoque!C:C,BDMovEstoque!A:A,Tabela3[[#This Row],[Código]],BDMovEstoque!G:G,\"Saída\")","v":0},{"$f":"IF(Tabela3[[#This Row],[Saldo Estoque]]<Tabela3[[#This Row],[Estoque Mínimo]],\"Sim\",\"\")","v":""},{"$f":"Tabela3[[#This Row],[Saldo Estoque]]*Tabela3[[#This Row],[Valor]]","v":0}]
[135,null,null,null,null,{"$f":"SUMIFS(BDMovEstoque!C:C,BDMovEstoque!A:A,Tabela3[[#This Row],[Código]],BDMovEstoque!G:G,\"Entrada\")-SUMIFS(BDMovEstoque!C:C,BDMovEstoque!A:A,Tabela3[[#This Row],[Código]],BDMovEstoque!G:G,\"Saída\")","v":0},{"$f":"IF(Tabela3[[#This Row],[Saldo Estoque]]<Tabela3[[#This Row],[Estoque Mínimo]],\"Sim\",\"\")","v":""},{"$f":"Tabela3[[#This Row],[Saldo Estoque]]*Tabela3[[#This Row],[Valor]]","v":0}]
[136,null,null,null,null,{"$f":"SUMIFS(BDMovEstoque!C:C,BDMovEstoque!A:A,Tabela3[[#This Row],[Código]],BDMovEstoque!G:G,\"Entrada\")-SUMIFS(BDMovEstoque!C:C,BDMovEstoque!A:A,Tabela3[[#This Row],[Código]],BDMovEstoque!G:G,\"Saída\")","v":0},{"$f":"IF(Tabela3[[#This Row],[Saldo Estoque]]<Tabela3[[#This Row],[Estoque Mínimo]],\"Sim\",\"\")","v":""},{"$f":"Tabela3[[#This Row],[Saldo Estoque]]*Tabela3[[#This Row],[Valor]]","v":0}]
[137,null,null,null,null,{"$f":"SUMIFS(BDMovEstoque!C:C,BDMovEstoque!A:A,Tabela3[[#This Row],[Código]],BDMovEstoque!G:G,\"Entrada\")-SUMIFS(BDMovEstoque!C:C,BDMovEstoque!A:A,Tabela3[[#This Row],[Código]],BDMovEstoque!G:G,\"Saída\")","v":0},{"$f":"IF(Tabela3[[#This Row],[Saldo Estoque]]<Tabela3[[#This Row],[Estoque Mínimo]],\"Sim\",\"\")","v":""},{"$f":"Tabela3[[#This Row],[Saldo Estoque]]*Tabela3[[#This Row],[Valor]]","v":0}]
[138,null,null,null,null,{"$f":"SUMIFS(BDMovEstoque!C:C,BDMovEstoque!A:A,Tabela3[[#This Row],[Código]],BDMovEstoque!G:G,\"Entrada\")-SUMIFS(BDMovEstoque!C:C,BDMovEstoque!A:A,Tabela3[[#This Row],[Código]],BDMovEstoque!G:G,\"Saída\")","v":0},{"$f":"IF(Tabela3[[#This Row],[Saldo Estoque]]<Tabela3[[#This Row],[Estoque Mínimo]],\"Sim\",\"\")","v":""},{"$f":"Tabela3[[#This Row],[Saldo Estoque]]*Tabela3[[#This Row],[Valor]]","v":0}]
[139,null,null,null,null,{"$f":"SUMIFS(BDMovEstoque!C:C,BDMovEstoque!A:A,Tabela3[[#This Row],[Código]],BDMovEstoque!G:G,\"Entrada\")-SUMIFS(BDMovEstoque!C:C,BDMovEstoque!A:A,Tabela3[[#This Row],[Código]],BDMovEstoque!G:G,\"Saída\")","v":0},{"$f":"IF(Tabela3[[#This Row],[Saldo Estoque]]<Tabela3[[#This Row],[Estoque Mínimo]],\"Sim\",\"\")","v":""},{"$f":"Tabela3[[#This Row],[Saldo Estoque]]*Tabela3[[#This Row],[Valor]]","v":0}]
[140,null,null,null,null,{"$f":"SUMIFS(BDMovEstoque!C:C,BDMovEstoque!A:A,Tabela3[[#This Row],[Código]],BDMovEstoque!G:G,\"Entrada\")-SUMIFS(BDMovEstoque!C:C,BDMovEstoque!A:A,Tabela3[[#This Row],[Código]],BDMovEstoque!G:G,\"Saída\")","v":0},{"$f":"IF(Tabela3[[#This Row],[Saldo Estoque]]<Tabela3[[#This Row],[Estoque Mínimo]],\"Sim\",\"\")","v":""},{"$f":"Tabela3[[#This Row],[Saldo Estoque]]*Tabela3[[#This Row],[Valor]]","v":0}]
[141,null,null,null,null,{"$f":"SUMIFS(BDMovEstoque!C:C,BDMovEstoque!A:A,Tabela3[[#This Row],[Código]],BDMovEstoque!G:G,\"Entrada\")-SUMIFS(BDMovEstoque!C:C,BDMovEstoque!A:A,Tabela3[[#This Row],[Código]],BDMovEstoque!G:G,\"Saída\")","v":0},{"$f":"IF(Tabela3[[#This Row],[Saldo Estoque]]<Tabela3[[#This Row],[Estoque Mínimo]],\"Sim\",\"\")","v":""},{"$f":"Tabela3[[#This Row],[Saldo Estoque]]*Tabela3[[#This Row],[Valor]]","v":0}]
[142,null,null,null,null,{"$f":"SUMIFS(BDMovEstoque!C:C,BDMovEstoque!A:A,Tabela3[[#This Row],[Código]],BDMovEstoque!G:G,\"Entrada\")-SUMIFS(BDMovEstoque!C:C,BDMovEstoque!A:A,Tabela3[[#This Row],[Código]],BDMovEstoque!G:G,\"Saída\")","v":0},{"$f":"IF(Tabela3[[#This Row],[Saldo Estoque]]<Tabela3[[#This Row],[Estoque Mínimo]],\"Sim\",\"\")","v":""},{"$f":"Tabela3[[#This Row],[Saldo Estoque]]*Tabela3[[#This Row],[Valor]]","v":0}]
[143,null,null,null,null,{"$f":"SUMIFS(BDMovEstoque!C:C,BDMovEstoque!A:A,Tabela3[[#This Row],[Código]],BDMovEstoque!G:G,\"Entrada\")-SUMIFS(BDMovEstoque!C:C,BDMovEstoque!A:A,Tabela3[[#This Row],[Código]],BDMovEstoque!G:G,\"Saída\")","v":0},{"$f":"IF(Tabela3[[#This Row],[Saldo Estoque]]<Tabela3[[#This Row],[Estoque Mínimo]],\"Sim\",\"\")","v":""},{"$f":"Tabela3[[#This Row],[Saldo Estoque]]*Tabela3[[#This Row],[Valor]]","v":0}]
[144,null,null,null,null,{"$f":"SUMIFS(BDMovEstoque!C:C,BDMovEstoque!A:A,Tabela3[[#This Row],[Código]],BDMovEstoque!G:G,\"Entrada\")-SUMIFS(BDMovEstoque!C:C,BDMovEstoque!A:A,Tabela3[[#This Row],[Código]],BDMovEstoque!G:G,\"Saída\")","v":0},{"$f":"IF(Tabela3[[#This Row],[Saldo Estoque]]<Tabela3[[#This Row],[Estoque Mínimo]],\"Sim\",\"\")","v":""},{"$f":"Tabela3[[#This Row],[Saldo Estoque]]*Tabela3[[#This Row],[Valor]]","v":0}]
[145,null,null,null,null,{"$f":"SUMIFS(BDMovEstoque!C:C,BDMovEstoque!A:A,Tabela3[[#This Row],[Código]],BDMovEstoque!G:G,\"Entrada\")-SUMIFS(BDMovEstoque!C:C,BDMovEstoque!A:A,Tabela3[[#This Row],[Código]],BDMovEstoque!G:G,\"Saída\")","v":0},{"$f":"IF(Tabela3[[#This Row],[Saldo Estoque]]<Tabela3[[#This Row],[Estoque Mínimo]],\"Sim\",\"\")","v":""},{"$f":"Tabela3[[#This Row],[Saldo Estoque]]*Tabela3[[#This Row],[Valor]]","v":0}]
[146,null,null,null,null,{"$f":"SUMIFS(BDMovEstoque!C:C,BDMovEstoque!A:A,Tabela3[[#This Row],[Código]],BDMovEstoque!G:G,\"Entrada\")-SUMIFS(BDMovEstoque!C:C,BDMovEstoque!A:A,Tabela3[[#This Row],[Código]],BDMovEstoque!G:G,\"Saída\")","v":0},{"$f":"IF(Tabela3[[#This Row],[Saldo Estoque]]<Tabela3[[#This Row],[Estoque Mínimo]],\"Sim\",\"\")","v":""},{"$f":"Tabela3[[#This Row],[Saldo Estoque]]*Tabela3[[#This Row],[Valor]]","v":0}]
[147,null,null,null,null,{"$f":"SUMIFS(BDMovEstoque!C:C,BDMovEstoque!A:A,Tabela3[[#This Row],[Código]],BDMovEstoque!G:G,\"Entrada\")-SUMIFS(BDMovEstoque!C:C,BDMovEstoque!A:A,Tabela3[[#This Row],[Código]],BDMovEstoque!G:G,\"Saída\")","v":0},{"$f":"IF(Tabela3[[#This Row],[Saldo Estoque]]<Tabela3[[#This Row],[Estoque Mínimo]],\"Sim\",\"\")","v":""},{"$f":"Tabela3[[#This Row],[Saldo Estoque]]*Tabela3[[#This Row],[Valor]]","v":0}]
[148,null,null,null,null,{"$f":"SUMIFS(BDMovEstoque!C:C,BDMovEstoque!A:A,Tabela3[[#This Row],[Código]],BDMovEstoque!G:G,\"Entrada\")-SUMIFS(BDMovEstoque!C:C,BDMovEstoque!A:A,Tabela3[[#This Row],[Código]],BDMovEstoque!G:G,\"Saída\")","v":0},{"$f":"IF(Tabela3[[#This Row],[Saldo Estoque]]<Tabela3[[#This Row],[Estoque Mínimo]],\"Sim\",\"\")","v":""},{"$f":"Tabela3[[#This Row],[Saldo Estoque]]*Tabela3[[#This Row],[Valor]]","v":0}]
[149,null,null,null,null,{"$f":"SUMIFS(BDMovEstoque!C:C,BDMovEstoque!A:A,Tabela3[[#This Row],[Código]],BDMovEstoque!G:G,\"Entrada\")-SUMIFS(BDMovEstoque!C:C,BDMovEstoque!A:A,Tabela3[[#This Row],[Código]],BDMovEstoque!G:G,\"Saída\")","v":0},{"$f":"IF(Tabela3[[#This Row],[Saldo Estoque]]<Tabela3[[#This Row],[Estoque Mínimo]],\"Sim\",\"\")","v":""},{"$f":"Tabela3[[#This Row],[Saldo Estoque]]*Tabela3[[#This Row],[Valor]]","v":0}]
[150,null,null,null,null,{"$f":"SUMIFS(BDMovEstoque!C:C,BDMovEstoque!A:A,Tabela3[[#This Row],[Código]],BDMovEstoque!G:G,\"Entrada\")-SUMIFS(BDMovEstoque!C:C,BDMovEstoque!A:A,Tabela3[[#This Row],[Código]],BDMovEstoque!G:G,\"Saída\")","v":0},{"$f":"IF(Tabela3[[#This Row],[Saldo Estoque]]<Tabela3[[#This Row],[Estoque Mínimo]],\"Sim\",\"\")","v":""},{"$f":"Tabela3[[#This Row],[Saldo Estoque]]*Tabela3[[#This Row],[Valor]]","v":0}]
[151,null,null,null,null,{"$f":"SUMIFS(BDMovEstoque!C:C,BDMovEstoque!A:A,Tabela3[[#This Row],[Código]],BDMovEstoque!G:G,\"Entrada\")-SUMIFS(BDMovEstoque!C:C,BDMovEstoque!A:A,Tabela3[[#This Row],[Código]],BDMovEstoque!G:G,\"Saída\")","v":0},{"$f":"IF(Tabela3[[#This Row],[Saldo Estoque]]<Tabela3[[#This Row],[Estoque Mínimo]],\"Sim\",\"\")","v":""},{"$f":"Tabela3[[#This Row],[Saldo Estoque]]*Tabela3[[#This Row],[Valor]]","v":0}]
[152,null,null,null,null,{"$f":"SUMIFS(BDMovEstoque!C:C,BDMovEstoque!A:A,Tabela3[[#This Row],[Código]],BDMovEstoque!G:G,\"Entrada\")-SUMIFS(BDMovEstoque!C:C,BDMovEstoque!A:A,Tabela3[[#This Row],[Código]],BDMovEstoque!G:G,\"Saída\")","v":0},{"$f":"IF(Tabela3[[#This Row],[Saldo Estoque]]<Tabela3[[#This Row],[Estoque Mínimo]],\"Sim\",\"\")","v":""},{"$f":"Tabela3[[#This Row],[Saldo Estoque]]*Tabela3[[#This Row],[Valor]]","v":0}]
[153,null,null,null,null,{"$f":"SUMIFS(BDMovEstoque!C:C,BDMovEstoque!A:A,Tabela3[[#This Row],[Código]],BDMovEstoque!G:G,\"Entrada\")-SUMIFS(BDMovEstoque!C:C,BDMovEstoque!A:A,Tabela3[[#This Row],[Código]],BDMovEstoque!G:G,\"Saída\")","v":0},{"$f":"IF(Tabela3[[#This Row],[Saldo Estoque]]<Tabela3[[#This Row],[Estoque Mínimo]],\"Sim\",\"\")","v":""},{"$f":"Tabela3[[#This Row],[Saldo Estoque]]*Tabela3[[#This Row],[Valor]]","v":0}]
[154,null,null,null,null,{"$f":"SUMIFS(BDMovEstoque!C:C,BDMovEstoque!A:A,Tabela3[[#This Row],[Código]],BDMovEstoque!G:G,\"Entrada\")-SUMIFS(BDMovEstoque!C:C,BDMovEstoque!A:A,Tabela3[[#This Row],[Código]],BDMovEstoque!G:G,\"Saída\")","v":0},{"$f":"IF(Tabela3[[#This Row],[Saldo Estoque]]<Tabela3[[#This Row],[Estoque Mínimo]],\"Sim\",\"\")","v":""},{"$f":"Tabela3[[#This Row],[Saldo Estoque]]*Tabela3[[#This Row],[Valor]]","v":0}]
[155,null,null,null,null,{"$f":"SUMIFS(BDMovEstoque!C:C,BDMovEstoque!A:A,Tabela3[[#This Row],[Código]],BDMovEstoque!G:G,\"Entrada\")-SUMIFS(BDMovEstoque!C:C,BDMovEstoque!A:A,Tabela3[[#This Row],[Código]],BDMovEstoque!G:G,\"Saída\")","v":0},{"$f":"IF(Tabela3[[#This Row],[Saldo Estoque]]<Tabela3[[#This Row],[Estoque Mínimo]],\"Sim\",\"\")","v":""},{"$f":"Tabela3[[#This Row],[Saldo Estoque]]*Tabela3[[#This Row],[Valor]]","v":0}]
[156,null,null,null,null,{"$f":"SUMIFS(BDMovEstoque!C:C,BDMovEstoque!A:A,Tabela3[[#This Row],[Código]],BDMovEstoque!G:G,\"Entrada\")-SUMIFS(BDMovEstoque!C:C,BDMovEstoque!A:A,Tabela3[[#This Row],[Código]],BDMovEstoque!G:G,\"Saída\")","v":0},{"$f":"IF(Tabela3[[#This Row],[Saldo Estoque]]<Tabela3[[#This Row],[Estoque Mínimo]],\"Sim\",\"\")","v":""},{"$f":"Tabela3[[#This Row],[Saldo Estoque]]*Tabela3[[#This Row],[Valor]]","v":0}]
[157,null,null,null,null,{"$f":"SUMIFS(BDMovEstoque!C:C,BDMovEstoque!A:A,Tabela3[[#This Row],[Código]],BDMovEstoque!G:G,\"Entrada\")-SUMIFS(BDMovEstoque!C:C,BDMovEstoque!A:A,Tabela3[[#This Row],[Código]],BDMovEstoque!G:G,\"Saída\")","v":0},{"$f":"IF(Tabela3[[#This Row],[Saldo Estoque]]<Tabela3[[#This Row],[Estoque Mínimo]],\"Sim\",\"\")","v":""},{"$f":"Tabela3[[#This Row],[Saldo Estoque]]*Tabela3[[#This Row],[Valor]]","v":0}]
[158,null,null,null,null,{"$f":"SUMIFS(BDMovEstoque!C:C,BDMovEstoque!A:A,Tabela3[[#This Row],[Código]],BDMovEstoque!G:G,\"Entrada\")-SUMIFS(BDMovEstoque!C:C,BDMovEstoque!A:A,Tabela3[[#This Row],[Código]],BDMovEstoque!G:G,\"Saída\")","v":0},{"$f":"IF(Tabela3[[#This Row],[Saldo Estoque]]<Tabela3[[#This Row],[Estoque Mínimo]],\"Sim\",\"\")","v":""},{"$f":"Tabela3[[#This Row],[Saldo Estoque]]*Tabela3[[#This Row],[Valor]]","v":0}]
[159,null,null,null,null,{"$f":"SUMIFS(BDMovEstoque!C:C,BDMovEstoque!A:A,Tabela3[[#This Row],[Código]],BDMovEstoque!G:G,\"Entrada\")-SUMIFS(BDMovEstoque!C:C,BDMovEstoque!A:A,Tabela3[[#This Row],[Código]],BDMovEstoque!G:G,\"Saída\")","v":0},{"$f":"IF(Tabela3[[#This Row],[Saldo Estoque]]<Tabela3[[#This Row],[Estoque Mínimo]],\"Sim\",\"\")","v":""},{"$f":"Tabela3[[#This Row],[Saldo Estoque]]*Tabela3[[#This Row],[Valor]]","v":0}]
[160,null,null,null,null,{"$f":"SUMIFS(BDMovEstoque!C:C,BDMovEstoque!A:A,Tabela3[[#This Row],[Código]],BDMovEstoque!G:G,\"Entrada\")-SUMIFS(BDMovEstoque!C:C,BDMovEstoque!A:A,Tabela3[[#This Row],[Código]],BDMovEstoque!G:G,\"Saída\")","v":0},{"$f":"IF(Tabela3[[#This Row],[Saldo Estoque]]<Tabela3[[#This Row],[Estoque Mínimo]],\"Sim\",\"\")","v":""},{"$f":"Tabela3[[#This Row],[Saldo Estoque]]*Tabela3[[#This Row],[Valor]]","v":0}]
[161,null,null,null,null,{"$f":"SUMIFS(BDMovEstoque!C:C,BDMovEstoque!A:A,Tabela3[[#This Row],[Código]],BDMovEstoque!G:G,\"Entrada\")-SUMIFS(BDMovEstoque!C:C,BDMovEstoque!A:A,Tabela3[[#This Row],[Código]],BDMovEstoque!G:G,\"Saída\")","v":0},{"$f":"IF(Tabela3[[#This Row],[Saldo Estoque]]<Tabela3[[#This Row],[Estoque Mínimo]],\"Sim\",\"\")","v":""},{"$f":"Tabela3[[#This Row],[Saldo Estoque]]*Tabela3[[#This Row],[Valor]]","v":0}]
[162,null,null,null,null,{"$f":"SUMIFS(BDMovEstoque!C:C,BDMovEstoque!A:A,Tabela3[[#This Row],[Código]],BDMovEstoque!G:G,\"Entrada\")-SUMIFS(BDMovEstoque!C:C,BDMovEstoque!A:A,Tabela3[[#This Row],[Código]],BDMovEstoque!G:G,\"Saída\")","v":0},{"$f":"IF(Tabela3[[#This Row],[Saldo Estoque]]<Tabela3[[#This Row],[Estoque Mínimo]],\"Sim\",\"\")","v":""},{"$f":"Tabela3[[#This Row],[Saldo Estoque]]*Tabela3[[#This Row],[Valor]]","v":0}]
[163,null,null,null,null,{"$f":"SUMIFS(BDMovEstoque!C:C,BDMovEstoque!A:A,Tabela3[[#This Row],[Código]],BDMovEstoque!G:G,\"Entrada\")-SUMIFS(BDMovEstoque!C:C,BDMovEstoque!A:A,Tabela3[[#This Row],[Código]],BDMovEstoque!G:G,\"Saída\")","v":0},{"$f":"IF(Tabela3[[#This Row],[Saldo Estoque]]<Tabela3[[#This Row],[Estoque Mínimo]],\"Sim\",\"\")","v":""},{"$f":"Tabela3[[#This Row],[Saldo Estoque]]*Tabela3[[#This Row],[Valor]]","v":0}]
[164,null,null,null,null,{"$f":"SUMIFS(BDMovEstoque!C:C,BDMovEstoque!A:A,Tabela3[[#This Row],[Código]],BDMovEstoque!G:G,\"Entrada\")-SUMIFS(BDMovEstoque!C:C,BDMovEstoque!A:A,Tabela3[[#This Row],[Código]],BDMovEstoque!G:G,\"Saída\")","v":0},{"$f":"IF(Tabela3[[#This Row],[Saldo Estoque]]<Tabela3[[#This Row],[Estoque Mínimo]],\"Sim\",\"\")","v":""},{"$f":"Tabela3[[#This Row],[Saldo Estoque]]*Tabela3[[#This Row],[Valor]]","v":0}]
[165,null,null,null,null,{"$f":"SUMIFS(BDMovEstoque!C:C,BDMovEstoque!A:A,Tabela3[[#This Row],[Código]],BDMovEstoque!G:G,\"Entrada\")-SUMIFS(BDMovEstoque!C:C,BDMovEstoque!A:A,Tabela3[[#This Row],[Código]],BDMovEstoque!G:G,\"Saída\")","v":0},{"$f":"IF(Tabela3[[#This Row],[Saldo Estoque]]<Tabela3[[#This Row],[Estoque Mínimo]],\"Sim\",\"\")","v":""},{"$f":"Tabela3[[#This Row],[Saldo Estoque]]*Tabela3[[#This Row],[Valor]]","v":0}]
[166,null,null,null,null,{"$f":"SUMIFS(BDMovEstoque!C:C,BDMovEstoque!A:A,Tabela3[[#This Row],[Código]],BDMovEstoque!G:G,\"Entrada\")-SUMIFS(BDMovEstoque!C:C,BDMovEstoque!A:A,Tabela3[[#This Row],[Código]],BDMovEstoque!G:G,\"Saída\")","v":0},{"$f":"IF(Tabela3[[#This Row],[Saldo Estoque]]<Tabela3[[#This Row],[Estoque Mínimo]],\"Sim\",\"\")","v":""},{"$f":"Tabela3[[#This Row],[Saldo Estoque]]*Tabela3[[#This Row],[Valor]]","v":0}]
[167,null,null,null,null,{"$f":"SUMIFS(BDMovEstoque!C:C,BDMovEstoque!A:A,Tabela3[[#This Row],[Código]],BDMovEstoque!G:G,\"Entrada\")-SUMIFS(BDMovEstoque!C:C,BDMovEstoque!A:A,Tabela3[[#This Row],[Código]],BDMovEstoque!G:G,\"Saída\")","v":0},{"$f":"IF(Tabela3[[#This Row],[Saldo Estoque]]<Tabela3[[#This Row],[Estoque Mínimo]],\"Sim\",\"\")","v":""},{"$f":"Tabela3[[#This Row],[Saldo Estoque]]*Tabela3[[#This Row],[Valor]]","v":0}]
[168,null,null,null,null,{"$f":"SUMIFS(BDMovEstoque!C:C,BDMovEstoque!A:A,Tabela3[[#This Row],[Código]],BDMovEstoque!G:G,\"Entrada\")-SUMIFS(BDMovEstoque!C:C,BDMovEstoque!A:A,Tabela3[[#This Row],[Código]],BDMovEstoque!G:G,\"Saída\")","v":0},{"$f":"IF(Tabela3[[#This Row],[Saldo Estoque]]<Tabela3[[#This Row],[Estoque Mínimo]],\"Sim\",\"\")","v":""},{"$f":"Tabela3[[#This Row],[Saldo Estoque]]*Tabela3[[#This Row],[Valor]]","v":0}]
[169,null,null,null,null,{"$f":"SUMIFS(BDMovEstoque!C:C,BDMovEstoque!A:A,Tabela3[[#This Row],[Código]],BDMovEstoque!G:G,\"Entrada\")-SUMIFS(BDMovEstoque!C:C,BDMovEstoque!A:A,Tabela3[[#This Row],[Código]],BDMovEstoque!G:G,\"Saída\")","v":0},{"$f":"IF(Tabela3[[#This Row],[Saldo Estoque]]<Tabela3[[#This Row],[Estoque Mínimo]],\"Sim\",\"\")","v":""},{"$f":"Tabela3[[#This Row],[Saldo Estoque]]*Tabela3[[#This Row],[Valor]]","v":0}]
[170,null,null,null,null,{"$f":"SUMIFS(BDMovEstoque!C:C,BDMovEstoque!A:A,Tabela3[[#This Row],[Código]],BDMovEstoque!G:G,\"Entrada\")-SUMIFS(BDMovEstoque!C:C,BDMovEstoque!A:A,Tabela3[[#This Row],[Código]],BDMovEstoque!G:G,\"Saída\")","v":0},{"$f":"IF(Tabela3[[#This Row],[Saldo Estoque]]<Tabela3[[#This Row],[Estoque Mínimo]],\"Sim\",\"\")","v":""},{"$f":"Tabela3[[#This Row],[Saldo Estoque]]*Tabela3[[#This Row],[Valor]]","v":0}]
[171,null,null,null,null,{"$f":"SUMIFS(BDMovEstoque!C:C,BDMovEstoque!A:A,Tabela3[[#This Row],[Código]],BDMovEstoque!G:G,\"Entrada\")-SUMIFS(BDMovEstoque!C:C,BDMovEstoque!A:A,Tabela3[[#This Row],[Código]],BDMovEstoque!G:G,\"Saída\")","v":0},{"$f":"IF(Tabela3[[#This Row],[Saldo Estoque]]<Tabela3[[#This Row],[Estoque Mínimo]],\"Sim\",\"\")","v":""},{"$f":"Tabela3[[#This Row],[Saldo Estoque]]*Tabela3[[#This Row],[Valor]]","v":0}]
[172,null,null,null,null,{"$f":"SUMIFS(BDMovEstoque!C:C,BDMovEstoque!A:A,Tabela3[[#This Row],[Código]],BDMovEstoque!G:G,\"Entrada\")-SUMIFS(BDMovEstoque!C:C,BDMovEstoque!A:A,Tabela3[[#This Row],[Código]],BDMovEstoque!G:G,\"Saída\")","v":0},{"$f":"IF(Tabela3[[#This Row],[Saldo Estoque]]<Tabela3[[#This Row],[Estoque Mínimo]],\"Sim\",\"\")","v":""},{"$f":"Tabela3[[#This Row],[Saldo Estoque]]*Tabela3[[#This Row],[Valor]]","v":0}]
[173,null,null,null,null,{"$f":"SUMIFS(BDMovEstoque!C:C,BDMovEstoque!A:A,Tabela3[[#This Row],[Código]],BDMovEstoque!G:G,\"Entrada\")-SUMIFS(BDMovEstoque!C:C,BDMovEstoque!A:A,Tabela3[[#This Row],[Código]],BDMovEstoque!G:G,\"Saída\")","v":0},{"$f":"IF(Tabela3[[#This Row],[Saldo Estoque]]<Tabela3[[#This Row],[Estoque Mínimo]],\"Sim\",\"\")","v":""},{"$f":"Tabela3[[#This Row],[Saldo Estoque]]*Tabela3[[#This Row],[Valor]]","v":0}]
[174,null,null,null,null,{"$f":"SUMIFS(BDMovEstoque!C:C,BDMovEstoque!A:A,Tabela3[[#This Row],[Código]],BDMovEstoque!G:G,\"Entrada\")-SUMIFS(BDMovEstoque!C:C,BDMovEstoque!A:A,Tabela3[[#This Row],[Código]],BDMovEstoque!G:G,\"Saída\")","v":0},{"$f":"IF(Tabela3[[#This Row],[Saldo Estoque]]<Tabela3[[#This Row],[Estoque Mínimo]],\"Sim\",\"\")","v":""},{"$f":"Tabela3[[#This Row],[Saldo Estoque]]*Tabela3[[#This Row],[Valor]]","v":0}]
[175,null,null,null,null,{"$f":"SUMIFS(BDMovEstoque!C:C,BDMovEstoque!A:A,Tabela3[[#This Row],[Código]],BDMovEstoque!G:G,\"Entrada\")-SUMIFS(BDMovEstoque!C:C,BDMovEstoque!A:A,Tabela3[[#This Row],[Código]],BDMovEstoque!G:G,\"Saída\")","v":0},{"$f":"IF(Tabela3[[#This Row],[Saldo Estoque]]<Tabela3[[#This Row],[Estoque Mínimo]],\"Sim\",\"\")","v":""},{"$f":"Tabela3[[#This Row],[Saldo Estoque]]*Tabela3[[#This Row],[Valor]]","v":0}]
[176,null,null,null,null,{"$f":"SUMIFS(BDMovEstoque!C:C,BDMovEstoque!A:A,Tabela3[[#This Row],[Código]],BDMovEstoque!G:G,\"Entrada\")-SUMIFS(BDMovEstoque!C:C,BDMovEstoque!A:A,Tabela3[[#This Row],[Código]],BDMovEstoque!G:G,\"Saída\")","v":0},{"$f":"IF(Tabela3[[#This Row],[Saldo Estoque]]<Tabela3[[#This Row],[Estoque Mínimo]],\"Sim\",\"\")","v":""},{"$f":"Tabela3[[#This Row],[Saldo Estoque]]*Tabela3[[#This Row],[Valor]]","v":0}]
[177,null,null,null,null,{"$f":"SUMIFS(BDMovEstoque!C:C,BDMovEstoque!A:A,Tabela3[[#This Row],[Código]],BDMovEstoque!G:G,\"Entrada\")-SUMIFS(BDMovEstoque!C:C,BDMovEstoque!A:A,Tabela3[[#This Row],[Código]],BDMovEstoque!G:G,\"Saída\")","v":0},{"$f":"IF(Tabela3[[#This Row],[Saldo Estoque]]<Tabela3[[#This Row],[Estoque Mínimo]],\"Sim\",\"\")","v":""},{"$f":"Tabela3[[#This Row],[Saldo Estoque]]*Tabela3[[#This Row],[Valor]]","v":0}]
[178,null,null,null,null,{"$f":"SUMIFS(BDMovEstoque!C:C,BDMovEstoque!A:A,Tabela3[[#This Row],[Código]],BDMovEstoque!G:G,\"Entrada\")-SUMIFS(BDMovEstoque!C:C,BDMovEstoque!A:A,Tabela3[[#This Row],[Código]],BDMovEstoque!G:G,\"Saída\")","v":0},{"$f":"IF(Tabela3[[#This Row],[Saldo Estoque]]<Tabela3[[#This Row],[Estoque Mínimo]],\"Sim\",\"\")","v":""},{"$f":"Tabela3[[#This Row],[Saldo Estoque]]*Tabela3[[#This Row],[Valor]]","v":0}]
[179,null,null,null,null,{"$f":"SUMIFS(BDMovEstoque!C:C,BDMovEstoque!A:A,Tabela3[[#This Row],[Código]],BDMovEstoque!G:G,\"Entrada\")-SUMIFS(BDMovEstoque!C:C,BDMovEstoque!A:A,Tabela3[[#This Row],[Código]],BDMovEstoque!G:G,\"Saída\")","v":0},{"$f":"IF(Tabela3[[#This Row],[Saldo Estoque]]<Tabela3[[#This Row],[Estoque Mínimo]],\"Sim\",\"\")","v":""},{"$f":"Tabela3[[#This Row],[Saldo Estoque]]*Tabela3[[#This Row],[Valor]]","v":0}]
[180,null,null,null,null,{"$f":"SUMIFS(BDMovEstoque!C:C,BDMovEstoque!A:A,Tabela3[[#This Row],[Código]],BDMovEstoque!G:G,\"Entrada\")-SUMIFS(BDMovEstoque!C:C,BDMovEstoque!A:A,Tabela3[[#This Row],[Código]],BDMovEstoque!G:G,\"Saída\")","v":0},{"$f":"IF(Tabela3[[#This Row],[Saldo Estoque]]<Tabela3[[#This Row],[Estoque Mínimo]],\"Sim\",\"\")","v":""},{"$f":"Tabela3[[#This Row],[Saldo Estoque]]*Tabela3[[#This Row],[Valor]]","v":0}]
[181,null,null,null,null,{"$f":"SUMIFS(BDMovEstoque!C:C,BDMovEstoque!A:A,Tabela3[[#This Row],[Código]],BDMovEstoque!G:G,\"Entrada\")-SUMIFS(BDMovEstoque!C:C,BDMovEstoque!A:A,Tabela3[[#This Row],[Código]],BDMovEstoque!G:G,\"Saída\")","v":0},{"$f":"IF(Tabela3[[#This Row],[Saldo Estoque]]<Tabela3[[#This Row],[Estoque Mínimo]],\"Sim\",\"\")","v":""},{"$f":"Tabela3[[#This Row],[Saldo Estoque]]*Tabela3[[#This Row],[Valor]]","v":0}]
[182,null,null,null,null,{"$f":"SUMIFS(BDMovEstoque!C:C,BDMovEstoque!A:A,Tabela3[[#This Row],[Código]],BDMovEstoque!G:G,\"Entrada\")-SUMIFS(BDMovEstoque!C:C,BDMovEstoque!A:A,Tabela3[[#This Row],[Código]],BDMovEstoque!G:G,\"Saída\")","v":0},{"$f":"IF(Tabela3[[#This Row],[Saldo Estoque]]<Tabela3[[#This Row],[Estoque Mínimo]],\"Sim\",\"\")","v":""},{"$f":"Tabela3[[#This Row],[Saldo Estoque]]*Tabela3[[#This Row],[Valor]]","v":0}]
[183,null,null,null,null,{"$f":"SUMIFS(BDMovEstoque!C:C,BDMovEstoque!A:A,Tabela3[[#This Row],[Código]],BDMovEstoque!G:G,\"Entrada\")-SUMIFS(BDMovEstoque!C:C,BDMovEstoque!A:A,Tabela3[[#This Row],[Código]],BDMovEstoque!G:G,\"Saída\")","v":0},{"$f":"IF(Tabela3[[#This Row],[Saldo Estoque]]<Tabela3[[#This Row],[Estoque Mínimo]],\"Sim\",\"\")","v":""},{"$f":"Tabela3[[#This Row],[Saldo Estoque]]*Tabela3[[#This Row],[Valor]]","v":0}]
[184,null,null,null,null,{"$f":"SUMIFS(BDMovEstoque!C:C,BDMovEstoque!A:A,Tabela3[[#This Row],[Código]],BDMovEstoque!G:G,\"Entrada\")-SUMIFS(BDMovEstoque!C:C,BDMovEstoque!A:A,Tabela3[[#This Row],[Código]],BDMovEstoque!G:G,\"Saída\")","v":0},{"$f":"IF(Tabela3[[#This Row],[Saldo Estoque]]<Tabela3[[#This Row],[Estoque Mínimo]],\"Sim\",\"\")","v":""},{"$f":"Tabela3[[#This Row],[Saldo Estoque]]*Tabela3[[#This Row],[Valor]]","v":0}]
[185,null,null,null,null,{"$f":"SUMIFS(BDMovEstoque!C:C,BDMovEstoque!A:A,Tabela3[[#This Row],[Código]],BDMovEstoque!G:G,\"Entrada\")-SUMIFS(BDMovEstoque!C:C,BDMovEstoque!A:A,Tabela3[[#This Row],[Código]],BDMovEstoque!G:G,\"Saída\")","v":0},{"$f":"IF(Tabela3[[#This Row],[Saldo Estoque]]<Tabela3[[#This Row],[Estoque Mínimo]],\"Sim\",\"\")","v":""},{"$f":"Tabela3[[#This Row],[Saldo Estoque]]*Tabela3[[#This Row],[Valor]]","v":0}]
[186,null,null,null,null,{"$f":"SUMIFS(BDMovEstoque!C:C,BDMovEstoque!A:A,Tabela3[[#This Row],[Código]],BDMovEstoque!G:G,\"Entrada\")-SUMIFS(BDMovEstoque!C:C,BDMovEstoque!A:A,Tabela3[[#This Row],[Código]],BDMovEstoque!G:G,\"Saída\")","v":0},{"$f":"IF(Tabela3[[#This Row],[Saldo Estoque]]<Tabela3[[#This Row],[Estoque Mínimo]],\"Sim\",\"\")","v":""},{"$f":"Tabela3[[#This Row],[Saldo Estoque]]*Tabela3[[#This Row],[Valor]]","v":0}]
[187,null,null,null,null,{"$f":"SUMIFS(BDMovEstoque!C:C,BDMovEstoque!A:A,Tabela3[[#This Row],[Código]],BDMovEstoque!G:G,\"Entrada\")-SUMIFS(BDMovEstoque!C:C,BDMovEstoque!A:A,Tabela3[[#This Row],[Código]],BDMovEstoque!G:G,\"Saída\")","v":0},{"$f":"IF(Tabela3[[#This Row],[Saldo Estoque]]<Tabela3[[#This Row],[Estoque Mínimo]],\"Sim\",\"\")","v":""},{"$f":"Tabela3[[#This Row],[Saldo Estoque]]*Tabela3[[#This Row],[Valor]]","v":0}]
[188,null,null,null,null,{"$f":"SUMIFS(BDMovEstoque!C:C,BDMovEstoque!A:A,Tabela3[[#This Row],[Código]],BDMovEstoque!G:G,\"Entrada\")-SUMIFS(BDMovEstoque!C:C,BDMovEstoque!A:A,Tabela3[[#This Row],[Código]],BDMovEstoque!G:G,\"Saída\")","v":0},{"$f":"IF(Tabela3[[#This Row],[Saldo Estoque]]<Tabela3[[#This Row],[Estoque Mínimo]],\"Sim\",\"\")","v":""},{"$f":"Tabela3[[#This Row],[Saldo Estoque]]*Tabela3[[#This Row],[Valor]]","v":0}]
[189,null,null,null,null,{"$f":"SUMIFS(BDMovEstoque!C:C,BDMovEstoque!A:A,Tabela3[[#This Row],[Código]],BDMovEstoque!G:G,\"Entrada\")-SUMIFS(BDMovEstoque!C:C,BDMovEstoque!A:A,Tabela3[[#This Row],[Código]],BDMovEstoque!G:G,\"Saída\")","v":0},{"$f":"IF(Tabela3[[#This Row],[Saldo Estoque]]<Tabela3[[#This Row],[Estoque Mínimo]],\"Sim\",\"\")","v":""},{"$f":"Tabela3[[#This Row],[Saldo Estoque]]*Tabela3[[#This Row],[Valor]]","v":0}]
[190,null,null,null,null,{"$f":"SUMIFS(BDMovEstoque!C:C,BDMovEstoque!A:A,Tabela3[[#This Row],[Código]],BDMovEstoque!G:G,\"Entrada\")-SUMIFS(BDMovEstoque!C:C,BDMovEstoque!A:A,Tabela3[[#This Row],[Código]],BDMovEstoque!G:G,\"Saída\")","v":0},{"$f":"IF(Tabela3[[#This Row],[Saldo Estoque]]<Tabela3[[#This Row],[Estoque Mínimo]],\"Sim\",\"\")","v":""},{"$f":"Tabela3[[#This Row],[Saldo Estoque]]*Tabela3[[#This Row],[Valor]]","v":0}]
[191,null,null,null,null,{"$f":"SUMIFS(BDMovEstoque!C:C,BDMovEstoque!A:A,Tabela3[[#This Row],[Código]],BDMovEstoque!G:G,\"Entrada\")-SUMIFS(BDMovEstoque!C:C,BDMovEstoque!A:A,Tabela3[[#This Row],[Código]],BDMovEstoque!G:G,\"Saída\")","v":0},{"$f":"IF(Tabela3[[#This Row],[Saldo Estoque]]<Tabela3[[#This Row],[Estoque Mínimo]],\"Sim\",\"\")","v":""},{"$f":"Tabela3[[#This Row],[Saldo Estoque]]*Tabela3[[#This Row],[Valor]]","v":0}]
[192,null,null,null,null,{"$f":"SUMIFS(BDMovEstoque!C:C,BDMovEstoque!A:A,Tabela3[[#This Row],[Código]],BDMovEstoque!G:G,\"Entrada\")-SUMIFS(BDMovEstoque!C:C,BDMovEstoque!A:A,Tabela3[[#This Row],[Código]],BDMovEstoque!G:G,\"Saída\")","v":0},{"$f":"IF(Tabela3[[#This Row],[Saldo Estoque]]<Tabela3[[#This Row],[Estoque Mínimo]],\"Sim\",\"\")","v":""},{"$f":"Tabela3[[#This Row],[Saldo Estoque]]*Tabela3[[#This Row],[Valor]]","v":0}]
[193,null,null,null,null,{"$f":"SUMIFS(BDMovEstoque!C:C,BDMovEstoque!A:A,Tabela3[[#This Row],[Código]],BDMovEstoque!G:G,\"Entrada\")-SUMIFS(BDMovEstoque!C:C,BDMovEstoque!A:A,Tabela3[[#This Row],[Código]],BDMovEstoque!G:G,\"Saída\")","v":0},{"$f":"IF(Tabela3[[#This Row],[Saldo Estoque]]<Tabela3[[#This Row],[Estoque Mínimo]],\"Sim\",\"\")","v":""},{"$f":"Tabela3[[#This Row],[Saldo Estoque]]*Tabela3[[#This Row],[Valor]]","v":0}]
[194,null,null,null,null,{"$f":"SUMIFS(BDMovEstoque!C:C,BDMovEstoque!A:A,Tabela3[[#This Row],[Código]],BDMovEstoque!G:G,\"Entrada\")-SUMIFS(BDMovEstoque!C:C,BDMovEstoque!A:A,Tabela3[[#This Row],[Código]],BDMovEstoque!G:G,\"Saída\")","v":0},{"$f":"IF(Tabela3[[#This Row],[Saldo Estoque]]<Tabela3[[#This Row],[Estoque Mínimo]],\"Sim\",\"\")","v":""},{"$f":"Tabela3[[#This Row],[Saldo Estoque]]*Tabela3[[#This Row],[Valor]]","v":0}]
[195,null,null,null,null,{"$f":"SUMIFS(BDMovEstoque!C:C,BDMovEstoque!A:A,Tabela3[[#This Row],[Código]],BDMovEstoque!G:G,\"Entrada\")-SUMIFS(BDMovEstoque!C:C,BDMovEstoque!A:A,Tabela3[[#This Row],[Código]],BDMovEstoque!G:G,\"Saída\")","v":0},{"$f":"IF(Tabela3[[#This Row],[Saldo Estoque]]<Tabela3[[#This Row],[Estoque Mínimo]],\"Sim\",\"\")","v":""},{"$f":"Tabela3[[#This Row],[Saldo Estoque]]*Tabela3[[#This Row],[Valor]]","v":0}]
[196,null,null,null,null,{"$f":"SUMIFS(BDMovEstoque!C:C,BDMovEstoque!A:A,Tabela3[[#This Row],[Código]],BDMovEstoque!G:G,\"Entrada\")-SUMIFS(BDMovEstoque!C:C,BDMovEstoque!A:A,Tabela3[[#This Row],[Código]],BDMovEstoque!G:G,\"Saída\")","v":0},{"$f":"IF(Tabela3[[#This Row],[Saldo Estoque]]<Tabela3[[#This Row],[Estoque Mínimo]],\"Sim\",\"\")","v":""},{"$f":"Tabela3[[#This Row],[Saldo Estoque]]*Tabela3[[#This Row],[Valor]]","v":0}]
[197,null,null,null,null,{"$f":"SUMIFS(BDMovEstoque!C:C,BDMovEstoque!A:A,Tabela3[[#This Row],[Código]],BDMovEstoque!G:G,\"Entrada\")-SUMIFS(BDMovEstoque!C:C,BDMovEstoque!A:A,Tabela3[[#This Row],[Código]],BDMovEstoque!G:G,\"Saída\")","v":0},{"$f":"IF(Tabela3[[#This Row],[Saldo Estoque]]<Tabela3[[#This Row],[Estoque Mínimo]],\"Sim\",\"\")","v":""},{"$f":"Tabela3[[#This Row],[Saldo Estoque]]*Tabela3[[#This Row],[Valor]]","v":0}]
[198,null,null,null,null,{"$f":"SUMIFS(BDMovEstoque!C:C,BDMovEstoque!A:A,Tabela3[[#This Row],[Código]],BDMovEstoque!G:G,\"Entrada\")-SUMIFS(BDMovEstoque!C:C,BDMovEstoque!A:A,Tabela3[[#This Row],[Código]],BDMovEstoque!G:G,\"Saída\")","v":0},{"$f":"IF(Tabela3[[#This Row],[Saldo Estoque]]<Tabela3[[#This Row],[Estoque Mínimo]],\"Sim\",\"\")","v":""},{"$f":"Tabela3[[#This Row],[Saldo Estoque]]*Tabela3[[#This Row],[Valor]]","v":0}]
[199,null,null,null,null,{"$f":"SUMIFS(BDMovEstoque!C:C,BDMovEstoque!A:A,Tabela3[[#This Row],[Código]],BDMovEstoque!G:G,\"Entrada\")-SUMIFS(BDMovEstoque!C:C,BDMovEstoque!A:A,Tabela3[[#This Row],[Código]],BDMovEstoque!G:G,\"Saída\")","v":0},{"$f":"IF(Tabela3[[#This Row],[Saldo Estoque]]<Tabela3[[#This Row],[Estoque Mínimo]],\"Sim\",\"\")","v":""},{"$f":"Tabela3[[#This Row],[Saldo Estoque]]*Tabela3[[#This Row],[Valor]]","v":0}]
[200,null,null,null,null,{"$f":"SUMIFS(BDMovEstoque!C:C,BDMovEstoque!A:A,Tabela3[[#This Row],[Código]],BDMovEstoque!G:G,\"Entrada\")-SUMIFS(BDMovEstoque!C:C,BDMovEstoque!A:A,Tabela3[[#This Row],[Código]],BDMovEstoque!G:G,\"Saída\")","v":0},{"$f":"IF(Tabela3[[#This Row],[Saldo Estoque]]<Tabela3[[#This Row],[Estoque Mínimo]],\"Sim\",\"\")","v":""},{"$f":"Tabela3[[#This Row],[Saldo Estoque]]*Tabela3[[#This Row],[Valor]]","v":0}]
[201,null,null,null,null,{"$f":"SUMIFS(BDMovEstoque!C:C,BDMovEstoque!A:A,Tabela3[[#This Row],[Código]],BDMovEstoque!G:G,\"Entrada\")-SUMIFS(BDMovEstoque!C:C,BDMovEstoque!A:A,Tabela3[[#This Row],[Código]],BDMovEstoque!G:G,\"Saída\")","v":0},{"$f":"IF(Tabela3[[#This Row],[Saldo Estoque]]<Tabela3[[#This Row],[Estoque Mínimo]],\"Sim\",\"\")","v":""},{"$f":"Tabela3[[#This Row],[Saldo Estoque]]*Tabela3[[#This Row],[Valor]]","v":0}]
[202,null,null,null,null,{"$f":"SUMIFS(BDMovEstoque!C:C,BDMovEstoque!A:A,Tabela3[[#This Row],[Código]],BDMovEstoque!G:G,\"Entrada\")-SUMIFS(BDMovEstoque!C:C,BDMovEstoque!A:A,Tabela3[[#This Row],[Código]],BDMovEstoque!G:G,\"Saída\")","v":0},{"$f":"IF(Tabela3[[#This Row],[Saldo Estoque]]<Tabela3[[#This Row],[Estoque Mínimo]],\"Sim\",\"\")","v":""},{"$f":"Tabela3[[#This Row],[Saldo Estoque]]*Tabela3[[#This Row],[Valor]]","v":0}]
[203,null,null,null,null,{"$f":"SUMIFS(BDMovEstoque!C:C,BDMovEstoque!A:A,Tabela3[[#This Row],[Código]],BDMovEstoque!G:G,\"Entrada\")-SUMIFS(BDMovEstoque!C:C,BDMovEstoque!A:A,Tabela3[[#This Row],[Código]],BDMovEstoque!G:G,\"Saída\")","v":0},{"$f":"IF(Tabela3[[#This Row],[Saldo Estoque]]<Tabela3[[#This Row],[Estoque Mínimo]],\"Sim\",\"\")","v":""},{"$f":"Tabela3[[#This Row],[Saldo Estoque]]*Tabela3[[#This Row],[Valor]]","v":0}]
[204,null,null,null,null,{"$f":"SUMIFS(BDMovEstoque!C:C,BDMovEstoque!A:A,Tabela3[[#This Row],[Código]],BDMovEstoque!G:G,\"Entrada\")-SUMIFS(BDMovEstoque!C:C,BDMovEstoque!A:A,Tabela3[[#This Row],[Código]],BDMovEstoque!G:G,\"Saída\")","v":0},{"$f":"IF(Tabela3[[#This Row],[Saldo Estoque]]<Tabela3[[#This Row],[Estoque Mínimo]],\"Sim\",\"\")","v":""},{"$f":"Tabela3[[#This Row],[Saldo Estoque]]*Tabela3[[#This Row],[Valor]]","v":0}]
[205,null,null,null,null,{"$f":"SUMIFS(BDMovEstoque!C:C,BDMovEstoque!A:A,Tabela3[[#This Row],[Código]],BDMovEstoque!G:G,\"Entrada\")-SUMIFS(BDMovEstoque!C:C,BDMovEstoque!A:A,Tabela3[[#This Row],[Código]],BDMovEstoque!G:G,\"Saída\")","v":0},{"$f":"IF(Tabela3[[#This Row],[Saldo Estoque]]<Tabela3[[#This Row],[Estoque Mínimo]],\"Sim\",\"\")","v":""},{"$f":"Tabela3[[#This Row],[Saldo Estoque]]*Tabela3[[#This Row],[Valor]]","v":0}]
[206,null,null,null,null,{"$f":"SUMIFS(BDMovEstoque!C:C,BDMovEstoque!A:A,Tabela3[[#This Row],[Código]],BDMovEstoque!G:G,\"Entrada\")-SUMIFS(BDMovEstoque!C:C,BDMovEstoque!A:A,Tabela3[[#This Row],[Código]],BDMovEstoque!G:G,\"Saída\")","v":0},{"$f":"IF(Tabela3[[#This Row],[Saldo Estoque]]<Tabela3[[#This Row],[Estoque Mínimo]],\"Sim\",\"\")","v":""},{"$f":"Tabela3[[#This Row],[Saldo Estoque]]*Tabela3[[#This Row],[Valor]]","v":0}]
[207,null,null,null,null,{"$f":"SUMIFS(BDMovEstoque!C:C,BDMovEstoque!A:A,Tabela3[[#This Row],[Código]],BDMovEstoque!G:G,\"Entrada\")-SUMIFS(BDMovEstoque!C:C,BDMovEstoque!A:A,Tabela3[[#This Row],[Código]],BDMovEstoque!G:G,\"Saída\")","v":0},{"$f":"IF(Tabela3[[#This Row],[Saldo Estoque]]<Tabela3[[#This Row],[Estoque Mínimo]],\"Sim\",\"\")","v":""},{"$f":"Tabela3[[#This Row],[Saldo Estoque]]*Tabela3[[#This Row],[Valor]]","v":0}]
[208,null,null,null,null,{"$f":"SUMIFS(BDMovEstoque!C:C,BDMovEstoque!A:A,Tabela3[[#This Row],[Código]],BDMovEstoque!G:G,\"Entrada\")-SUMIFS(BDMovEstoque!C:C,BDMovEstoque!A:A,Tabela3[[#This Row],[Código]],BDMovEstoque!G:G,\"Saída\")","v":0},{"$f":"IF(Tabela3[[#This Row],[Saldo Estoque]]<Tabela3[[#This Row],[Estoque Mínimo]],\"Sim\",\"\")","v":""},{"$f":"Tabela3[[#This Row],[Saldo Estoque]]*Tabela3[[#This Row],[Valor]]","v":0}]
[209,null,null,null,null,{"$f":"SUMIFS(BDMovEstoque!C:C,BDMovEstoque!A:A,Tabela3[[#This Row],[Código]],BDMovEstoque!G:G,\"Entrada\")-SUMIFS(BDMovEstoque!C:C,BDMovEstoque!A:A,Tabela3[[#This Row],[Código]],BDMovEstoque!G:G,\"Saída\")","v":0},{"$f":"IF(Tabela3[[#This Row],[Saldo Estoque]]<Tabela3[[#This Row],[Estoque Mínimo]],\"Sim\",\"\")","v":""},{"$f":"Tabela3[[#This Row],[Saldo Estoque]]*Tabela3[[#This Row],[Valor]]","v":0}]
[210,null,null,null,null,{"$f":"SUMIFS(BDMovEstoque!C:C,BDMovEstoque!A:A,Tabela3[[#This Row],[Código]],BDMovEstoque!G:G,\"Entrada\")-SUMIFS(BDMovEstoque!C:C,BDMovEstoque!A:A,Tabela3[[#This Row],[Código]],BDMovEstoque!G:G,\"Saída\")","v":0},{"$f":"IF(Tabela3[[#This Row],[Saldo Estoque]]<Tabela3[[#This Row],[Estoque Mínimo]],\"Sim\",\"\")","v":""},{"$f":"Tabela3[[#This Row],[Saldo Estoque]]*Tabela3[[#This Row],[Valor]]","v":0}]
[211,null,null,null,null,{"$f":"SUMIFS(BDMovEstoque!C:C,BDMovEstoque!A:A,Tabela3[[#This Row],[Código]],BDMovEstoque!G:G,\"Entrada\")-SUMIFS(BDMovEstoque!C:C,BDMovEstoque!A:A,Tabela3[[#This Row],[Código]],BDMovEstoque!G:G,\"Saída\")","v":0},{"$f":"IF(Tabela3[[#This Row],[Saldo Estoque]]<Tabela3[[#This Row],[Estoque Mínimo]],\"Sim\",\"\")","v":""},{"$f":"Tabela3[[#This Row],[Saldo Estoque]]*Tabela3[[#This Row],[Valor]]","v":0}]
[212,null,null,null,null,{"$f":"SUMIFS(BDMovEstoque!C:C,BDMovEstoque!A:A,Tabela3[[#This Row],[Código]],BDMovEstoque!G:G,\"Entrada\")-SUMIFS(BDMovEstoque!C:C,BDMovEstoque!A:A,Tabela3[[#This Row],[Código]],BDMovEstoque!G:G,\"Saída\")","v":0},{"$f":"IF(Tabela3[[#This Row],[Saldo Estoque]]<Tabela3[[#This Row],[Estoque Mínimo]],\"Sim\",\"\")","v":""},{"$f":"Tabela3[[#This Row],[Saldo Estoque]]*Tabela3[[#This Row],[Valor]]","v":0}]
[213,null,null,null,null,{"$f":"SUMIFS(BDMovEstoque!C:C,BDMovEstoque!A:A,Tabela3[[#This Row],[Código]],BDMovEstoque!G:G,\"Entrada\")-SUMIFS(BDMovEstoque!C:C,BDMovEstoque!A:A,Tabela3[[#This Row],[Código]],BDMovEstoque!G:G,\"Saída\")","v":0},{"$f":"IF(Tabela3[[#This Row],[Saldo Estoque]]<Tabela3[[#This Row],[Estoque Mínimo]],\"Sim\",\"\")","v":""},{"$f":"Tabela3[[#This Row],[Saldo Estoque]]*Tabela3[[#This Row],[Valor]]","v":0}]
[214,null,null,null,null,{"$f":"SUMIFS(BDMovEstoque!C:C,BDMovEstoque!A:A,Tabela3[[#This Row],[Código]],BDMovEstoque!G:G,\"Entrada\")-SUMIFS(BDMovEstoque!C:C,BDMovEstoque!A:A,Tabela3[[#This Row],[Código]],BDMovEstoque!G:G,\"Saída\")","v":0},{"$f":"IF(Tabela3[[#This Row],[Saldo Estoque]]<Tabela3[[#This Row],[Estoque Mínimo]],\"Sim\",\"\")","v":""},{"$f":"Tabela3[[#This Row],[Saldo Estoque]]*Tabela3[[#This Row],[Valor]]","v":0}]
[215,null,null,null,null,{"$f":"SUMIFS(BDMovEstoque!C:C,BDMovEstoque!A:A,Tabela3[[#This Row],[Código]],BDMovEstoque!G:G,\"Entrada\")-SUMIFS(BDMovEstoque!C:C,BDMovEstoque!A:A,Tabela3[[#This Row],[Código]],BDMovEstoque!G:G,\"Saída\")","v":0},{"$f":"IF(Tabela3[[#This Row],[Saldo Estoque]]<Tabela3[[#This Row],[Estoque Mínimo]],\"Sim\",\"\")","v":""},{"$f":"Tabela3[[#This Row],[Saldo Estoque]]*Tabela3[[#This Row],[Valor]]","v":0}]
[216,null,null,null,null,{"$f":"SUMIFS(BDMovEstoque!C:C,BDMovEstoque!A:A,Tabela3[[#This Row],[Código]],BDMovEstoque!G:G,\"Entrada\")-SUMIFS(BDMovEstoque!C:C,BDMovEstoque!A:A,Tabela3[[#This Row],[Código]],BDMovEstoque!G:G,\"Saída\")","v":0},{"$f":"IF(Tabela3[[#This Row],[Saldo Estoque]]<Tabela3[[#This Row],[Estoque Mínimo]],\"Sim\",\"\")","v":""},{"$f":"Tabela3[[#This Row],[Saldo Estoque]]*Tabela3[[#This Row],[Valor]]","v":0}]
[217,null,null,null,null,{"$f":"SUMIFS(BDMovEstoque!C:C,BDMovEstoque!A:A,Tabela3[[#This Row],[Código]],BDMovEstoque!G:G,\"Entrada\")-SUMIFS(BDMovEstoque!C:C,BDMovEstoque!A:A,Tabela3[[#This Row],[Código]],BDMovEstoque!G:G,\"Saída\")","v":0},{"$f":"IF(Tabela3[[#This Row],[Saldo Estoque]]<Tabela3[[#This Row],[Estoque Mínimo]],\"Sim\",\"\")","v":""},{"$f":"Tabela3[[#This Row],[Saldo Estoque]]*Tabela3[[#This Row],[Valor]]","v":0}]
[218,null,null,null,null,{"$f":"SUMIFS(BDMovEstoque!C:C,BDMovEstoque!A:A,Tabela3[[#This Row],[Código]],BDMovEstoque!G:G,\"Entrada\")-SUMIFS(BDMovEstoque!C:C,BDMovEstoque!A:A,Tabela3[[#This Row],[Código]],BDMovEstoque!G:G,\"Saída\")","v":0},{"$f":"IF(Tabela3[[#This Row],[Saldo Estoque]]<Tabela3[[#This Row],[Estoque Mínimo]],\"Sim\",\"\")","v":""},{"$f":"Tabela3[[#This Row],[Saldo Estoque]]*Tabela3[[#This Row],[Valor]]","v":0}]
[219,null,null,null,null,{"$f":"SUMIFS(BDMovEstoque!C:C,BDMovEstoque!A:A,Tabela3[[#This Row],[Código]],BDMovEstoque!G:G,\"Entrada\")-SUMIFS(BDMovEstoque!C:C,BDMovEstoque!A:A,Tabela3[[#This Row],[Código]],BDMovEstoque!G:G,\"Saída\")","v":0},{"$f":"IF(Tabela3[[#This Row],[Saldo Estoque]]<Tabela3[[#This Row],[Estoque Mínimo]],\"Sim\",\"\")","v":""},{"$f":"Tabela3[[#This Row],[Saldo Estoque]]*Tabela3[[#This Row],[Valor]]","v":0}]
[220,null,null,null,null,{"$f":"SUMIFS(BDMovEstoque!C:C,BDMovEstoque!A:A,Tabela3[[#This Row],[Código]],BDMovEstoque!G:G,\"Entrada\")-SUMIFS(BDMovEstoque!C:C,BDMovEstoque!A:A,Tabela3[[#This Row],[Código]],BDMovEstoque!G:G,\"Saída\")","v":0},{"$f":"IF(Tabela3[[#This Row],[Saldo Estoque]]<Tabela3[[#This Row],[Estoque Mínimo]],\"Sim\",\"\")","v":""},{"$f":"Tabela3[[#This Row],[Saldo Estoque]]*Tabela3[[#This Row],[Valor]]","v":0}]
[221,null,null,null,null,{"$f":"SUMIFS(BDMovEstoque!C:C,BDMovEstoque!A:A,Tabela3[[#This Row],[Código]],BDMovEstoque!G:G,\"Entrada\")-SUMIFS(BDMovEstoque!C:C,BDMovEstoque!A:A,Tabela3[[#This Row],[Código]],BDMovEstoque!G:G,\"Saída\")","v":0},{"$f":"IF(Tabela3[[#This Row],[Saldo Estoque]]<Tabela3[[#This Row],[Estoque Mínimo]],\"Sim\",\"\")","v":""},{"$f":"Tabela3[[#This Row],[Saldo Estoque]]*Tabela3[[#This Row],[Valor]]","v":0}]
[222,null,null,null,null,{"$f":"SUMIFS(BDMovEstoque!C:C,BDMovEstoque!A:A,Tabela3[[#This Row],[Código]],BDMovEstoque!G:G,\"Entrada\")-SUMIFS(BDMovEstoque!C:C,BDMovEstoque!A:A,Tabela3[[#This Row],[Código]],BDMovEstoque!G:G,\"Saída\")","v":0},{"$f":"IF(Tabela3[[#This Row],[Saldo Estoque]]<Tabela3[[#This Row],[Estoque Mínimo]],\"Sim\",\"\")","v":""},{"$f":"Tabela3[[#This Row],[Saldo Estoque]]*Tabela3[[#This Row],[Valor]]","v":0}]
[223,null,null,null,null,{"$f":"SUMIFS(BDMovEstoque!C:C,BDMovEstoque!A:A,Tabela3[[#This Row],[Código]],BDMovEstoque!G:G,\"Entrada\")-SUMIFS(BDMovEstoque!C:C,BDMovEstoque!A:A,Tabela3[[#This Row],[Código]],BDMovEstoque!G:G,\"Saída\")","v":0},{"$f":"IF(Tabela3[[#This Row],[Saldo Estoque]]<Tabela3[[#This Row],[Estoque Mínimo]],\"Sim\",\"\")","v":""},{"$f":"Tabela3[[#This Row],[Saldo Estoque]]*Tabela3[[#This Row],[Valor]]","v":0}]
[224,null,null,null,null,{"$f":"SUMIFS(BDMovEstoque!C:C,BDMovEstoque!A:A,Tabela3[[#This Row],[Código]],BDMovEstoque!G:G,\"Entrada\")-SUMIFS(BDMovEstoque!C:C,BDMovEstoque!A:A,Tabela3[[#This Row],[Código]],BDMovEstoque!G:G,\"Saída\")","v":0},{"$f":"IF(Tabela3[[#This Row],[Saldo Estoque]]<Tabela3[[#This Row],[Estoque Mínimo]],\"Sim\",\"\")","v":""},{"$f":"Tabela3[[#This Row],[Saldo Estoque]]*Tabela3[[#This Row],[Valor]]","v":0}]
[225,null,null,null,null,{"$f":"SUMIFS(BDMovEstoque!C:C,BDMovEstoque!A:A,Tabela3[[#This Row],[Código]],BDMovEstoque!G:G,\"Entrada\")-SUMIFS(BDMovEstoque!C:C,BDMovEstoque!A:A,Tabela3[[#This Row],[Código]],BDMovEstoque!G:G,\"Saída\")","v":0},{"$f":"IF(Tabela3[[#This Row],[Saldo Estoque]]<Tabela3[[#This Row],[Estoque Mínimo]],\"Sim\",\"\")","v":""},{"$f":"Tabela3[[#This Row],[Saldo Estoque]]*Tabela3[[#This Row],[Valor]]","v":0}]
[226,null,null,null,null,{"$f":"SUMIFS(BDMovEstoque!C:C,BDMovEstoque!A:A,Tabela3[[#This Row],[Código]],BDMovEstoque!G:G,\"Entrada\")-SUMIFS(BDMovEstoque!C:C,BDMovEstoque!A:A,Tabela3[[#This Row],[Código]],BDMovEstoque!G:G,\"Saída\")","v":0},{"$f":"IF(Tabela3[[#This Row],[Saldo Estoque]]<Tabela3[[#This Row],[Estoque Mínimo]],\"Sim\",\"\")","v":""},{"$f":"Tabela3[[#This Row],[Saldo Estoque]]*Tabela3[[#This Row],[Valor]]","v":0}]
[227,null,null,null,null,{"$f":"SUMIFS(BDMovEstoque!C:C,BDMovEstoque!A:A,Tabela3[[#This Row],[Código]],BDMovEstoque!G:G,\"Entrada\")-SUMIFS(BDMovEstoque!C:C,BDMovEstoque!A:A,Tabela3[[#This Row],[Código]],BDMovEstoque!G:G,\"Saída\")","v":0},{"$f":"IF(Tabela3[[#This Row],[Saldo Estoque]]<Tabela3[[#This Row],[Estoque Mínimo]],\"Sim\",\"\")","v":""},{"$f":"Tabela3[[#This Row],[Saldo Estoque]]*Tabela3[[#This Row],[Valor]]","v":0}]
[228,null,null,null,null,{"$f":"SUMIFS(BDMovEstoque!C:C,BDMovEstoque!A:A,Tabela3[[#This Row],[Código]],BDMovEstoque!G:G,\"Entrada\")-SUMIFS(BDMovEstoque!C:C,BDMovEstoque!A:A,Tabela3[[#This Row],[Código]],BDMovEstoque!G:G,\"Saída\")","v":0},{"$f":"IF(Tabela3[[#This Row],[Saldo Estoque]]<Tabela3[[#This Row],[Estoque Mínimo]],\"Sim\",\"\")","v":""},{"$f":"Tabela3[[#This Row],[Saldo Estoque]]*Tabela3[[#This Row],[Valor]]","v":0}]
[229,null,null,null,null,{"$f":"SUMIFS(BDMovEstoque!C:C,BDMovEstoque!A:A,Tabela3[[#This Row],[Código]],BDMovEstoque!G:G,\"Entrada\")-SUMIFS(BDMovEstoque!C:C,BDMovEstoque!A:A,Tabela3[[#This Row],[Código]],BDMovEstoque!G:G,\"Saída\")","v":0},{"$f":"IF(Tabela3[[#This Row],[Saldo Estoque]]<Tabela3[[#This Row],[Estoque Mínimo]],\"Sim\",\"\")","v":""},{"$f":"Tabela3[[#This Row],[Saldo Estoque]]*Tabela3[[#This Row],[Valor]]","v":0}]
[230,null,null,null,null,{"$f":"SUMIFS(BDMovEstoque!C:C,BDMovEstoque!A:A,Tabela3[[#This Row],[Código]],BDMovEstoque!G:G,\"Entrada\")-SUMIFS(BDMovEstoque!C:C,BDMovEstoque!A:A,Tabela3[[#This Row],[Código]],BDMovEstoque!G:G,\"Saída\")","v":0},{"$f":"IF(Tabela3[[#This Row],[Saldo Estoque]]<Tabela3[[#This Row],[Estoque Mínimo]],\"Sim\",\"\")","v":""},{"$f":"Tabela3[[#This Row],[Saldo Estoque]]*Tabela3[[#This Row],[Valor]]","v":0}]
[231,null,null,null,null,{"$f":"SUMIFS(BDMovEstoque!C:C,BDMovEstoque!A:A,Tabela3[[#This Row],[Código]],BDMovEstoque!G:G,\"Entrada\")-SUMIFS(BDMovEstoque!C:C,BDMovEstoque!A:A,Tabela3[[#This Row],[Código]],BDMovEstoque!G:G,\"Saída\")","v":0},{"$f":"IF(Tabela3[[#This Row],[Saldo Estoque]]<Tabela3[[#This Row],[Estoque Mínimo]],\"Sim\",\"\")","v":""},{"$f":"Tabela3[[#This Row],[Saldo Estoque]]*Tabela3[[#This Row],[Valor]]","v":0}]
[232,null,null,null,null,{"$f":"SUMIFS(BDMovEstoque!C:C,BDMovEstoque!A:A,Tabela3[[#This Row],[Código]],BDMovEstoque!G:G,\"Entrada\")-SUMIFS(BDMovEstoque!C:C,BDMovEstoque!A:A,Tabela3[[#This Row],[Código]],BDMovEstoque!G:G,\"Saída\")","v":0},{"$f":"IF(Tabela3[[#This Row],[Saldo Estoque]]<Tabela3[[#This Row],[Estoque Mínimo]],\"Sim\",\"\")","v":""},{"$f":"Tabela3[[#This Row],[Saldo Estoque]]*Tabela3[[#This Row],[Valor]]","v":0}]
[233,null,null,null,null,{"$f":"SUMIFS(BDMovEstoque!C:C,BDMovEstoque!A:A,Tabela3[[#This Row],[Código]],BDMovEstoque!G:G,\"Entrada\")-SUMIFS(BDMovEstoque!C:C,BDMovEstoque!A:A,Tabela3[[#This Row],[Código]],BDMovEstoque!G:G,\"Saída\")","v":0},{"$f":"IF(Tabela3[[#This Row],[Saldo Estoque]]<Tabela3[[#This Row],[Estoque Mínimo]],\"Sim\",\"\")","v":""},{"$f":"Tabela3[[#This Row],[Saldo Estoque]]*Tabela3[[#This Row],[Valor]]","v":0}]
[234,null,null,null,null,{"$f":"SUMIFS(BDMovEstoque!C:C,BDMovEstoque!A:A,Tabela3[[#This Row],[Código]],BDMovEstoque!G:G,\"Entrada\")-SUMIFS(BDMovEstoque!C:C,BDMovEstoque!A:A,Tabela3[[#This Row],[Código]],BDMovEstoque!G:G,\"Saída\")","v":0},{"$f":"IF(Tabela3[[#This Row],[Saldo Estoque]]<Tabela3[[#This Row],[Estoque Mínimo]],\"Sim\",\"\")","v":""},{"$f":"Tabela3[[#This Row],[Saldo Estoque]]*Tabela3[[#This Row],[Valor]]","v":0}]
[235,null,null,null,null,{"$f":"SUMIFS(BDMovEstoque!C:C,BDMovEstoque!A:A,Tabela3[[#This Row],[Código]],BDMovEstoque!G:G,\"Entrada\")-SUMIFS(BDMovEstoque!C:C,BDMovEstoque!A:A,Tabela3[[#This Row],[Código]],BDMovEstoque!G:G,\"Saída\")","v":0},{"$f":"IF(Tabela3[[#This Row],[Saldo Estoque]]<Tabela3[[#This Row],[Estoque Mínimo]],\"Sim\",\"\")","v":""},{"$f":"Tabela3[[#This Row],[Saldo Estoque]]*Tabela3[[#This Row],[Valor]]","v":0}]
[236,null,null,null,null,{"$f":"SUMIFS(BDMovEstoque!C:C,BDMovEstoque!A:A,Tabela3[[#This Row],[Código]],BDMovEstoque!G:G,\"Entrada\")-SUMIFS(BDMovEstoque!C:C,BDMovEstoque!A:A,Tabela3[[#This Row],[Código]],BDMovEstoque!G:G,\"Saída\")","v":0},{"$f":"IF(Tabela3[[#This Row],[Saldo Estoque]]<Tabela3[[#This Row],[Estoque Mínimo]],\"Sim\",\"\")","v":""},{"$f":"Tabela3[[#This Row],[Saldo Estoque]]*Tabela3[[#This Row],[Valor]]","v":0}]
[237,null,null,null,null,{"$f":"SUMIFS(BDMovEstoque!C:C,BDMovEstoque!A:A,Tabela3[[#This Row],[Código]],BDMovEstoque!G:G,\"Entrada\")-SUMIFS(BDMovEstoque!C:C,BDMovEstoque!A:A,Tabela3[[#This Row],[Código]],BDMovEstoque!G:G,\"Saída\")","v":0},{"$f":"IF(Tabela3[[#This Row],[Saldo Estoque]]<Tabela3[[#This Row],[Estoque Mínimo]],\"Sim\",\"\")","v":""},{"$f":"Tabela3[[#This Row],[Saldo Estoque]]*Tabela3[[#This Row],[Valor]]","v":0}]
[238,null,null,null,null,{"$f":"SUMIFS(BDMovEstoque!C:C,BDMovEstoque!A:A,Tabela3[[#This Row],[Código]],BDMovEstoque!G:G,\"Entrada\")-SUMIFS(BDMovEstoque!C:C,BDMovEstoque!A:A,Tabela3[[#This Row],[Código]],BDMovEstoque!G:G,\"Saída\")","v":0},{"$f":"IF(Tabela3[[#This Row],[Saldo Estoque]]<Tabela3[[#This Row],[Estoque Mínimo]],\"Sim\",\"\")","v":""},{"$f":"Tabela3[[#This Row],[Saldo Estoque]]*Tabela3[[#This Row],[Valor]]","v":0}]
[239,null,null,null,null,{"$f":"SUMIFS(BDMovEstoque!C:C,BDMovEstoque!A:A,Tabela3[[#This Row],[Código]],BDMovEstoque!G:G,\"Entrada\")-SUMIFS(BDMovEstoque!C:C,BDMovEstoque!A:A,Tabela3[[#This Row],[Código]],BDMovEstoque!G:G,\"Saída\")","v":0},{"$f":"IF(Tabela3[[#This Row],[Saldo Estoque]]<Tabela3[[#This Row],[Estoque Mínimo]],\"Sim\",\"\")","v":""},{"$f":"Tabela3[[#This Row],[Saldo Estoque]]*Tabela3[[#This Row],[Valor]]","v":0}]
[240,null,null,null,null,{"$f":"SUMIFS(BDMovEstoque!C:C,BDMovEstoque!A:A,Tabela3[[#This Row],[Código]],BDMovEstoque!G:G,\"Entrada\")-SUMIFS(BDMovEstoque!C:C,BDMovEstoque!A:A,Tabela3[[#This Row],[Código]],BDMovEstoque!G:G,\"Saída\")","v":0},{"$f":"IF(Tabela3[[#This Row],[Saldo Estoque]]<Tabela3[[#This Row],[Estoque Mínimo]],\"Sim\",\"\")","v":""},{"$f":"Tabela3[[#This Row],[Saldo Estoque]]*Tabela3[[#This Row],[Valor]]","v":0}]
[241,null,null,null,null,{"$f":"SUMIFS(BDMovEstoque!C:C,BDMovEstoque!A:A,Tabela3[[#This Row],[Código]],BDMovEstoque!G:G,\"Entrada\")-SUMIFS(BDMovEstoque!C:C,BDMovEstoque!A:A,Tabela3[[#This Row],[Código]],BDMovEstoque!G:G,\"Saída\")","v":0},{"$f":"IF(Tabela3[[#This Row],[Saldo Estoque]]<Tabela3[[#This Row],[Estoque Mínimo]],\"Sim\",\"\")","v":""},{"$f":"Tabela3[[#This Row],[Saldo Estoque]]*Tabela3[[#This Row],[Valor]]","v":0}]
[242,null,null,null,null,{"$f":"SUMIFS(BDMovEstoque!C:C,BDMovEstoque!A:A,Tabela3[[#This Row],[Código]],BDMovEstoque!G:G,\"Entrada\")-SUMIFS(BDMovEstoque!C:C,BDMovEstoque!A:A,Tabela3[[#This Row],[Código]],BDMovEstoque!G:G,\"Saída\")","v":0},{"$f":"IF(Tabela3[[#This Row],[Saldo Estoque]]<Tabela3[[#This Row],[Estoque Mínimo]],\"Sim\",\"\")","v":""},{"$f":"Tabela3[[#This Row],[Saldo Estoque]]*Tabela3[[#This Row],[Valor]]","v":0}]
[243,null,null,null,null,{"$f":"SUMIFS(BDMovEstoque!C:C,BDMovEstoque!A:A,Tabela3[[#This Row],[Código]],BDMovEstoque!G:G,\"Entrada\")-SUMIFS(BDMovEstoque!C:C,BDMovEstoque!A:A,Tabela3[[#This Row],[Código]],BDMovEstoque!G:G,\"Saída\")","v":0},{"$f":"IF(Tabela3[[#This Row],[Saldo Estoque]]<Tabela3[[#This Row],[Estoque Mínimo]],\"Sim\",\"\")","v":""},{"$f":"Tabela3[[#This Row],[Saldo Estoque]]*Tabela3[[#This Row],[Valor]]","v":0}]
[244,null,null,null,null,{"$f":"SUMIFS(BDMovEstoque!C:C,BDMovEstoque!A:A,Tabela3[[#This Row],[Código]],BDMovEstoque!G:G,\"Entrada\")-SUMIFS(BDMovEstoque!C:C,BDMovEstoque!A:A,Tabela3[[#This Row],[Código]],BDMovEstoque!G:G,\"Saída\")","v":0},{"$f":"IF(Tabela3[[#This Row],[Saldo Estoque]]<Tabela3[[#This Row],[Estoque Mínimo]],\"Sim\",\"\")","v":""},{"$f":"Tabela3[[#This Row],[Saldo Estoque]]*Tabela3[[#This Row],[Valor]]","v":0}]
[245,null,null,null,null,{"$f":"SUMIFS(BDMovEstoque!C:C,BDMovEstoque!A:A,Tabela3[[#This Row],[Código]],BDMovEstoque!G:G,\"Entrada\")-SUMIFS(BDMovEstoque!C:C,BDMovEstoque!A:A,Tabela3[[#This Row],[Código]],BDMovEstoque!G:G,\"Saída\")","v":0},{"$f":"IF(Tabela3[[#This Row],[Saldo Estoque]]<Tabela3[[#This Row],[Estoque Mínimo]],\"Sim\",\"\")","v":""},{"$f":"Tabela3[[#This Row],[Saldo Estoque]]*Tabela3[[#This Row],[Valor]]","v":0}]
[246,null,null,null,null,{"$f":"SUMIFS(BDMovEstoque!C:C,BDMovEstoque!A:A,Tabela3[[#This Row],[Código]],BDMovEstoque!G:G,\"Entrada\")-SUMIFS(BDMovEstoque!C:C,BDMovEstoque!A:A,Tabela3[[#This Row],[Código]],BDMovEstoque!G:G,\"Saída\")","v":0},{"$f":"IF(Tabela3[[#This Row],[Saldo Estoque]]<Tabela3[[#This Row],[Estoque Mínimo]],\"Sim\",\"\")","v":""},{"$f":"Tabela3[[#This Row],[Saldo Estoque]]*Tabela3[[#This Row],[Valor]]","v":0}]
[247,null,null,null,null,{"$f":"SUMIFS(BDMovEstoque!C:C,BDMovEstoque!A:A,Tabela3[[#This Row],[Código]],BDMovEstoque!G:G,\"Entrada\")-SUMIFS(BDMovEstoque!C:C,BDMovEstoque!A:A,Tabela3[[#This Row],[Código]],BDMovEstoque!G:G,\"Saída\")","v":0},{"$f":"IF(Tabela3[[#This Row],[Saldo Estoque]]<Tabela3[[#This Row],[Estoque Mínimo]],\"Sim\",\"\")","v":""},{"$f":"Tabela3[[#This Row],[Saldo Estoque]]*Tabela3[[#This Row],[Valor]]","v":0}]
[248,null,null,null,null,{"$f":"SUMIFS(BDMovEstoque!C:C,BDMovEstoque!A:A,Tabela3[[#This Row],[Código]],BDMovEstoque!G:G,\"Entrada\")-SUMIFS(BDMovEstoque!C:C,BDMovEstoque!A:A,Tabela3[[#This Row],[Código]],BDMovEstoque!G:G,\"Saída\")","v":0},{"$f":"IF(Tabela3[[#This Row],[Saldo Estoque]]<Tabela3[[#This Row],[Estoque Mínimo]],\"Sim\",\"\")","v":""},{"$f":"Tabela3[[#This Row],[Saldo Estoque]]*Tabela3[[#This Row],[Valor]]","v":0}]
[249,null,null,null,null,{"$f":"SUMIFS(BDMovEstoque!C:C,BDMovEstoque!A:A,Tabela3[[#This Row],[Código]],BDMovEstoque!G:G,\"Entrada\")-SUMIFS(BDMovEstoque!C:C,BDMovEstoque!A:A,Tabela3[[#This Row],[Código]],BDMovEstoque!G:G,\"Saída\")","v":0},{"$f":"IF(Tabela3[[#This Row],[Saldo Estoque]]<Tabela3[[#This Row],[Estoque Mínimo]],\"Sim\",\"\")","v":""},{"$f":"Tabela3[[#This Row],[Saldo Estoque]]*Tabela3[[#This Row],[Valor]]","v":0}]
[250,null,null,null,null,{"$f":"SUMIFS(BDMovEstoque!C:C,BDMovEstoque!A:A,Tabela3[[#This Row],[Código]],BDMovEstoque!G:G,\"Entrada\")-SUMIFS(BDMovEstoque!C:C,BDMovEstoque!A:A,Tabela3[[#This Row],[Código]],BDMovEstoque!G:G,\"Saída\")","v":0},{"$f":"IF(Tabela3[[#This Row],[Saldo Estoque]]<Tabela3[[#This Row],[Estoque Mínimo]],\"Sim\",\"\")","v":""},{"$f":"Tabela3[[#This Row],[Saldo Estoque]]*Tabela3[[#This Row],[Valor]]","v":0}]
[251,null,null,null,null,{"$f":"SUMIFS(BDMovEstoque!C:C,BDMovEstoque!A:A,Tabela3[[#This Row],[Código]],BDMovEstoque!G:G,\"Entrada\")-SUMIFS(BDMovEstoque!C:C,BDMovEstoque!A:A,Tabela3[[#This Row],[Código]],BDMovEstoque!G:G,\"Saída\")","v":0},{"$f":"IF(Tabela3[[#This Row],[Saldo Estoque]]<Tabela3[[#This Row],[Estoque Mínimo]],\"Sim\",\"\")","v":""},{"$f":"Tabela3[[#This Row],[Saldo Estoque]]*Tabela3[[#This Row],[Valor]]","v":0}]
[252,null,null,null,null,{"$f":"SUMIFS(BDMovEstoque!C:C,BDMovEstoque!A:A,Tabela3[[#This Row],[Código]],BDMovEstoque!G:G,\"Entrada\")-SUMIFS(BDMovEstoque!C:C,BDMovEstoque!A:A,Tabela3[[#This Row],[Código]],BDMovEstoque!G:G,\"Saída\")","v":0},{"$f":"IF(Tabela3[[#This Row],[Saldo Estoque]]<Tabela3[[#This Row],[Estoque Mínimo]],\"Sim\",\"\")","v":""},{"$f":"Tabela3[[#This Row],[Saldo Estoque]]*Tabela3[[#This Row],[Valor]]","v":0}]
[253,null,null,null,null,{"$f":"SUMIFS(BDMovEstoque!C:C,BDMovEstoque!A:A,Tabela3[[#This Row],[Código]],BDMovEstoque!G:G,\"Entrada\")-SUMIFS(BDMovEstoque!C:C,BDMovEstoque!A:A,Tabela3[[#This Row],[Código]],BDMovEstoque!G:G,\"Saída\")","v":0},{"$f":"IF(Tabela3[[#This Row],[Saldo Estoque]]<Tabela3[[#This Row],[Estoque Mínimo]],\"Sim\",\"\")","v":""},{"$f":"Tabela3[[#This Row],[Saldo Estoque]]*Tabela3[[#This Row],[Valor]]","v":0}]
[254,null,null,null,null,{"$f":"SUMIFS(BDMovEstoque!C:C,BDMovEstoque!A:A,Tabela3[[#This Row],[Código]],BDMovEstoque!G:G,\"Entrada\")-SUMIFS(BDMovEstoque!C:C,BDMovEstoque!A:A,Tabela3[[#This Row],[Código]],BDMovEstoque!G:G,\"Saída\")","v":0},{"$f":"IF(Tabela3[[#This Row],[Saldo Estoque]]<Tabela3[[#This Row],[Estoque Mínimo]],\"Sim\",\"\")","v":""},{"$f":"Tabela3[[#This Row],[Saldo Estoque]]*Tabela3[[#This Row],[Valor]]","v":0}]
[255,null,null,null,null,{"$f":"SUMIFS(BDMovEstoque!C:C,BDMovEstoque!A:A,Tabela3[[#This Row],[Código]],BDMovEstoque!G:G,\"Entrada\")-SUMIFS(BDMovEstoque!C:C,BDMovEstoque!A:A,Tabela3[[#This Row],[Código]],BDMovEstoque!G:G,\"Saída\")","v":0},{"$f":"IF(Tabela3[[#This Row],[Saldo Estoque]]<Tabela3[[#This Row],[Estoque Mínimo]],\"Sim\",\"\")","v":""},{"$f":"Tabela3[[#This Row],[Saldo Estoque]]*Tabela3[[#This Row],[Valor]]","v":0}]
[256,null,null,null,null,{"$f":"SUMIFS(BDMovEstoque!C:C,BDMovEstoque!A:A,Tabela3[[#This Row],[Código]],BDMovEstoque!G:G,\"Entrada\")-SUMIFS(BDMovEstoque!C:C,BDMovEstoque!A:A,Tabela3[[#This Row],[Código]],BDMovEstoque!G:G,\"Saída\")","v":0},{"$f":"IF(Tabela3[[#This Row],[Saldo Estoque]]<Tabela3[[#This Row],[Estoque Mínimo]],\"Sim\",\"\")","v":""},{"$f":"Tabela3[[#This Row],[Saldo Estoque]]*Tabela3[[#This Row],[Valor]]","v":0}]
[257,null,null,null,null,{"$f":"SUMIFS(BDMovEstoque!C:C,BDMovEstoque!A:A,Tabela3[[#This Row],[Código]],BDMovEstoque!G:G,\"Entrada\")-SUMIFS(BDMovEstoque!C:C,BDMovEstoque!A:A,Tabela3[[#This Row],[Código]],BDMovEstoque!G:G,\"Saída\")","v":0},{"$f":"IF(Tabela3[[#This Row],[Saldo Estoque]]<Tabela3[[#This Row],[Estoque Mínimo]],\"Sim\",\"\")","v":""},{"$f":"Tabela3[[#This Row],[Saldo Estoque]]*Tabela3[[#This Row],[Valor]]","v":0}]
[258,null,null,null,null,{"$f":"SUMIFS(BDMovEstoque!C:C,BDMovEstoque!A:A,Tabela3[[#This Row],[Código]],BDMovEstoque!G:G,\"Entrada\")-SUMIFS(BDMovEstoque!C:C,BDMovEstoque!A:A,Tabela3[[#This Row],[Código]],BDMovEstoque!G:G,\"Saída\")","v":0},{"$f":"IF(Tabela3[[#This Row],[Saldo Estoque]]<Tabela3[[#This Row],[Estoque Mínimo]],\"Sim\",\"\")","v":""},{"$f":"Tabela3[[#This Row],[Saldo Estoque]]*Tabela3[[#This Row],[Valor]]","v":0}]
[259,null,null,null,null,{"$f":"SUMIFS(BDMovEstoque!C:C,BDMovEstoque!A:A,Tabela3[[#This Row],[Código]],BDMovEstoque!G:G,\"Entrada\")-SUMIFS(BDMovEstoque!C:C,BDMovEstoque!A:A,Tabela3[[#This Row],[Código]],BDMovEstoque!G:G,\"Saída\")","v":0},{"$f":"IF(Tabela3[[#This Row],[Saldo Estoque]]<Tabela3[[#This Row],[Estoque Mínimo]],\"Sim\",\"\")","v":""},{"$f":"Tabela3[[#This Row],[Saldo Estoque]]*Tabela3[[#This Row],[Valor]]","v":0}]
[260,null,null,null,null,{"$f":"SUMIFS(BDMovEstoque!C:C,BDMovEstoque!A:A,Tabela3[[#This Row],[Código]],BDMovEstoque!G:G,\"Entrada\")-SUMIFS(BDMovEstoque!C:C,BDMovEstoque!A:A,Tabela3[[#This Row],[Código]],BDMovEstoque!G:G,\"Saída\")","v":0},{"$f":"IF(Tabela3[[#This Row],[Saldo Estoque]]<Tabela3[[#This Row],[Estoque Mínimo]],\"Sim\",\"\")","v":""},{"$f":"Tabela3[[#This Row],[Saldo Estoque]]*Tabela3[[#This Row],[Valor]]","v":0}]
[261,null,null,null,null,{"$f":"SUMIFS(BDMovEstoque!C:C,BDMovEstoque!A:A,Tabela3[[#This Row],[Código]],BDMovEstoque!G:G,\"Entrada\")-SUMIFS(BDMovEstoque!C:C,BDMovEstoque!A:A,Tabela3[[#This Row],[Código]],BDMovEstoque!G:G,\"Saída\")","v":0},{"$f":"IF(Tabela3[[#This Row],[Saldo Estoque]]<Tabela3[[#This Row],[Estoque Mínimo]],\"Sim\",\"\")","v":""},{"$f":"Tabela3[[#This Row],[Saldo Estoque]]*Tabela3[[#This Row],[Valor]]","v":0}]
[262,null,null,null,null,{"$f":"SUMIFS(BDMovEstoque!C:C,BDMovEstoque!A:A,Tabela3[[#This Row],[Código]],BDMovEstoque!G:G,\"Entrada\")-SUMIFS(BDMovEstoque!C:C,BDMovEstoque!A:A,Tabela3[[#This Row],[Código]],BDMovEstoque!G:G,\"Saída\")","v":0},{"$f":"IF(Tabela3[[#This Row],[Saldo Estoque]]<Tabela3[[#This Row],[Estoque Mínimo]],\"Sim\",\"\")","v":""},{"$f":"Tabela3[[#This Row],[Saldo Estoque]]*Tabela3[[#This Row],[Valor]]","v":0}]
[263,null,null,null,null,{"$f":"SUMIFS(BDMovEstoque!C:C,BDMovEstoque!A:A,Tabela3[[#This Row],[Código]],BDMovEstoque!G:G,\"Entrada\")-SUMIFS(BDMovEstoque!C:C,BDMovEstoque!A:A,Tabela3[[#This Row],[Código]],BDMovEstoque!G:G,\"Saída\")","v":0},{"$f":"IF(Tabela3[[#This Row],[Saldo Estoque]]<Tabela3[[#This Row],[Estoque Mínimo]],\"Sim\",\"\")","v":""},{"$f":"Tabela3[[#This Row],[Saldo Estoque]]*Tabela3[[#This Row],[Valor]]","v":0}]
[264,null,null,null,null,{"$f":"SUMIFS(BDMovEstoque!C:C,BDMovEstoque!A:A,Tabela3[[#This Row],[Código]],BDMovEstoque!G:G,\"Entrada\")-SUMIFS(BDMovEstoque!C:C,BDMovEstoque!A:A,Tabela3[[#This Row],[Código]],BDMovEstoque!G:G,\"Saída\")","v":0},{"$f":"IF(Tabela3[[#This Row],[Saldo Estoque]]<Tabela3[[#This Row],[Estoque Mínimo]],\"Sim\",\"\")","v":""},{"$f":"Tabela3[[#This Row],[Saldo Estoque]]*Tabela3[[#This Row],[Valor]]","v":0}]
[265,null,null,null,null,{"$f":"SUMIFS(BDMovEstoque!C:C,BDMovEstoque!A:A,Tabela3[[#This Row],[Código]],BDMovEstoque!G:G,\"Entrada\")-SUMIFS(BDMovEstoque!C:C,BDMovEstoque!A:A,Tabela3[[#This Row],[Código]],BDMovEstoque!G:G,\"Saída\")","v":0},{"$f":"IF(Tabela3[[#This Row],[Saldo Estoque]]<Tabela3[[#This Row],[Estoque Mínimo]],\"Sim\",\"\")","v":""},{"$f":"Tabela3[[#This Row],[Saldo Estoque]]*Tabela3[[#This Row],[Valor]]","v":0}]
[266,null,null,null,null,{"$f":"SUMIFS(BDMovEstoque!C:C,BDMovEstoque!A:A,Tabela3[[#This Row],[Código]],BDMovEstoque!G:G,\"Entrada\")-SUMIFS(BDMovEstoque!C:C,BDMovEstoque!A:A,Tabela3[[#This Row],[Código]],BDMovEstoque!G:G,\"Saída\")","v":0},{"$f":"IF(Tabela3[[#This Row],[Saldo Estoque]]<Tabela3[[#This Row],[Estoque Mínimo]],\"Sim\",\"\")","v":""},{"$f":"Tabela3[[#This Row],[Saldo Estoque]]*Tabela3[[#This Row],[Valor]]","v":0}]
[267,null,null,null,null,{"$f":"SUMIFS(BDMovEstoque!C:C,BDMovEstoque!A:A,Tabela3[[#This Row],[Código]],BDMovEstoque!G:G,\"Entrada\")-SUMIFS(BDMovEstoque!C:C,BDMovEstoque!A:A,Tabela3[[#This Row],[Código]],BDMovEstoque!G:G,\"Saída\")","v":0},{"$f":"IF(Tabela3[[#This Row],[Saldo Estoque]]<Tabela3[[#This Row],[Estoque Mínimo]],\"Sim\",\"\")","v":""},{"$f":"Tabela3[[#This Row],[Saldo Estoque]]*Tabela3[[#This Row],[Valor]]","v":0}]
[268,null,null,null,null,{"$f":"SUMIFS(BDMovEstoque!C:C,BDMovEstoque!A:A,Tabela3[[#This Row],[Código]],BDMovEstoque!G:G,\"Entrada\")-SUMIFS(BDMovEstoque!C:C,BDMovEstoque!A:A,Tabela3[[#This Row],[Código]],BDMovEstoque!G:G,\"Saída\")","v":0},{"$f":"IF(Tabela3[[#This Row],[Saldo Estoque]]<Tabela3[[#This Row],[Estoque Mínimo]],\"Sim\",\"\")","v":""},{"$f":"Tabela3[[#This Row],[Saldo Estoque]]*Tabela3[[#This Row],[Valor]]","v":0}]
[269,null,null,null,null,{"$f":"SUMIFS(BDMovEstoque!C:C,BDMovEstoque!A:A,Tabela3[[#This Row],[Código]],BDMovEstoque!G:G,\"Entrada\")-SUMIFS(BDMovEstoque!C:C,BDMovEstoque!A:A,Tabela3[[#This Row],[Código]],BDMovEstoque!G:G,\"Saída\")","v":0},{"$f":"IF(Tabela3[[#This Row],[Saldo Estoque]]<Tabela3[[#This Row],[Estoque Mínimo]],\"Sim\",\"\")","v":""},{"$f":"Tabela3[[#This Row],[Saldo Estoque]]*Tabela3[[#This Row],[Valor]]","v":0}]
[270,null,null,null,null,{"$f":"SUMIFS(BDMovEstoque!C:C,BDMovEstoque!A:A,Tabela3[[#This Row],[Código]],BDMovEstoque!G:G,\"Entrada\")-SUMIFS(BDMovEstoque!C:C,BDMovEstoque!A:A,Tabela3[[#This Row],[Código]],BDMovEstoque!G:G,\"Saída\")","v":0},{"$f":"IF(Tabela3[[#This Row],[Saldo Estoque]]<Tabela3[[#This Row],[Estoque Mínimo]],\"Sim\",\"\")","v":""},{"$f":"Tabela3[[#This Row],[Saldo Estoque]]*Tabela3[[#This Row],[Valor]]","v":0}]
[271,null,null,null,null,{"$f":"SUMIFS(BDMovEstoque!C:C,BDMovEstoque!A:A,Tabela3[[#This Row],[Código]],BDMovEstoque!G:G,\"Entrada\")-SUMIFS(BDMovEstoque!C:C,BDMovEstoque!A:A,Tabela3[[#This Row],[Código]],BDMovEstoque!G:G,\"Saída\")","v":0},{"$f":"IF(Tabela3[[#This Row],[Saldo Estoque]]<Tabela3[[#This Row],[Estoque Mínimo]],\"Sim\",\"\")","v":""},{"$f":"Tabela3[[#This Row],[Saldo Estoque]]*Tabela3[[#This Row],[Valor]]","v":0}]
[272,null,null,null,null,{"$f":"SUMIFS(BDMovEstoque!C:C,BDMovEstoque!A:A,Tabela3[[#This Row],[Código]],BDMovEstoque!G:G,\"Entrada\")-SUMIFS(BDMovEstoque!C:C,BDMovEstoque!A:A,Tabela3[[#This Row],[Código]],BDMovEstoque!G:G,\"Saída\")","v":0},{"$f":"IF(Tabela3[[#This Row],[Saldo Estoque]]<Tabela3[[#This Row],[Estoque Mínimo]],\"Sim\",\"\")","v":""},{"$f":"Tabela3[[#This Row],[Saldo Estoque]]*Tabela3[[#This Row],[Valor]]","v":0}]
[273,null,null,null,null,{"$f":"SUMIFS(BDMovEstoque!C:C,BDMovEstoque!A:A,Tabela3[[#This Row],[Código]],BDMovEstoque!G:G,\"Entrada\")-SUMIFS(BDMovEstoque!C:C,BDMovEstoque!A:A,Tabela3[[#This Row],[Código]],BDMovEstoque!G:G,\"Saída\")","v":0},{"$f":"IF(Tabela3[[#This Row],[Saldo Estoque]]<Tabela3[[#This Row],[Estoque Mínimo]],\"Sim\",\"\")","v":""},{"$f":"Tabela3[[#This Row],[Saldo Estoque]]*Tabela3[[#This Row],[Valor]]","v":0}]
[274,null,null,null,null,{"$f":"SUMIFS(BDMovEstoque!C:C,BDMovEstoque!A:A,Tabela3[[#This Row],[Código]],BDMovEstoque!G:G,\"Entrada\")-SUMIFS(BDMovEstoque!C:C,BDMovEstoque!A:A,Tabela3[[#This Row],[Código]],BDMovEstoque!G:G,\"Saída\")","v":0},{"$f":"IF(Tabela3[[#This Row],[Saldo Estoque]]<Tabela3[[#This Row],[Estoque Mínimo]],\"Sim\",\"\")","v":""},{"$f":"Tabela3[[#This Row],[Saldo Estoque]]*Tabela3[[#This Row],[Valor]]","v":0}]
[275,null,null,null,null,{"$f":"SUMIFS(BDMovEstoque!C:C,BDMovEstoque!A:A,Tabela3[[#This Row],[Código]],BDMovEstoque!G:G,\"Entrada\")-SUMIFS(BDMovEstoque!C:C,BDMovEstoque!A:A,Tabela3[[#This Row],[Código]],BDMovEstoque!G:G,\"Saída\")","v":0},{"$f":"IF(Tabela3[[#This Row],[Saldo Estoque]]<Tabela3[[#This Row],[Estoque Mínimo]],\"Sim\",\"\")","v":""},{"$f":"Tabela3[[#This Row],[Saldo Estoque]]*Tabela3[[#This Row],[Valor]]","v":0}]
[276,null,null,null,null,{"$f":"SUMIFS(BDMovEstoque!C:C,BDMovEstoque!A:A,Tabela3[[#This Row],[Código]],BDMovEstoque!G:G,\"Entrada\")-SUMIFS(BDMovEstoque!C:C,BDMovEstoque!A:A,Tabela3[[#This Row],[Código]],BDMovEstoque!G:G,\"Saída\")","v":0},{"$f":"IF(Tabela3[[#This Row],[Saldo Estoque]]<Tabela3[[#This Row],[Estoque Mínimo]],\"Sim\",\"\")","v":""},{"$f":"Tabela3[[#This Row],[Saldo Estoque]]*Tabela3[[#This Row],[Valor]]","v":0}]
[277,null,null,null,null,{"$f":"SUMIFS(BDMovEstoque!C:C,BDMovEstoque!A:A,Tabela3[[#This Row],[Código]],BDMovEstoque!G:G,\"Entrada\")-SUMIFS(BDMovEstoque!C:C,BDMovEstoque!A:A,Tabela3[[#This Row],[Código]],BDMovEstoque!G:G,\"Saída\")","v":0},{"$f":"IF(Tabela3[[#This Row],[Saldo Estoque]]<Tabela3[[#This Row],[Estoque Mínimo]],\"Sim\",\"\")","v":""},{"$f":"Tabela3[[#This Row],[Saldo Estoque]]*Tabela3[[#This Row],[Valor]]","v":0}]
[278,null,null,null,null,{"$f":"SUMIFS(BDMovEstoque!C:C,BDMovEstoque!A:A,Tabela3[[#This Row],[Código]],BDMovEstoque!G:G,\"Entrada\")-SUMIFS(BDMovEstoque!C:C,BDMovEstoque!A:A,Tabela3[[#This Row],[Código]],BDMovEstoque!G:G,\"Saída\")","v":0},{"$f":"IF(Tabela3[[#This Row],[Saldo Estoque]]<Tabela3[[#This Row],[Estoque Mínimo]],\"Sim\",\"\")","v":""},{"$f":"Tabela3[[#This Row],[Saldo Estoque]]*Tabela3[[#This Row],[Valor]]","v":0}]
[279,null,null,null,null,{"$f":"SUMIFS(BDMovEstoque!C:C,BDMovEstoque!A:A,Tabela3[[#This Row],[Código]],BDMovEstoque!G:G,\"Entrada\")-SUMIFS(BDMovEstoque!C:C,BDMovEstoque!A:A,Tabela3[[#This Row],[Código]],BDMovEstoque!G:G,\"Saída\")","v":0},{"$f":"IF(Tabela3[[#This Row],[Saldo Estoque]]<Tabela3[[#This Row],[Estoque Mínimo]],\"Sim\",\"\")","v":""},{"$f":"Tabela3[[#This Row],[Saldo Estoque]]*Tabela3[[#This Row],[Valor]]","v":0}]
[280,null,null,null,null,{"$f":"SUMIFS(BDMovEstoque!C:C,BDMovEstoque!A:A,Tabela3[[#This Row],[Código]],BDMovEstoque!G:G,\"Entrada\")-SUMIFS(BDMovEstoque!C:C,BDMovEstoque!A:A,Tabela3[[#This Row],[Código]],BDMovEstoque!G:G,\"Saída\")","v":0},{"$f":"IF(Tabela3[[#This Row],[Saldo Estoque]]<Tabela3[[#This Row],[Estoque Mínimo]],\"Sim\",\"\")","v":""},{"$f":"Tabela3[[#This Row],[Saldo Estoque]]*Tabela3[[#This Row],[Valor]]","v":0}]
[281,null,null,null,null,{"$f":"SUMIFS(BDMovEstoque!C:C,BDMovEstoque!A:A,Tabela3[[#This Row],[Código]],BDMovEstoque!G:G,\"Entrada\")-SUMIFS(BDMovEstoque!C:C,BDMovEstoque!A:A,Tabela3[[#This Row],[Código]],BDMovEstoque!G:G,\"Saída\")","v":0},{"$f":"IF(Tabela3[[#This Row],[Saldo Estoque]]<Tabela3[[#This Row],[Estoque Mínimo]],\"Sim\",\"\")","v":""},{"$f":"Tabela3[[#This Row],[Saldo Estoque]]*Tabela3[[#This Row],[Valor]]","v":0}]
[282,null,null,null,null,{"$f":"SUMIFS(BDMovEstoque!C:C,BDMovEstoque!A:A,Tabela3[[#This Row],[Código]],BDMovEstoque!G:G,\"Entrada\")-SUMIFS(BDMovEstoque!C:C,BDMovEstoque!A:A,Tabela3[[#This Row],[Código]],BDMovEstoque!G:G,\"Saída\")","v":0},{"$f":"IF(Tabela3[[#This Row],[Saldo Estoque]]<Tabela3[[#This Row],[Estoque Mínimo]],\"Sim\",\"\")","v":""},{"$f":"Tabela3[[#This Row],[Saldo Estoque]]*Tabela3[[#This Row],[Valor]]","v":0}]
[283,null,null,null,null,{"$f":"SUMIFS(BDMovEstoque!C:C,BDMovEstoque!A:A,Tabela3[[#This Row],[Código]],BDMovEstoque!G:G,\"Entrada\")-SUMIFS(BDMovEstoque!C:C,BDMovEstoque!A:A,Tabela3[[#This Row],[Código]],BDMovEstoque!G:G,\"Saída\")","v":0},{"$f":"IF(Tabela3[[#This Row],[Saldo Estoque]]<Tabela3[[#This Row],[Estoque Mínimo]],\"Sim\",\"\")","v":""},{"$f":"Tabela3[[#This Row],[Saldo Estoque]]*Tabela3[[#This Row],[Valor]]","v":0}]
[284,null,null,null,null,{"$f":"SUMIFS(BDMovEstoque!C:C,BDMovEstoque!A:A,Tabela3[[#This Row],[Código]],BDMovEstoque!G:G,\"Entrada\")-SUMIFS(BDMovEstoque!C:C,BDMovEstoque!A:A,Tabela3[[#This Row],[Código]],BDMovEstoque!G:G,\"Saída\")","v":0},{"$f":"IF(Tabela3[[#This Row],[Saldo Estoque]]<Tabela3[[#This Row],[Estoque Mínimo]],\"Sim\",\"\")","v":""},{"$f":"Tabela3[[#This Row],[Saldo Estoque]]*Tabela3[[#This Row],[Valor]]","v":0}]
[285,null,null,null,null,{"$f":"SUMIFS(BDMovEstoque!C:C,BDMovEstoque!A:A,Tabela3[[#This Row],[Código]],BDMovEstoque!G:G,\"Entrada\")-SUMIFS(BDMovEstoque!C:C,BDMovEstoque!A:A,Tabela3[[#This Row],[Código]],BDMovEstoque!G:G,\"Saída\")","v":0},{"$f":"IF(Tabela3[[#This Row],[Saldo Estoque]]<Tabela3[[#This Row],[Estoque Mínimo]],\"Sim\",\"\")","v":""},{"$f":"Tabela3[[#This Row],[Saldo Estoque]]*Tabela3[[#This Row],[Valor]]","v":0}]
[286,null,null,null,null,{"$f":"SUMIFS(BDMovEstoque!C:C,BDMovEstoque!A:A,Tabela3[[#This Row],[Código]],BDMovEstoque!G:G,\"Entrada\")-SUMIFS(BDMovEstoque!C:C,BDMovEstoque!A:A,Tabela3[[#This Row],[Código]],BDMovEstoque!G:G,\"Saída\")","v":0},{"$f":"IF(Tabela3[[#This Row],[Saldo Estoque]]<Tabela3[[#This Row],[Estoque Mínimo]],\"Sim\",\"\")","v":""},{"$f":"Tabela3[[#This Row],[Saldo Estoque]]*Tabela3[[#This Row],[Valor]]","v":0}]
[287,null,null,null,null,{"$f":"SUMIFS(BDMovEstoque!C:C,BDMovEstoque!A:A,Tabela3[[#This Row],[Código]],BDMovEstoque!G:G,\"Entrada\")-SUMIFS(BDMovEstoque!C:C,BDMovEstoque!A:A,Tabela3[[#This Row],[Código]],BDMovEstoque!G:G,\"Saída\")","v":0},{"$f":"IF(Tabela3[[#This Row],[Saldo Estoque]]<Tabela3[[#This Row],[Estoque Mínimo]],\"Sim\",\"\")","v":""},{"$f":"Tabela3[[#This Row],[Saldo Estoque]]*Tabela3[[#This Row],[Valor]]","v":0}]
[288,null,null,null,null,{"$f":"SUMIFS(BDMovEstoque!C:C,BDMovEstoque!A:A,Tabela3[[#This Row],[Código]],BDMovEstoque!G:G,\"Entrada\")-SUMIFS(BDMovEstoque!C:C,BDMovEstoque!A:A,Tabela3[[#This Row],[Código]],BDMovEstoque!G:G,\"Saída\")","v":0},{"$f":"IF(Tabela3[[#This Row],[Saldo Estoque]]<Tabela3[[#This Row],[Estoque Mínimo]],\"Sim\",\"\")","v":""},{"$f":"Tabela3[[#This Row],[Saldo Estoque]]*Tabela3[[#This Row],[Valor]]","v":0}]
[289,null,null,null,null,{"$f":"SUMIFS(BDMovEstoque!C:C,BDMovEstoque!A:A,Tabela3[[#This Row],[Código]],BDMovEstoque!G:G,\"Entrada\")-SUMIFS(BDMovEstoque!C:C,BDMovEstoque!A:A,Tabela3[[#This Row],[Código]],BDMovEstoque!G:G,\"Saída\")","v":0},{"$f":"IF(Tabela3[[#This Row],[Saldo Estoque]]<Tabela3[[#This Row],[Estoque Mínimo]],\"Sim\",\"\")","v":""},{"$f":"Tabela3[[#This Row],[Saldo Estoque]]*Tabela3[[#This Row],[Valor]]","v":0}]
[290,null,null,null,null,{"$f":"SUMIFS(BDMovEstoque!C:C,BDMovEstoque!A:A,Tabela3[[#This Row],[Código]],BDMovEstoque!G:G,\"Entrada\")-SUMIFS(BDMovEstoque!C:C,BDMovEstoque!A:A,Tabela3[[#This Row],[Código]],BDMovEstoque!G:G,\"Saída\")","v":0},{"$f":"IF(Tabela3[[#This Row],[Saldo Estoque]]<Tabela3[[#This Row],[Estoque Mínimo]],\"Sim\",\"\")","v":""},{"$f":"Tabela3[[#This Row],[Saldo Estoque]]*Tabela3[[#This Row],[Valor]]","v":0}]
[291,null,null,null,null,{"$f":"SUMIFS(BDMovEstoque!C:C,BDMovEstoque!A:A,Tabela3[[#This Row],[Código]],BDMovEstoque!G:G,\"Entrada\")-SUMIFS(BDMovEstoque!C:C,BDMovEstoque!A:A,Tabela3[[#This Row],[Código]],BDMovEstoque!G:G,\"Saída\")","v":0},{"$f":"IF(Tabela3[[#This Row],[Saldo Estoque]]<Tabela3[[#This Row],[Estoque Mínimo]],\"Sim\",\"\")","v":""},{"$f":"Tabela3[[#This Row],[Saldo Estoque]]*Tabela3[[#This Row],[Valor]]","v":0}]
[292,null,null,null,null,{"$f":"SUMIFS(BDMovEstoque!C:C,BDMovEstoque!A:A,Tabela3[[#This Row],[Código]],BDMovEstoque!G:G,\"Entrada\")-SUMIFS(BDMovEstoque!C:C,BDMovEstoque!A:A,Tabela3[[#This Row],[Código]],BDMovEstoque!G:G,\"Saída\")","v":0},{"$f":"IF(Tabela3[[#This Row],[Saldo Estoque]]<Tabela3[[#This Row],[Estoque Mínimo]],\"Sim\",\"\")","v":""},{"$f":"Tabela3[[#This Row],[Saldo Estoque]]*Tabela3[[#This Row],[Valor]]","v":0}]
[293,null,null,null,null,{"$f":"SUMIFS(BDMovEstoque!C:C,BDMovEstoque!A:A,Tabela3[[#This Row],[Código]],BDMovEstoque!G:G,\"Entrada\")-SUMIFS(BDMovEstoque!C:C,BDMovEstoque!A:A,Tabela3[[#This Row],[Código]],BDMovEstoque!G:G,\"Saída\")","v":0},{"$f":"IF(Tabela3[[#This Row],[Saldo Estoque]]<Tabela3[[#This Row],[Estoque Mínimo]],\"Sim\",\"\")","v":""},{"$f":"Tabela3[[#This Row],[Saldo Estoque]]*Tabela3[[#This Row],[Valor]]","v":0}]
[294,null,null,null,null,{"$f":"SUMIFS(BDMovEstoque!C:C,BDMovEstoque!A:A,Tabela3[[#This Row],[Código]],BDMovEstoque!G:G,\"Entrada\")-SUMIFS(BDMovEstoque!C:C,BDMovEstoque!A:A,Tabela3[[#This Row],[Código]],BDMovEstoque!G:G,\"Saída\")","v":0},{"$f":"IF(Tabela3[[#This Row],[Saldo Estoque]]<Tabela3[[#This Row],[Estoque Mínimo]],\"Sim\",\"\")","v":""},{"$f":"Tabela3[[#This Row],[Saldo Estoque]]*Tabela3[[#This Row],[Valor]]","v":0}]
[295,null,null,null,null,{"$f":"SUMIFS(BDMovEstoque!C:C,BDMovEstoque!A:A,Tabela3[[#This Row],[Código]],BDMovEstoque!G:G,\"Entrada\")-SUMIFS(BDMovEstoque!C:C,BDMovEstoque!A:A,Tabela3[[#This Row],[Código]],BDMovEstoque!G:G,\"Saída\")","v":0},{"$f":"IF(Tabela3[[#This Row],[Saldo Estoque]]<Tabela3[[#This Row],[Estoque Mínimo]],\"Sim\",\"\")","v":""},{"$f":"Tabela3[[#This Row],[Saldo Estoque]]*Tabela3[[#This Row],[Valor]]","v":0}]
[296,null,null,null,null,{"$f":"SUMIFS(BDMovEstoque!C:C,BDMovEstoque!A:A,Tabela3[[#This Row],[Código]],BDMovEstoque!G:G,\"Entrada\")-SUMIFS(BDMovEstoque!C:C,BDMovEstoque!A:A,Tabela3[[#This Row],[Código]],BDMovEstoque!G:G,\"Saída\")","v":0},{"$f":"IF(Tabela3[[#This Row],[Saldo Estoque]]<Tabela3[[#This Row],[Estoque Mínimo]],\"Sim\",\"\")","v":""},{"$f":"Tabela3[[#This Row],[Saldo Estoque]]*Tabela3[[#This Row],[Valor]]","v":0}]
[297,null,null,null,null,{"$f":"SUMIFS(BDMovEstoque!C:C,BDMovEstoque!A:A,Tabela3[[#This Row],[Código]],BDMovEstoque!G:G,\"Entrada\")-SUMIFS(BDMovEstoque!C:C,BDMovEstoque!A:A,Tabela3[[#This Row],[Código]],BDMovEstoque!G:G,\"Saída\")","v":0},{"$f":"IF(Tabela3[[#This Row],[Saldo Estoque]]<Tabela3[[#This Row],[Estoque Mínimo]],\"Sim\",\"\")","v":""},{"$f":"Tabela3[[#This Row],[Saldo Estoque]]*Tabela3[[#This Row],[Valor]]","v":0}]
[298,null,null,null,null,{"$f":"SUMIFS(BDMovEstoque!C:C,BDMovEstoque!A:A,Tabela3[[#This Row],[Código]],BDMovEstoque!G:G,\"Entrada\")-SUMIFS(BDMovEstoque!C:C,BDMovEstoque!A:A,Tabela3[[#This Row],[Código]],BDMovEstoque!G:G,\"Saída\")","v":0},{"$f":"IF(Tabela3[[#This Row],[Saldo Estoque]]<Tabela3[[#This Row],[Estoque Mínimo]],\"Sim\",\"\")","v":""},{"$f":"Tabela3[[#This Row],[Saldo Estoque]]*Tabela3[[#This Row],[Valor]]","v":0}]
[299,null,null,null,null,{"$f":"SUMIFS(BDMovEstoque!C:C,BDMovEstoque!A:A,Tabela3[[#This Row],[Código]],BDMovEstoque!G:G,\"Entrada\")-SUMIFS(BDMovEstoque!C:C,BDMovEstoque!A:A,Tabela3[[#This Row],[Código]],BDMovEstoque!G:G,\"Saída\")","v":0},{"$f":"IF(Tabela3[[#This Row],[Saldo Estoque]]<Tabela3[[#This Row],[Estoque Mínimo]],\"Sim\",\"\")","v":""},{"$f":"Tabela3[[#This Row],[Saldo Estoque]]*Tabela3[[#This Row],[Valor]]","v":0}]
[300,null,null,null,null,{"$f":"SUMIFS(BDMovEstoque!C:C,BDMovEstoque!A:A,Tabela3[[#This Row],[Código]],BDMovEstoque!G:G,\"Entrada\")-SUMIFS(BDMovEstoque!C:C,BDMovEstoque!A:A,Tabela3[[#This Row],[Código]],BDMovEstoque!G:G,\"Saída\")","v":0},{"$f":"IF(Tabela3[[#This Row],[Saldo Estoque]]<Tabela3[[#This Row],[Estoque Mínimo]],\"Sim\",\"\")","v":""},{"$f":"Tabela3[[#This Row],[Saldo Estoque]]*Tabela3[[#This Row],[Valor]]","v":0}]
[301,null,null,null,null,{"$f":"SUMIFS(BDMovEstoque!C:C,BDMovEstoque!A:A,Tabela3[[#This Row],[Código]],BDMovEstoque!G:G,\"Entrada\")-SUMIFS(BDMovEstoque!C:C,BDMovEstoque!A:A,Tabela3[[#This Row],[Código]],BDMovEstoque!G:G,\"Saída\")","v":0},{"$f":"IF(Tabela3[[#This Row],[Saldo Estoque]]<Tabela3[[#This Row],[Estoque Mínimo]],\"Sim\",\"\")","v":""},{"$f":"Tabela3[[#This Row],[Saldo Estoque]]*Tabela3[[#This Row],[Valor]]","v":0}]
[302,null,null,null,null,{"$f":"SUMIFS(BDMovEstoque!C:C,BDMovEstoque!A:A,Tabela3[[#This Row],[Código]],BDMovEstoque!G:G,\"Entrada\")-SUMIFS(BDMovEstoque!C:C,BDMovEstoque!A:A,Tabela3[[#This Row],[Código]],BDMovEstoque!G:G,\"Saída\")","v":0},{"$f":"IF(Tabela3[[#This Row],[Saldo Estoque]]<Tabela3[[#This Row],[Estoque Mínimo]],\"Sim\",\"\")","v":""},{"$f":"Tabela3[[#This Row],[Saldo Estoque]]*Tabela3[[#This Row],[Valor]]","v":0}]
[303,null,null,null,null,{"$f":"SUMIFS(BDMovEstoque!C:C,BDMovEstoque!A:A,Tabela3[[#This Row],[Código]],BDMovEstoque!G:G,\"Entrada\")-SUMIFS(BDMovEstoque!C:C,BDMovEstoque!A:A,Tabela3[[#This Row],[Código]],BDMovEstoque!G:G,\"Saída\")","v":0},{"$f":"IF(Tabela3[[#This Row],[Saldo Estoque]]<Tabela3[[#This Row],[Estoque Mínimo]],\"Sim\",\"\")","v":""},{"$f":"Tabela3[[#This Row],[Saldo Estoque]]*Tabela3[[#This Row],[Valor]]","v":0}]
[304,null,null,null,null,{"$f":"SUMIFS(BDMovEstoque!C:C,BDMovEstoque!A:A,Tabela3[[#This Row],[Código]],BDMovEstoque!G:G,\"Entrada\")-SUMIFS(BDMovEstoque!C:C,BDMovEstoque!A:A,Tabela3[[#This Row],[Código]],BDMovEstoque!G:G,\"Saída\")","v":0},{"$f":"IF(Tabela3[[#This Row],[Saldo Estoque]]<Tabela3[[#This Row],[Estoque Mínimo]],\"Sim\",\"\")","v":""},{"$f":"Tabela3[[#This Row],[Saldo Estoque]]*Tabela3[[#This Row],[Valor]]","v":0}]
[305,null,null,null,null,{"$f":"SUMIFS(BDMovEstoque!C:C,BDMovEstoque!A:A,Tabela3[[#This Row],[Código]],BDMovEstoque!G:G,\"Entrada\")-SUMIFS(BDMovEstoque!C:C,BDMovEstoque!A:A,Tabela3[[#This Row],[Código]],BDMovEstoque!G:G,\"Saída\")","v":0},{"$f":"IF(Tabela3[[#This Row],[Saldo Estoque]]<Tabela3[[#This Row],[Estoque Mínimo]],\"Sim\",\"\")","v":""},{"$f":"Tabela3[[#This Row],[Saldo Estoque]]*Tabela3[[#This Row],[Valor]]","v":0}]
[306,null,null,null,null,{"$f":"SUMIFS(BDMovEstoque!C:C,BDMovEstoque!A:A,Tabela3[[#This Row],[Código]],BDMovEstoque!G:G,\"Entrada\")-SUMIFS(BDMovEstoque!C:C,BDMovEstoque!A:A,Tabela3[[#This Row],[Código]],BDMovEstoque!G:G,\"Saída\")","v":0},{"$f":"IF(Tabela3[[#This Row],[Saldo Estoque]]<Tabela3[[#This Row],[Estoque Mínimo]],\"Sim\",\"\")","v":""},{"$f":"Tabela3[[#This Row],[Saldo Estoque]]*Tabela3[[#This Row],[Valor]]","v":0}]
[307,null,null,null,null,{"$f":"SUMIFS(BDMovEstoque!C:C,BDMovEstoque!A:A,Tabela3[[#This Row],[Código]],BDMovEstoque!G:G,\"Entrada\")-SUMIFS(BDMovEstoque!C:C,BDMovEstoque!A:A,Tabela3[[#This Row],[Código]],BDMovEstoque!G:G,\"Saída\")","v":0},{"$f":"IF(Tabela3[[#This Row],[Saldo Estoque]]<Tabela3[[#This Row],[Estoque Mínimo]],\"Sim\",\"\")","v":""},{"$f":"Tabela3[[#This Row],[Saldo Estoque]]*Tabela3[[#This Row],[Valor]]","v":0}]
[308,null,null,null,null,{"$f":"SUMIFS(BDMovEstoque!C:C,BDMovEstoque!A:A,Tabela3[[#This Row],[Código]],BDMovEstoque!G:G,\"Entrada\")-SUMIFS(BDMovEstoque!C:C,BDMovEstoque!A:A,Tabela3[[#This Row],[Código]],BDMovEstoque!G:G,\"Saída\")","v":0},{"$f":"IF(Tabela3[[#This Row],[Saldo Estoque]]<Tabela3[[#This Row],[Estoque Mínimo]],\"Sim\",\"\")","v":""},{"$f":"Tabela3[[#This Row],[Saldo Estoque]]*Tabela3[[#This Row],[Valor]]","v":0}]
[309,null,null,null,null,{"$f":"SUMIFS(BDMovEstoque!C:C,BDMovEstoque!A:A,Tabela3[[#This Row],[Código]],BDMovEstoque!G:G,\"Entrada\")-SUMIFS(BDMovEstoque!C:C,BDMovEstoque!A:A,Tabela3[[#This Row],[Código]],BDMovEstoque!G:G,\"Saída\")","v":0},{"$f":"IF(Tabela3[[#This Row],[Saldo Estoque]]<Tabela3[[#This Row],[Estoque Mínimo]],\"Sim\",\"\")","v":""},{"$f":"Tabela3[[#This Row],[Saldo Estoque]]*Tabela3[[#This Row],[Valor]]","v":0}]
[310,null,null,null,null,{"$f":"SUMIFS(BDMovEstoque!C:C,BDMovEstoque!A:A,Tabela3[[#This Row],[Código]],BDMovEstoque!G:G,\"Entrada\")-SUMIFS(BDMovEstoque!C:C,BDMovEstoque!A:A,Tabela3[[#This Row],[Código]],BDMovEstoque!G:G,\"Saída\")","v":0},{"$f":"IF(Tabela3[[#This Row],[Saldo Estoque]]<Tabela3[[#This Row],[Estoque Mínimo]],\"Sim\",\"\")","v":""},{"$f":"Tabela3[[#This Row],[Saldo Estoque]]*Tabela3[[#This Row],[Valor]]","v":0}]
[311,null,null,null,null,{"$f":"SUMIFS(BDMovEstoque!C:C,BDMovEstoque!A:A,Tabela3[[#This Row],[Código]],BDMovEstoque!G:G,\"Entrada\")-SUMIFS(BDMovEstoque!C:C,BDMovEstoque!A:A,Tabela3[[#This Row],[Código]],BDMovEstoque!G:G,\"Saída\")","v":0},{"$f":"IF(Tabela3[[#This Row],[Saldo Estoque]]<Tabela3[[#This Row],[Estoque Mínimo]],\"Sim\",\"\")","v":""},{"$f":"Tabela3[[#This Row],[Saldo Estoque]]*Tabela3[[#This Row],[Valor]]","v":0}]
[312,null,null,null,null,{"$f":"SUMIFS(BDMovEstoque!C:C,BDMovEstoque!A:A,Tabela3[[#This Row],[Código]],BDMovEstoque!G:G,\"Entrada\")-SUMIFS(BDMovEstoque!C:C,BDMovEstoque!A:A,Tabela3[[#This Row],[Código]],BDMovEstoque!G:G,\"Saída\")","v":0},{"$f":"IF(Tabela3[[#This Row],[Saldo Estoque]]<Tabela3[[#This Row],[Estoque Mínimo]],\"Sim\",\"\")","v":""},{"$f":"Tabela3[[#This Row],[Saldo Estoque]]*Tabela3[[#This Row],[Valor]]","v":0}]
[313,null,null,null,null,{"$f":"SUMIFS(BDMovEstoque!C:C,BDMovEstoque!A:A,Tabela3[[#This Row],[Código]],BDMovEstoque!G:G,\"Entrada\")-SUMIFS(BDMovEstoque!C:C,BDMovEstoque!A:A,Tabela3[[#This Row],[Código]],BDMovEstoque!G:G,\"Saída\")","v":0},{"$f":"IF(Tabela3[[#This Row],[Saldo Estoque]]<Tabela3[[#This Row],[Estoque Mínimo]],\"Sim\",\"\")","v":""},{"$f":"Tabela3[[#This Row],[Saldo Estoque]]*Tabela3[[#This Row],[Valor]]","v":0}]
[314,null,null,null,null,{"$f":"SUMIFS(BDMovEstoque!C:C,BDMovEstoque!A:A,Tabela3[[#This Row],[Código]],BDMovEstoque!G:G,\"Entrada\")-SUMIFS(BDMovEstoque!C:C,BDMovEstoque!A:A,Tabela3[[#This Row],[Código]],BDMovEstoque!G:G,\"Saída\")","v":0},{"$f":"IF(Tabela3[[#This Row],[Saldo Estoque]]<Tabela3[[#This Row],[Estoque Mínimo]],\"Sim\",\"\")","v":""},{"$f":"Tabela3[[#This Row],[Saldo Estoque]]*Tabela3[[#This Row],[Valor]]","v":0}]
[315,null,null,null,null,{"$f":"SUMIFS(BDMovEstoque!C:C,BDMovEstoque!A:A,Tabela3[[#This Row],[Código]],BDMovEstoque!G:G,\"Entrada\")-SUMIFS(BDMovEstoque!C:C,BDMovEstoque!A:A,Tabela3[[#This Row],[Código]],BDMovEstoque!G:G,\"Saída\")","v":0},{"$f":"IF(Tabela3[[#This Row],[Saldo Estoque]]<Tabela3[[#This Row],[Estoque Mínimo]],\"Sim\",\"\")","v":""},{"$f":"Tabela3[[#This Row],[Saldo Estoque]]*Tabela3[[#This Row],[Valor]]","v":0}]
[316,null,null,null,null,{"$f":"SUMIFS(BDMovEstoque!C:C,BDMovEstoque!A:A,Tabela3[[#This Row],[Código]],BDMovEstoque!G:G,\"Entrada\")-SUMIFS(BDMovEstoque!C:C,BDMovEstoque!A:A,Tabela3[[#This Row],[Código]],BDMovEstoque!G:G,\"Saída\")","v":0},{"$f":"IF(Tabela3[[#This Row],[Saldo Estoque]]<Tabela3[[#This Row],[Estoque Mínimo]],\"Sim\",\"\")","v":""},{"$f":"Tabela3[[#This Row],[Saldo Estoque]]*Tabela3[[#This Row],[Valor]]","v":0}]
[317,null,null,null,null,{"$f":"SUMIFS(BDMovEstoque!C:C,BDMovEstoque!A:A,Tabela3[[#This Row],[Código]],BDMovEstoque!G:G,\"Entrada\")-SUMIFS(BDMovEstoque!C:C,BDMovEstoque!A:A,Tabela3[[#This Row],[Código]],BDMovEstoque!G:G,\"Saída\")","v":0},{"$f":"IF(Tabela3[[#This Row],[Saldo Estoque]]<Tabela3[[#This Row],[Estoque Mínimo]],\"Sim\",\"\")","v":""},{"$f":"Tabela3[[#This Row],[Saldo Estoque]]*Tabela3[[#This Row],[Valor]]","v":0}]
[318,null,null,null,null,{"$f":"SUMIFS(BDMovEstoque!C:C,BDMovEstoque!A:A,Tabela3[[#This Row],[Código]],BDMovEstoque!G:G,\"Entrada\")-SUMIFS(BDMovEstoque!C:C,BDMovEstoque!A:A,Tabela3[[#This Row],[Código]],BDMovEstoque!G:G,\"Saída\")","v":0},{"$f":"IF(Tabela3[[#This Row],[Saldo Estoque]]<Tabela3[[#This Row],[Estoque Mínimo]],\"Sim\",\"\")","v":""},{"$f":"Tabela3[[#This Row],[Saldo Estoque]]*Tabela3[[#This Row],[Valor]]","v":0}]
[319,null,null,null,null,{"$f":"SUMIFS(BDMovEstoque!C:C,BDMovEstoque!A:A,Tabela3[[#This Row],[Código]],BDMovEstoque!G:G,\"Entrada\")-SUMIFS(BDMovEstoque!C:C,BDMovEstoque!A:A,Tabela3[[#This Row],[Código]],BDMovEstoque!G:G,\"Saída\")","v":0},{"$f":"IF(Tabela3[[#This Row],[Saldo Estoque]]<Tabela3[[#This Row],[Estoque Mínimo]],\"Sim\",\"\")","v":""},{"$f":"Tabela3[[#This Row],[Saldo Estoque]]*Tabela3[[#This Row],[Valor]]","v":0}]
[320,null,null,null,null,{"$f":"SUMIFS(BDMovEstoque!C:C,BDMovEstoque!A:A,Tabela3[[#This Row],[Código]],BDMovEstoque!G:G,\"Entrada\")-SUMIFS(BDMovEstoque!C:C,BDMovEstoque!A:A,Tabela3[[#This Row],[Código]],BDMovEstoque!G:G,\"Saída\")","v":0},{"$f":"IF(Tabela3[[#This Row],[Saldo Estoque]]<Tabela3[[#This Row],[Estoque Mínimo]],\"Sim\",\"\")","v":""},{"$f":"Tabela3[[#This Row],[Saldo Estoque]]*Tabela3[[#This Row],[Valor]]","v":0}]
[321,null,null,null,null,{"$f":"SUMIFS(BDMovEstoque!C:C,BDMovEstoque!A:A,Tabela3[[#This Row],[Código]],BDMovEstoque!G:G,\"Entrada\")-SUMIFS(BDMovEstoque!C:C,BDMovEstoque!A:A,Tabela3[[#This Row],[Código]],BDMovEstoque!G:G,\"Saída\")","v":0},{"$f":"IF(Tabela3[[#This Row],[Saldo Estoque]]<Tabela3[[#This Row],[Estoque Mínimo]],\"Sim\",\"\")","v":""},{"$f":"Tabela3[[#This Row],[Saldo Estoque]]*Tabela3[[#This Row],[Valor]]","v":0}]
[322,null,null,null,null,{"$f":"SUMIFS(BDMovEstoque!C:C,BDMovEstoque!A:A,Tabela3[[#This Row],[Código]],BDMovEstoque!G:G,\"Entrada\")-SUMIFS(BDMovEstoque!C:C,BDMovEstoque!A:A,Tabela3[[#This Row],[Código]],BDMovEstoque!G:G,\"Saída\")","v":0},{"$f":"IF(Tabela3[[#This Row],[Saldo Estoque]]<Tabela3[[#This Row],[Estoque Mínimo]],\"Sim\",\"\")","v":""},{"$f":"Tabela3[[#This Row],[Saldo Estoque]]*Tabela3[[#This Row],[Valor]]","v":0}]
[323,null,null,null,null,{"$f":"SUMIFS(BDMovEstoque!C:C,BDMovEstoque!A:A,Tabela3[[#This Row],[Código]],BDMovEstoque!G:G,\"Entrada\")-SUMIFS(BDMovEstoque!C:C,BDMovEstoque!A:A,Tabela3[[#This Row],[Código]],BDMovEstoque!G:G,\"Saída\")","v":0},{"$f":"IF(Tabela3[[#This Row],[Saldo Estoque]]<Tabela3[[#This Row],[Estoque Mínimo]],\"Sim\",\"\")","v":""},{"$f":"Tabela3[[#This Row],[Saldo Estoque]]*Tabela3[[#This Row],[Valor]]","v":0}]
[324,null,null,null,null,{"$f":"SUMIFS(BDMovEstoque!C:C,BDMovEstoque!A:A,Tabela3[[#This Row],[Código]],BDMovEstoque!G:G,\"Entrada\")-SUMIFS(BDMovEstoque!C:C,BDMovEstoque!A:A,Tabela3[[#This Row],[Código]],BDMovEstoque!G:G,\"Saída\")","v":0},{"$f":"IF(Tabela3[[#This Row],[Saldo Estoque]]<Tabela3[[#This Row],[Estoque Mínimo]],\"Sim\",\"\")","v":""},{"$f":"Tabela3[[#This Row],[Saldo Estoque]]*Tabela3[[#This Row],[Valor]]","v":0}]
[325,null,null,null,null,{"$f":"SUMIFS(BDMovEstoque!C:C,BDMovEstoque!A:A,Tabela3[[#This Row],[Código]],BDMovEstoque!G:G,\"Entrada\")-SUMIFS(BDMovEstoque!C:C,BDMovEstoque!A:A,Tabela3[[#This Row],[Código]],BDMovEstoque!G:G,\"Saída\")","v":0},{"$f":"IF(Tabela3[[#This Row],[Saldo Estoque]]<Tabela3[[#This Row],[Estoque Mínimo]],\"Sim\",\"\")","v":""},{"$f":"Tabela3[[#This Row],[Saldo Estoque]]*Tabela3[[#This Row],[Valor]]","v":0}]
[326,null,null,null,null,{"$f":"SUMIFS(BDMovEstoque!C:C,BDMovEstoque!A:A,Tabela3[[#This Row],[Código]],BDMovEstoque!G:G,\"Entrada\")-SUMIFS(BDMovEstoque!C:C,BDMovEstoque!A:A,Tabela3[[#This Row],[Código]],BDMovEstoque!G:G,\"Saída\")","v":0},{"$f":"IF(Tabela3[[#This Row],[Saldo Estoque]]<Tabela3[[#This Row],[Estoque Mínimo]],\"Sim\",\"\")","v":""},{"$f":"Tabela3[[#This Row],[Saldo Estoque]]*Tabela3[[#This Row],[Valor]]","v":0}]
[327,null,null,null,null,{"$f":"SUMIFS(BDMovEstoque!C:C,BDMovEstoque!A:A,Tabela3[[#This Row],[Código]],BDMovEstoque!G:G,\"Entrada\")-SUMIFS(BDMovEstoque!C:C,BDMovEstoque!A:A,Tabela3[[#This Row],[Código]],BDMovEstoque!G:G,\"Saída\")","v":0},{"$f":"IF(Tabela3[[#This Row],[Saldo Estoque]]<Tabela3[[#This Row],[Estoque Mínimo]],\"Sim\",\"\")","v":""},{"$f":"Tabela3[[#This Row],[Saldo Estoque]]*Tabela3[[#This Row],[Valor]]","v":0}]
[328,null,null,null,null,{"$f":"SUMIFS(BDMovEstoque!C:C,BDMovEstoque!A:A,Tabela3[[#This Row],[Código]],BDMovEstoque!G:G,\"Entrada\")-SUMIFS(BDMovEstoque!C:C,BDMovEstoque!A:A,Tabela3[[#This Row],[Código]],BDMovEstoque!G:G,\"Saída\")","v":0},{"$f":"IF(Tabela3[[#This Row],[Saldo Estoque]]<Tabela3[[#This Row],[Estoque Mínimo]],\"Sim\",\"\")","v":""},{"$f":"Tabela3[[#This Row],[Saldo Estoque]]*Tabela3[[#This Row],[Valor]]","v":0}]
[329,null,null,null,null,{"$f":"SUMIFS(BDMovEstoque!C:C,BDMovEstoque!A:A,Tabela3[[#This Row],[Código]],BDMovEstoque!G:G,\"Entrada\")-SUMIFS(BDMovEstoque!C:C,BDMovEstoque!A:A,Tabela3[[#This Row],[Código]],BDMovEstoque!G:G,\"Saída\")","v":0},{"$f":"IF(Tabela3[[#This Row],[Saldo Estoque]]<Tabela3[[#This Row],[Estoque Mínimo]],\"Sim\",\"\")","v":""},{"$f":"Tabela3[[#This Row],[Saldo Estoque]]*Tabela3[[#This Row],[Valor]]","v":0}]
[330,null,null,null,null,{"$f":"SUMIFS(BDMovEstoque!C:C,BDMovEstoque!A:A,Tabela3[[#This Row],[Código]],BDMovEstoque!G:G,\"Entrada\")-SUMIFS(BDMovEstoque!C:C,BDMovEstoque!A:A,Tabela3[[#This Row],[Código]],BDMovEstoque!G:G,\"Saída\")","v":0},{"$f":"IF(Tabela3[[#This Row],[Saldo Estoque]]<Tabela3[[#This Row],[Estoque Mínimo]],\"Sim\",\"\")","v":""},{"$f":"Tabela3[[#This Row],[Saldo Estoque]]*Tabela3[[#This Row],[Valor]]","v":0}]
[331,null,null,null,null,{"$f":"SUMIFS(BDMovEstoque!C:C,BDMovEstoque!A:A,Tabela3[[#This Row],[Código]],BDMovEstoque!G:G,\"Entrada\")-SUMIFS(BDMovEstoque!C:C,BDMovEstoque!A:A,Tabela3[[#This Row],[Código]],BDMovEstoque!G:G,\"Saída\")","v":0},{"$f":"IF(Tabela3[[#This Row],[Saldo Estoque]]<Tabela3[[#This Row],[Estoque Mínimo]],\"Sim\",\"\")","v":""},{"$f":"Tabela3[[#This Row],[Saldo Estoque]]*Tabela3[[#This Row],[Valor]]","v":0}]
[332,null,null,null,null,{"$f":"SUMIFS(BDMovEstoque!C:C,BDMovEstoque!A:A,Tabela3[[#This Row],[Código]],BDMovEstoque!G:G,\"Entrada\")-SUMIFS(BDMovEstoque!C:C,BDMovEstoque!A:A,Tabela3[[#This Row],[Código]],BDMovEstoque!G:G,\"Saída\")","v":0},{"$f":"IF(Tabela3[[#This Row],[Saldo Estoque]]<Tabela3[[#This Row],[Estoque Mínimo]],\"Sim\",\"\")","v":""},{"$f":"Tabela3[[#This Row],[Saldo Estoque]]*Tabela3[[#This Row],[Valor]]","v":0}]
[333,null,null,null,null,{"$f":"SUMIFS(BDMovEstoque!C:C,BDMovEstoque!A:A,Tabela3[[#This Row],[Código]],BDMovEstoque!G:G,\"Entrada\")-SUMIFS(BDMovEstoque!C:C,BDMovEstoque!A:A,Tabela3[[#This Row],[Código]],BDMovEstoque!G:G,\"Saída\")","v":0},{"$f":"IF(Tabela3[[#This Row],[Saldo Estoque]]<Tabela3[[#This Row],[Estoque Mínimo]],\"Sim\",\"\")","v":""},{"$f":"Tabela3[[#This Row],[Saldo Estoque]]*Tabela3[[#This Row],[Valor]]","v":0}]
[334,null,null,null,null,{"$f":"SUMIFS(BDMovEstoque!C:C,BDMovEstoque!A:A,Tabela3[[#This Row],[Código]],BDMovEstoque!G:G,\"Entrada\")-SUMIFS(BDMovEstoque!C:C,BDMovEstoque!A:A,Tabela3[[#This Row],[Código]],BDMovEstoque!G:G,\"Saída\")","v":0},{"$f":"IF(Tabela3[[#This Row],[Saldo Estoque]]<Tabela3[[#This Row],[Estoque Mínimo]],\"Sim\",\"\")","v":""},{"$f":"Tabela3[[#This Row],[Saldo Estoque]]*Tabela3[[#This Row],[Valor]]","v":0}]
[335,null,null,null,null,{"$f":"SUMIFS(BDMovEstoque!C:C,BDMovEstoque!A:A,Tabela3[[#This Row],[Código]],BDMovEstoque!G:G,\"Entrada\")-SUMIFS(BDMovEstoque!C:C,BDMovEstoque!A:A,Tabela3[[#This Row],[Código]],BDMovEstoque!G:G,\"Saída\")","v":0},{"$f":"IF(Tabela3[[#This Row],[Saldo Estoque]]<Tabela3[[#This Row],[Estoque Mínimo]],\"Sim\",\"\")","v":""},{"$f":"Tabela3[[#This Row],[Saldo Estoque]]*Tabela3[[#This Row],[Valor]]","v":0}]
[336,null,null,null,null,{"$f":"SUMIFS(BDMovEstoque!C:C,BDMovEstoque!A:A,Tabela3[[#This Row],[Código]],BDMovEstoque!G:G,\"Entrada\")-SUMIFS(BDMovEstoque!C:C,BDMovEstoque!A:A,Tabela3[[#This Row],[Código]],BDMovEstoque!G:G,\"Saída\")","v":0},{"$f":"IF(Tabela3[[#This Row],[Saldo Estoque]]<Tabela3[[#This Row],[Estoque Mínimo]],\"Sim\",\"\")","v":""},{"$f":"Tabela3[[#This Row],[Saldo Estoque]]*Tabela3[[#This Row],[Valor]]","v":0}]
[337,null,null,null,null,{"$f":"SUMIFS(BDMovEstoque!C:C,BDMovEstoque!A:A,Tabela3[[#This Row],[Código]],BDMovEstoque!G:G,\"Entrada\")-SUMIFS(BDMovEstoque!C:C,BDMovEstoque!A:A,Tabela3[[#This Row],[Código]],BDMovEstoque!G:G,\"Saída\")","v":0},{"$f":"IF(Tabela3[[#This Row],[Saldo Estoque]]<Tabela3[[#This Row],[Estoque Mínimo]],\"Sim\",\"\")","v":""},{"$f":"Tabela3[[#This Row],[Saldo Estoque]]*Tabela3[[#This Row],[Valor]]","v":0}]
[338,null,null,null,null,{"$f":"SUMIFS(BDMovEstoque!C:C,BDMovEstoque!A:A,Tabela3[[#This Row],[Código]],BDMovEstoque!G:G,\"Entrada\")-SUMIFS(BDMovEstoque!C:C,BDMovEstoque!A:A,Tabela3[[#This Row],[Código]],BDMovEstoque!G:G,\"Saída\")","v":0},{"$f":"IF(Tabela3[[#This Row],[Saldo Estoque]]<Tabela3[[#This Row],[Estoque Mínimo]],\"Sim\",\"\")","v":""},{"$f":"Tabela3[[#This Row],[Saldo Estoque]]*Tabela3[[#This Row],[Valor]]","v":0}]
[339,null,null,null,null,{"$f":"SUMIFS(BDMovEstoque!C:C,BDMovEstoque!A:A,Tabela3[[#This Row],[Código]],BDMovEstoque!G:G,\"Entrada\")-SUMIFS(BDMovEstoque!C:C,BDMovEstoque!A:A,Tabela3[[#This Row],[Código]],BDMovEstoque!G:G,\"Saída\")","v":0},{"$f":"IF(Tabela3[[#This Row],[Saldo Estoque]]<Tabela3[[#This Row],[Estoque Mínimo]],\"Sim\",\"\")","v":""},{"$f":"Tabela3[[#This Row],[Saldo Estoque]]*Tabela3[[#This Row],[Valor]]","v":0}]
[340,null,null,null,null,{"$f":"SUMIFS(BDMovEstoque!C:C,BDMovEstoque!A:A,Tabela3[[#This Row],[Código]],BDMovEstoque!G:G,\"Entrada\")-SUMIFS(BDMovEstoque!C:C,BDMovEstoque!A:A,Tabela3[[#This Row],[Código]],BDMovEstoque!G:G,\"Saída\")","v":0},{"$f":"IF(Tabela3[[#This Row],[Saldo Estoque]]<Tabela3[[#This Row],[Estoque Mínimo]],\"Sim\",\"\")","v":""},{"$f":"Tabela3[[#This Row],[Saldo Estoque]]*Tabela3[[#This Row],[Valor]]","v":0}]
[341,null,null,null,null,{"$f":"SUMIFS(BDMovEstoque!C:C,BDMovEstoque!A:A,Tabela3[[#This Row],[Código]],BDMovEstoque!G:G,\"Entrada\")-SUMIFS(BDMovEstoque!C:C,BDMovEstoque!A:A,Tabela3[[#This Row],[Código]],BDMovEstoque!G:G,\"Saída\")","v":0},{"$f":"IF(Tabela3[[#This Row],[Saldo Estoque]]<Tabela3[[#This Row],[Estoque Mínimo]],\"Sim\",\"\")","v":""},{"$f":"Tabela3[[#This Row],[Saldo Estoque]]*Tabela3[[#This Row],[Valor]]","v":0}]
[342,null,null,null,null,{"$f":"SUMIFS(BDMovEstoque!C:C,BDMovEstoque!A:A,Tabela3[[#This Row],[Código]],BDMovEstoque!G:G,\"Entrada\")-SUMIFS(BDMovEstoque!C:C,BDMovEstoque!A:A,Tabela3[[#This Row],[Código]],BDMovEstoque!G:G,\"Saída\")","v":0},{"$f":"IF(Tabela3[[#This Row],[Saldo Estoque]]<Tabela3[[#This Row],[Estoque Mínimo]],\"Sim\",\"\")","v":""},{"$f":"Tabela3[[#This Row],[Saldo Estoque]]*Tabela3[[#This Row],[Valor]]","v":0}]
[343,null,null,null,null,{"$f":"SUMIFS(BDMovEstoque!C:C,BDMovEstoque!A:A,Tabela3[[#This Row],[Código]],BDMovEstoque!G:G,\"Entrada\")-SUMIFS(BDMovEstoque!C:C,BDMovEstoque!A:A,Tabela3[[#This Row],[Código]],BDMovEstoque!G:G,\"Saída\")","v":0},{"$f":"IF(Tabela3[[#This Row],[Saldo Estoque]]<Tabela3[[#This Row],[Estoque Mínimo]],\"Sim\",\"\")","v":""},{"$f":"Tabela3[[#This Row],[Saldo Estoque]]*Tabela3[[#This Row],[Valor]]","v":0}]
[344,null,null,null,null,{"$f":"SUMIFS(BDMovEstoque!C:C,BDMovEstoque!A:A,Tabela3[[#This Row],[Código]],BDMovEstoque!G:G,\"Entrada\")-SUMIFS(BDMovEstoque!C:C,BDMovEstoque!A:A,Tabela3[[#This Row],[Código]],BDMovEstoque!G:G,\"Saída\")","v":0},{"$f":"IF(Tabela3[[#This Row],[Saldo Estoque]]<Tabela3[[#This Row],[Estoque Mínimo]],\"Sim\",\"\")","v":""},{"$f":"Tabela3[[#This Row],[Saldo Estoque]]*Tabela3[[#This Row],[Valor]]","v":0}]
[345,null,null,null,null,{"$f":"SUMIFS(BDMovEstoque!C:C,BDMovEstoque!A:A,Tabela3[[#This Row],[Código]],BDMovEstoque!G:G,\"Entrada\")-SUMIFS(BDMovEstoque!C:C,BDMovEstoque!A:A,Tabela3[[#This Row],[Código]],BDMovEstoque!G:G,\"Saída\")","v":0},{"$f":"IF(Tabela3[[#This Row],[Saldo Estoque]]<Tabela3[[#This Row],[Estoque Mínimo]],\"Sim\",\"\")","v":""},{"$f":"Tabela3[[#This Row],[Saldo Estoque]]*Tabela3[[#This Row],[Valor]]","v":0}]
[346,null,null,null,null,{"$f":"SUMIFS(BDMovEstoque!C:C,BDMovEstoque!A:A,Tabela3[[#This Row],[Código]],BDMovEstoque!G:G,\"Entrada\")-SUMIFS(BDMovEstoque!C:C,BDMovEstoque!A:A,Tabela3[[#This Row],[Código]],BDMovEstoque!G:G,\"Saída\")","v":0},{"$f":"IF(Tabela3[[#This Row],[Saldo Estoque]]<Tabela3[[#This Row],[Estoque Mínimo]],\"Sim\",\"\")","v":""},{"$f":"Tabela3[[#This Row],[Saldo Estoque]]*Tabela3[[#This Row],[Valor]]","v":0}]
[347,null,null,null,null,{"$f":"SUMIFS(BDMovEstoque!C:C,BDMovEstoque!A:A,Tabela3[[#This Row],[Código]],BDMovEstoque!G:G,\"Entrada\")-SUMIFS(BDMovEstoque!C:C,BDMovEstoque!A:A,Tabela3[[#This Row],[Código]],BDMovEstoque!G:G,\"Saída\")","v":0},{"$f":"IF(Tabela3[[#This Row],[Saldo Estoque]]<Tabela3[[#This Row],[Estoque Mínimo]],\"Sim\",\"\")","v":""},{"$f":"Tabela3[[#This Row],[Saldo Estoque]]*Tabela3[[#This Row],[Valor]]","v":0}]
[348,null,null,null,null,{"$f":"SUMIFS(BDMovEstoque!C:C,BDMovEstoque!A:A,Tabela3[[#This Row],[Código]],BDMovEstoque!G:G,\"Entrada\")-SUMIFS(BDMovEstoque!C:C,BDMovEstoque!A:A,Tabela3[[#This Row],[Código]],BDMovEstoque!G:G,\"Saída\")","v":0},{"$f":"IF(Tabela3[[#This Row],[Saldo Estoque]]<Tabela3[[#This Row],[Estoque Mínimo]],\"Sim\",\"\")","v":""},{"$f":"Tabela3[[#This Row],[Saldo Estoque]]*Tabela3[[#This Row],[Valor]]","v":0}]
[349,null,null,null,null,{"$f":"SUMIFS(BDMovEstoque!C:C,BDMovEstoque!A:A,Tabela3[[#This Row],[Código]],BDMovEstoque!G:G,\"Entrada\")-SUMIFS(BDMovEstoque!C:C,BDMovEstoque!A:A,Tabela3[[#This Row],[Código]],BDMovEstoque!G:G,\"Saída\")","v":0},{"$f":"IF(Tabela3[[#This Row],[Saldo Estoque]]<Tabela3[[#This Row],[Estoque Mínimo]],\"Sim\",\"\")","v":""},{"$f":"Tabela3[[#This Row],[Saldo Estoque]]*Tabela3[[#This Row],[Valor]]","v":0}]
[350,null,null,null,null,{"$f":"SUMIFS(BDMovEstoque!C:C,BDMovEstoque!A:A,Tabela3[[#This Row],[Código]],BDMovEstoque!G:G,\"Entrada\")-SUMIFS(BDMovEstoque!C:C,BDMovEstoque!A:A,Tabela3[[#This Row],[Código]],BDMovEstoque!G:G,\"Saída\")","v":0},{"$f":"IF(Tabela3[[#This Row],[Saldo Estoque]]<Tabela3[[#This Row],[Estoque Mínimo]],\"Sim\",\"\")","v":""},{"$f":"Tabela3[[#This Row],[Saldo Estoque]]*Tabela3[[#This Row],[Valor]]","v":0}]
[351,null,null,null,null,{"$f":"SUMIFS(BDMovEstoque!C:C,BDMovEstoque!A:A,Tabela3[[#This Row],[Código]],BDMovEstoque!G:G,\"Entrada\")-SUMIFS(BDMovEstoque!C:C,BDMovEstoque!A:A,Tabela3[[#This Row],[Código]],BDMovEstoque!G:G,\"Saída\")","v":0},{"$f":"IF(Tabela3[[#This Row],[Saldo Estoque]]<Tabela3[[#This Row],[Estoque Mínimo]],\"Sim\",\"\")","v":""},{"$f":"Tabela3[[#This Row],[Saldo Estoque]]*Tabela3[[#This Row],[Valor]]","v":0}]
[352,null,null,null,null,{"$f":"SUMIFS(BDMovEstoque!C:C,BDMovEstoque!A:A,Tabela3[[#This Row],[Código]],BDMovEstoque!G:G,\"Entrada\")-SUMIFS(BDMovEstoque!C:C,BDMovEstoque!A:A,Tabela3[[#This Row],[Código]],BDMovEstoque!G:G,\"Saída\")","v":0},{"$f":"IF(Tabela3[[#This Row],[Saldo Estoque]]<Tabela3[[#This Row],[Estoque Mínimo]],\"Sim\",\"\")","v":""},{"$f":"Tabela3[[#This Row],[Saldo Estoque]]*Tabela3[[#This Row],[Valor]]","v":0}]
[353,null,null,null,null,{"$f":"SUMIFS(BDMovEstoque!C:C,BDMovEstoque!A:A,Tabela3[[#This Row],[Código]],BDMovEstoque!G:G,\"Entrada\")-SUMIFS(BDMovEstoque!C:C,BDMovEstoque!A:A,Tabela3[[#This Row],[Código]],BDMovEstoque!G:G,\"Saída\")","v":0},{"$f":"IF(Tabela3[[#This Row],[Saldo Estoque]]<Tabela3[[#This Row],[Estoque Mínimo]],\"Sim\",\"\")","v":""},{"$f":"Tabela3[[#This Row],[Saldo Estoque]]*Tabela3[[#This Row],[Valor]]","v":0}]
[354,null,null,null,null,{"$f":"SUMIFS(BDMovEstoque!C:C,BDMovEstoque!A:A,Tabela3[[#This Row],[Código]],BDMovEstoque!G:G,\"Entrada\")-SUMIFS(BDMovEstoque!C:C,BDMovEstoque!A:A,Tabela3[[#This Row],[Código]],BDMovEstoque!G:G,\"Saída\")","v":0},{"$f":"IF(Tabela3[[#This Row],[Saldo Estoque]]<Tabela3[[#This Row],[Estoque Mínimo]],\"Sim\",\"\")","v":""},{"$f":"Tabela3[[#This Row],[Saldo Estoque]]*Tabela3[[#This Row],[Valor]]","v":0}]
[355,null,null,null,null,{"$f":"SUMIFS(BDMovEstoque!C:C,BDMovEstoque!A:A,Tabela3[[#This Row],[Código]],BDMovEstoque!G:G,\"Entrada\")-SUMIFS(BDMovEstoque!C:C,BDMovEstoque!A:A,Tabela3[[#This Row],[Código]],BDMovEstoque!G:G,\"Saída\")","v":0},{"$f":"IF(Tabela3[[#This Row],[Saldo Estoque]]<Tabela3[[#This Row],[Estoque Mínimo]],\"Sim\",\"\")","v":""},{"$f":"Tabela3[[#This Row],[Saldo Estoque]]*Tabela3[[#This Row],[Valor]]","v":0}]
[356,null,null,null,null,{"$f":"SUMIFS(BDMovEstoque!C:C,BDMovEstoque!A:A,Tabela3[[#This Row],[Código]],BDMovEstoque!G:G,\"Entrada\")-SUMIFS(BDMovEstoque!C:C,BDMovEstoque!A:A,Tabela3[[#This Row],[Código]],BDMovEstoque!G:G,\"Saída\")","v":0},{"$f":"IF(Tabela3[[#This Row],[Saldo Estoque]]<Tabela3[[#This Row],[Estoque Mínimo]],\"Sim\",\"\")","v":""},{"$f":"Tabela3[[#This Row],[Saldo Estoque]]*Tabela3[[#This Row],[Valor]]","v":0}]
[357,null,null,null,null,{"$f":"SUMIFS(BDMovEstoque!C:C,BDMovEstoque!A:A,Tabela3[[#This Row],[Código]],BDMovEstoque!G:G,\"Entrada\")-SUMIFS(BDMovEstoque!C:C,BDMovEstoque!A:A,Tabela3[[#This Row],[Código]],BDMovEstoque!G:G,\"Saída\")","v":0},{"$f":"IF(Tabela3[[#This Row],[Saldo Estoque]]<Tabela3[[#This Row],[Estoque Mínimo]],\"Sim\",\"\")","v":""},{"$f":"Tabela3[[#This Row],[Saldo Estoque]]*Tabela3[[#This Row],[Valor]]","v":0}]
[358,null,null,null,null,{"$f":"SUMIFS(BDMovEstoque!C:C,BDMovEstoque!A:A,Tabela3[[#This Row],[Código]],BDMovEstoque!G:G,\"Entrada\")-SUMIFS(BDMovEstoque!C:C,BDMovEstoque!A:A,Tabela3[[#This Row],[Código]],BDMovEstoque!G:G,\"Saída\")","v":0},{"$f":"IF(Tabela3[[#This Row],[Saldo Estoque]]<Tabela3[[#This Row],[Estoque Mínimo]],\"Sim\",\"\")","v":""},{"$f":"Tabela3[[#This Row],[Saldo Estoque]]*Tabela3[[#This Row],[Valor]]","v":0}]
[359,null,null,null,null,{"$f":"SUMIFS(BDMovEstoque!C:C,BDMovEstoque!A:A,Tabela3[[#This Row],[Código]],BDMovEstoque!G:G,\"Entrada\")-SUMIFS(BDMovEstoque!C:C,BDMovEstoque!A:A,Tabela3[[#This Row],[Código]],BDMovEstoque!G:G,\"Saída\")","v":0},{"$f":"IF(Tabela3[[#This Row],[Saldo Estoque]]<Tabela3[[#This Row],[Estoque Mínimo]],\"Sim\",\"\")","v":""},{"$f":"Tabela3[[#This Row],[Saldo Estoque]]*Tabela3[[#This Row],[Valor]]","v":0}]
[360,null,null,null,null,{"$f":"SUMIFS(BDMovEstoque!C:C,BDMovEstoque!A:A,Tabela3[[#This Row],[Código]],BDMovEstoque!G:G,\"Entrada\")-SUMIFS(BDMovEstoque!C:C,BDMovEstoque!A:A,Tabela3[[#This Row],[Código]],BDMovEstoque!G:G,\"Saída\")","v":0},{"$f":"IF(Tabela3[[#This Row],[Saldo Estoque]]<Tabela3[[#This Row],[Estoque Mínimo]],\"Sim\",\"\")","v":""},{"$f":"Tabela3[[#This Row],[Saldo Estoque]]*Tabela3[[#This Row],[Valor]]","v":0}]
[361,null,null,null,null,{"$f":"SUMIFS(BDMovEstoque!C:C,BDMovEstoque!A:A,Tabela3[[#This Row],[Código]],BDMovEstoque!G:G,\"Entrada\")-SUMIFS(BDMovEstoque!C:C,BDMovEstoque!A:A,Tabela3[[#This Row],[Código]],BDMovEstoque!G:G,\"Saída\")","v":0},{"$f":"IF(Tabela3[[#This Row],[Saldo Estoque]]<Tabela3[[#This Row],[Estoque Mínimo]],\"Sim\",\"\")","v":""},{"$f":"Tabela3[[#This Row],[Saldo Estoque]]*Tabela3[[#This Row],[Valor]]","v":0}]
[362,null,null,null,null,{"$f":"SUMIFS(BDMovEstoque!C:C,BDMovEstoque!A:A,Tabela3[[#This Row],[Código]],BDMovEstoque!G:G,\"Entrada\")-SUMIFS(BDMovEstoque!C:C,BDMovEstoque!A:A,Tabela3[[#This Row],[Código]],BDMovEstoque!G:G,\"Saída\")","v":0},{"$f":"IF(Tabela3[[#This Row],[Saldo Estoque]]<Tabela3[[#This Row],[Estoque Mínimo]],\"Sim\",\"\")","v":""},{"$f":"Tabela3[[#This Row],[Saldo Estoque]]*Tabela3[[#This Row],[Valor]]","v":0}]
[363,null,null,null,null,{"$f":"SUMIFS(BDMovEstoque!C:C,BDMovEstoque!A:A,Tabela3[[#This Row],[Código]],BDMovEstoque!G:G,\"Entrada\")-SUMIFS(BDMovEstoque!C:C,BDMovEstoque!A:A,Tabela3[[#This Row],[Código]],BDMovEstoque!G:G,\"Saída\")","v":0},{"$f":"IF(Tabela3[[#This Row],[Saldo Estoque]]<Tabela3[[#This Row],[Estoque Mínimo]],\"Sim\",\"\")","v":""},{"$f":"Tabela3[[#This Row],[Saldo Estoque]]*Tabela3[[#This Row],[Valor]]","v":0}]
[364,null,null,null,null,{"$f":"SUMIFS(BDMovEstoque!C:C,BDMovEstoque!A:A,Tabela3[[#This Row],[Código]],BDMovEstoque!G:G,\"Entrada\")-SUMIFS(BDMovEstoque!C:C,BDMovEstoque!A:A,Tabela3[[#This Row],[Código]],BDMovEstoque!G:G,\"Saída\")","v":0},{"$f":"IF(Tabela3[[#This Row],[Saldo Estoque]]<Tabela3[[#This Row],[Estoque Mínimo]],\"Sim\",\"\")","v":""},{"$f":"Tabela3[[#This Row],[Saldo Estoque]]*Tabela3[[#This Row],[Valor]]","v":0}]
[365,null,null,null,null,{"$f":"SUMIFS(BDMovEstoque!C:C,BDMovEstoque!A:A,Tabela3[[#This Row],[Código]],BDMovEstoque!G:G,\"Entrada\")-SUMIFS(BDMovEstoque!C:C,BDMovEstoque!A:A,Tabela3[[#This Row],[Código]],BDMovEstoque!G:G,\"Saída\")","v":0},{"$f":"IF(Tabela3[[#This Row],[Saldo Estoque]]<Tabela3[[#This Row],[Estoque Mínimo]],\"Sim\",\"\")","v":""},{"$f":"Tabela3[[#This Row],[Saldo Estoque]]*Tabela3[[#This Row],[Valor]]","v":0}]
[366,null,null,null,null,{"$f":"SUMIFS(BDMovEstoque!C:C,BDMovEstoque!A:A,Tabela3[[#This Row],[Código]],BDMovEstoque!G:G,\"Entrada\")-SUMIFS(BDMovEstoque!C:C,BDMovEstoque!A:A,Tabela3[[#This Row],[Código]],BDMovEstoque!G:G,\"Saída\")","v":0},{"$f":"IF(Tabela3[[#This Row],[Saldo Estoque]]<Tabela3[[#This Row],[Estoque Mínimo]],\"Sim\",\"\")","v":""},{"$f":"Tabela3[[#This Row],[Saldo Estoque]]*Tabela3[[#This Row],[Valor]]","v":0}]
[367,null,null,null,null,{"$f":"SUMIFS(BDMovEstoque!C:C,BDMovEstoque!A:A,Tabela3[[#This Row],[Código]],BDMovEstoque!G:G,\"Entrada\")-SUMIFS(BDMovEstoque!C:C,BDMovEstoque!A:A,Tabela3[[#This Row],[Código]],BDMovEstoque!G:G,\"Saída\")","v":0},{"$f":"IF(Tabela3[[#This Row],[Saldo Estoque]]<Tabela3[[#This Row],[Estoque Mínimo]],\"Sim\",\"\")","v":""},{"$f":"Tabela3[[#This Row],[Saldo Estoque]]*Tabela3[[#This Row],[Valor]]","v":0}]
[368,null,null,null,null,{"$f":"SUMIFS(BDMovEstoque!C:C,BDMovEstoque!A:A,Tabela3[[#This Row],[Código]],BDMovEstoque!G:G,\"Entrada\")-SUMIFS(BDMovEstoque!C:C,BDMovEstoque!A:A,Tabela3[[#This Row],[Código]],BDMovEstoque!G:G,\"Saída\")","v":0},{"$f":"IF(Tabela3[[#This Row],[Saldo Estoque]]<Tabela3[[#This Row],[Estoque Mínimo]],\"Sim\",\"\")","v":""},{"$f":"Tabela3[[#This Row],[Saldo Estoque]]*Tabela3[[#This Row],[Valor]]","v":0}]
[369,null,null,null,null,{"$f":"SUMIFS(BDMovEstoque!C:C,BDMovEstoque!A:A,Tabela3[[#This Row],[Código]],BDMovEstoque!G:G,\"Entrada\")-SUMIFS(BDMovEstoque!C:C,BDMovEstoque!A:A,Tabela3[[#This Row],[Código]],BDMovEstoque!G:G,\"Saída\")","v":0},{"$f":"IF(Tabela3[[#This Row],[Saldo Estoque]]<Tabela3[[#This Row],[Estoque Mínimo]],\"Sim\",\"\")","v":""},{"$f":"Tabela3[[#This Row],[Saldo Estoque]]*Tabela3[[#This Row],[Valor]]","v":0}]
[370,null,null,null,null,{"$f":"SUMIFS(BDMovEstoque!C:C,BDMovEstoque!A:A,Tabela3[[#This Row],[Código]],BDMovEstoque!G:G,\"Entrada\")-SUMIFS(BDMovEstoque!C:C,BDMovEstoque!A:A,Tabela3[[#This Row],[Código]],BDMovEstoque!G:G,\"Saída\")","v":0},{"$f":"IF(Tabela3[[#This Row],[Saldo Estoque]]<Tabela3[[#This Row],[Estoque Mínimo]],\"Sim\",\"\")","v":""},{"$f":"Tabela3[[#This Row],[Saldo Estoque]]*Tabela3[[#This Row],[Valor]]","v":0}]
[371,null,null,null,null,{"$f":"SUMIFS(BDMovEstoque!C:C,BDMovEstoque!A:A,Tabela3[[#This Row],[Código]],BDMovEstoque!G:G,\"Entrada\")-SUMIFS(BDMovEstoque!C:C,BDMovEstoque!A:A,Tabela3[[#This Row],[Código]],BDMovEstoque!G:G,\"Saída\")","v":0},{"$f":"IF(Tabela3[[#This Row],[Saldo Estoque]]<Tabela3[[#This Row],[Estoque Mínimo]],\"Sim\",\"\")","v":""},{"$f":"Tabela3[[#This Row],[Saldo Estoque]]*Tabela3[[#This Row],[Valor]]","v":0}]
[372,null,null,null,null,{"$f":"SUMIFS(BDMovEstoque!C:C,BDMovEstoque!A:A,Tabela3[[#This Row],[Código]],BDMovEstoque!G:G,\"Entrada\")-SUMIFS(BDMovEstoque!C:C,BDMovEstoque!A:A,Tabela3[[#This Row],[Código]],BDMovEstoque!G:G,\"Saída\")","v":0},{"$f":"IF(Tabela3[[#This Row],[Saldo Estoque]]<Tabela3[[#This Row],[Estoque Mínimo]],\"Sim\",\"\")","v":""},{"$f":"Tabela3[[#This Row],[Saldo Estoque]]*Tabela3[[#This Row],[Valor]]","v":0}]
[373,null,null,null,null,{"$f":"SUMIFS(BDMovEstoque!C:C,BDMovEstoque!A:A,Tabela3[[#This Row],[Código]],BDMovEstoque!G:G,\"Entrada\")-SUMIFS(BDMovEstoque!C:C,BDMovEstoque!A:A,Tabela3[[#This Row],[Código]],BDMovEstoque!G:G,\"Saída\")","v":0},{"$f":"IF(Tabela3[[#This Row],[Saldo Estoque]]<Tabela3[[#This Row],[Estoque Mínimo]],\"Sim\",\"\")","v":""},{"$f":"Tabela3[[#This Row],[Saldo Estoque]]*Tabela3[[#This Row],[Valor]]","v":0}]
[374,null,null,null,null,{"$f":"SUMIFS(BDMovEstoque!C:C,BDMovEstoque!A:A,Tabela3[[#This Row],[Código]],BDMovEstoque!G:G,\"Entrada\")-SUMIFS(BDMovEstoque!C:C,BDMovEstoque!A:A,Tabela3[[#This Row],[Código]],BDMovEstoque!G:G,\"Saída\")","v":0},{"$f":"IF(Tabela3[[#This Row],[Saldo Estoque]]<Tabela3[[#This Row],[Estoque Mínimo]],\"Sim\",\"\")","v":""},{"$f":"Tabela3[[#This Row],[Saldo Estoque]]*Tabela3[[#This Row],[Valor]]","v":0}]
[375,null,null,null,null,{"$f":"SUMIFS(BDMovEstoque!C:C,BDMovEstoque!A:A,Tabela3[[#This Row],[Código]],BDMovEstoque!G:G,\"Entrada\")-SUMIFS(BDMovEstoque!C:C,BDMovEstoque!A:A,Tabela3[[#This Row],[Código]],BDMovEstoque!G:G,\"Saída\")","v":0},{"$f":"IF(Tabela3[[#This Row],[Saldo Estoque]]<Tabela3[[#This Row],[Estoque Mínimo]],\"Sim\",\"\")","v":""},{"$f":"Tabela3[[#This Row],[Saldo Estoque]]*Tabela3[[#This Row],[Valor]]","v":0}]
[376,null,null,null,null,{"$f":"SUMIFS(BDMovEstoque!C:C,BDMovEstoque!A:A,Tabela3[[#This Row],[Código]],BDMovEstoque!G:G,\"Entrada\")-SUMIFS(BDMovEstoque!C:C,BDMovEstoque!A:A,Tabela3[[#This Row],[Código]],BDMovEstoque!G:G,\"Saída\")","v":0},{"$f":"IF(Tabela3[[#This Row],[Saldo Estoque]]<Tabela3[[#This Row],[Estoque Mínimo]],\"Sim\",\"\")","v":""},{"$f":"Tabela3[[#This Row],[Saldo Estoque]]*Tabela3[[#This Row],[Valor]]","v":0}]
[377,null,null,null,null,{"$f":"SUMIFS(BDMovEstoque!C:C,BDMovEstoque!A:A,Tabela3[[#This Row],[Código]],BDMovEstoque!G:G,\"Entrada\")-SUMIFS(BDMovEstoque!C:C,BDMovEstoque!A:A,Tabela3[[#This Row],[Código]],BDMovEstoque!G:G,\"Saída\")","v":0},{"$f":"IF(Tabela3[[#This Row],[Saldo Estoque]]<Tabela3[[#This Row],[Estoque Mínimo]],\"Sim\",\"\")","v":""},{"$f":"Tabela3[[#This Row],[Saldo Estoque]]*Tabela3[[#This Row],[Valor]]","v":0}]
[378,null,null,null,null,{"$f":"SUMIFS(BDMovEstoque!C:C,BDMovEstoque!A:A,Tabela3[[#This Row],[Código]],BDMovEstoque!G:G,\"Entrada\")-SUMIFS(BDMovEstoque!C:C,BDMovEstoque!A:A,Tabela3[[#This Row],[Código]],BDMovEstoque!G:G,\"Saída\")","v":0},{"$f":"IF(Tabela3[[#This Row],[Saldo Estoque]]<Tabela3[[#This Row],[Estoque Mínimo]],\"Sim\",\"\")","v":""},{"$f":"Tabela3[[#This Row],[Saldo Estoque]]*Tabela3[[#This Row],[Valor]]","v":0}]
[379,null,null,null,null,{"$f":"SUMIFS(BDMovEstoque!C:C,BDMovEstoque!A:A,Tabela3[[#This Row],[Código]],BDMovEstoque!G:G,\"Entrada\")-SUMIFS(BDMovEstoque!C:C,BDMovEstoque!A:A,Tabela3[[#This Row],[Código]],BDMovEstoque!G:G,\"Saída\")","v":0},{"$f":"IF(Tabela3[[#This Row],[Saldo Estoque]]<Tabela3[[#This Row],[Estoque Mínimo]],\"Sim\",\"\")","v":""},{"$f":"Tabela3[[#This Row],[Saldo Estoque]]*Tabela3[[#This Row],[Valor]]","v":0}]
[380,null,null,null,null,{"$f":"SUMIFS(BDMovEstoque!C:C,BDMovEstoque!A:A,Tabela3[[#This Row],[Código]],BDMovEstoque!G:G,\"Entrada\")-SUMIFS(BDMovEstoque!C:C,BDMovEstoque!A:A,Tabela3[[#This Row],[Código]],BDMovEstoque!G:G,\"Saída\")","v":0},{"$f":"IF(Tabela3[[#This Row],[Saldo Estoque]]<Tabela3[[#This Row],[Estoque Mínimo]],\"Sim\",\"\")","v":""},{"$f":"Tabela3[[#This Row],[Saldo Estoque]]*Tabela3[[#This Row],[Valor]]","v":0}]
[381,null,null,null,null,{"$f":"SUMIFS(BDMovEstoque!C:C,BDMovEstoque!A:A,Tabela3[[#This Row],[Código]],BDMovEstoque!G:G,\"Entrada\")-SUMIFS(BDMovEstoque!C:C,BDMovEstoque!A:A,Tabela3[[#This Row],[Código]],BDMovEstoque!G:G,\"Saída\")","v":0},{"$f":"IF(Tabela3[[#This Row],[Saldo Estoque]]<Tabela3[[#This Row],[Estoque Mínimo]],\"Sim\",\"\")","v":""},{"$f":"Tabela3[[#This Row],[Saldo Estoque]]*Tabela3[[#This Row],[Valor]]","v":0}]
[382,null,null,null,null,{"$f":"SUMIFS(BDMovEstoque!C:C,BDMovEstoque!A:A,Tabela3[[#This Row],[Código]],BDMovEstoque!G:G,\"Entrada\")-SUMIFS(BDMovEstoque!C:C,BDMovEstoque!A:A,Tabela3[[#This Row],[Código]],BDMovEstoque!G:G,\"Saída\")","v":0},{"$f":"IF(Tabela3[[#This Row],[Saldo Estoque]]<Tabela3[[#This Row],[Estoque Mínimo]],\"Sim\",\"\")","v":""},{"$f":"Tabela3[[#This Row],[Saldo Estoque]]*Tabela3[[#This Row],[Valor]]","v":0}]
[383,null,null,null,null,{"$f":"SUMIFS(BDMovEstoque!C:C,BDMovEstoque!A:A,Tabela3[[#This Row],[Código]],BDMovEstoque!G:G,\"Entrada\")-SUMIFS(BDMovEstoque!C:C,BDMovEstoque!A:A,Tabela3[[#This Row],[Código]],BDMovEstoque!G:G,\"Saída\")","v":0},{"$f":"IF(Tabela3[[#This Row],[Saldo Estoque]]<Tabela3[[#This Row],[Estoque Mínimo]],\"Sim\",\"\")","v":""},{"$f":"Tabela3[[#This Row],[Saldo Estoque]]*Tabela3[[#This Row],[Valor]]","v":0}]
[384,null,null,null,null,{"$f":"SUMIFS(BDMovEstoque!C:C,BDMovEstoque!A:A,Tabela3[[#This Row],[Código]],BDMovEstoque!G:G,\"Entrada\")-SUMIFS(BDMovEstoque!C:C,BDMovEstoque!A:A,Tabela3[[#This Row],[Código]],BDMovEstoque!G:G,\"Saída\")","v":0},{"$f":"IF(Tabela3[[#This Row],[Saldo Estoque]]<Tabela3[[#This Row],[Estoque Mínimo]],\"Sim\",\"\")","v":""},{"$f":"Tabela3[[#This Row],[Saldo Estoque]]*Tabela3[[#This Row],[Valor]]","v":0}]
[385,null,null,null,null,{"$f":"SUMIFS(BDMovEstoque!C:C,BDMovEstoque!A:A,Tabela3[[#This Row],[Código]],BDMovEstoque!G:G,\"Entrada\")-SUMIFS(BDMovEstoque!C:C,BDMovEstoque!A:A,Tabela3[[#This Row],[Código]],BDMovEstoque!G:G,\"Saída\")","v":0},{"$f":"IF(Tabela3[[#This Row],[Saldo Estoque]]<Tabela3[[#This Row],[Estoque Mínimo]],\"Sim\",\"\")","v":""},{"$f":"Tabela3[[#This Row],[Saldo Estoque]]*Tabela3[[#This Row],[Valor]]","v":0}]
[386,null,null,null,null,{"$f":"SUMIFS(BDMovEstoque!C:C,BDMovEstoque!A:A,Tabela3[[#This Row],[Código]],BDMovEstoque!G:G,\"Entrada\")-SUMIFS(BDMovEstoque!C:C,BDMovEstoque!A:A,Tabela3[[#This Row],[Código]],BDMovEstoque!G:G,\"Saída\")","v":0},{"$f":"IF(Tabela3[[#This Row],[Saldo Estoque]]<Tabela3[[#This Row],[Estoque Mínimo]],\"Sim\",\"\")","v":""},{"$f":"Tabela3[[#This Row],[Saldo Estoque]]*Tabela3[[#This Row],[Valor]]","v":0}]
[387,null,null,null,null,{"$f":"SUMIFS(BDMovEstoque!C:C,BDMovEstoque!A:A,Tabela3[[#This Row],[Código]],BDMovEstoque!G:G,\"Entrada\")-SUMIFS(BDMovEstoque!C:C,BDMovEstoque!A:A,Tabela3[[#This Row],[Código]],BDMovEstoque!G:G,\"Saída\")","v":0},{"$f":"IF(Tabela3[[#This Row],[Saldo Estoque]]<Tabela3[[#This Row],[Estoque Mínimo]],\"Sim\",\"\")","v":""},{"$f":"Tabela3[[#This Row],[Saldo Estoque]]*Tabela3[[#This Row],[Valor]]","v":0}]
[388,null,null,null,null,{"$f":"SUMIFS(BDMovEstoque!C:C,BDMovEstoque!A:A,Tabela3[[#This Row],[Código]],BDMovEstoque!G:G,\"Entrada\")-SUMIFS(BDMovEstoque!C:C,BDMovEstoque!A:A,Tabela3[[#This Row],[Código]],BDMovEstoque!G:G,\"Saída\")","v":0},{"$f":"IF(Tabela3[[#This Row],[Saldo Estoque]]<Tabela3[[#This Row],[Estoque Mínimo]],\"Sim\",\"\")","v":""},{"$f":"Tabela3[[#This Row],[Saldo Estoque]]*Tabela3[[#This Row],[Valor]]","v":0}]
[389,null,null,null,null,{"$f":"SUMIFS(BDMovEstoque!C:C,BDMovEstoque!A:A,Tabela3[[#This Row],[Código]],BDMovEstoque!G:G,\"Entrada\")-SUMIFS(BDMovEstoque!C:C,BDMovEstoque!A:A,Tabela3[[#This Row],[Código]],BDMovEstoque!G:G,\"Saída\")","v":0},{"$f":"IF(Tabela3[[#This Row],[Saldo Estoque]]<Tabela3[[#This Row],[Estoque Mínimo]],\"Sim\",\"\")","v":""},{"$f":"Tabela3[[#This Row],[Saldo Estoque]]*Tabela3[[#This Row],[Valor]]","v":0}]
[390,null,null,null,null,{"$f":"SUMIFS(BDMovEstoque!C:C,BDMovEstoque!A:A,Tabela3[[#This Row],[Código]],BDMovEstoque!G:G,\"Entrada\")-SUMIFS(BDMovEstoque!C:C,BDMovEstoque!A:A,Tabela3[[#This Row],[Código]],BDMovEstoque!G:G,\"Saída\")","v":0},{"$f":"IF(Tabela3[[#This Row],[Saldo Estoque]]<Tabela3[[#This Row],[Estoque Mínimo]],\"Sim\",\"\")","v":""},{"$f":"Tabela3[[#This Row],[Saldo Estoque]]*Tabela3[[#This Row],[Valor]]","v":0}]
[391,null,null,null,null,{"$f":"SUMIFS(BDMovEstoque!C:C,BDMovEstoque!A:A,Tabela3[[#This Row],[Código]],BDMovEstoque!G:G,\"Entrada\")-SUMIFS(BDMovEstoque!C:C,BDMovEstoque!A:A,Tabela3[[#This Row],[Código]],BDMovEstoque!G:G,\"Saída\")","v":0},{"$f":"IF(Tabela3[[#This Row],[Saldo Estoque]]<Tabela3[[#This Row],[Estoque Mínimo]],\"Sim\",\"\")","v":""},{"$f":"Tabela3[[#This Row],[Saldo Estoque]]*Tabela3[[#This Row],[Valor]]","v":0}]
[392,null,null,null,null,{"$f":"SUMIFS(BDMovEstoque!C:C,BDMovEstoque!A:A,Tabela3[[#This Row],[Código]],BDMovEstoque!G:G,\"Entrada\")-SUMIFS(BDMovEstoque!C:C,BDMovEstoque!A:A,Tabela3[[#This Row],[Código]],BDMovEstoque!G:G,\"Saída\")","v":0},{"$f":"IF(Tabela3[[#This Row],[Saldo Estoque]]<Tabela3[[#This Row],[Estoque Mínimo]],\"Sim\",\"\")","v":""},{"$f":"Tabela3[[#This Row],[Saldo Estoque]]*Tabela3[[#This Row],[Valor]]","v":0}]
[393,null,null,null,null,{"$f":"SUMIFS(BDMovEstoque!C:C,BDMovEstoque!A:A,Tabela3[[#This Row],[Código]],BDMovEstoque!G:G,\"Entrada\")-SUMIFS(BDMovEstoque!C:C,BDMovEstoque!A:A,Tabela3[[#This Row],[Código]],BDMovEstoque!G:G,\"Saída\")","v":0},{"$f":"IF(Tabela3[[#This Row],[Saldo Estoque]]<Tabela3[[#This Row],[Estoque Mínimo]],\"Sim\",\"\")","v":""},{"$f":"Tabela3[[#This Row],[Saldo Estoque]]*Tabela3[[#This Row],[Valor]]","v":0}]
[394,null,null,null,null,{"$f":"SUMIFS(BDMovEstoque!C:C,BDMovEstoque!A:A,Tabela3[[#This Row],[Código]],BDMovEstoque!G:G,\"Entrada\")-SUMIFS(BDMovEstoque!C:C,BDMovEstoque!A:A,Tabela3[[#This Row],[Código]],BDMovEstoque!G:G,\"Saída\")","v":0},{"$f":"IF(Tabela3[[#This Row],[Saldo Estoque]]<Tabela3[[#This Row],[Estoque Mínimo]],\"Sim\",\"\")","v":""},{"$f":"Tabela3[[#This Row],[Saldo Estoque]]*Tabela3[[#This Row],[Valor]]","v":0}]
[395,null,null,null,null,{"$f":"SUMIFS(BDMovEstoque!C:C,BDMovEstoque!A:A,Tabela3[[#This Row],[Código]],BDMovEstoque!G:G,\"Entrada\")-SUMIFS(BDMovEstoque!C:C,BDMovEstoque!A:A,Tabela3[[#This Row],[Código]],BDMovEstoque!G:G,\"Saída\")","v":0},{"$f":"IF(Tabela3[[#This Row],[Saldo Estoque]]<Tabela3[[#This Row],[Estoque Mínimo]],\"Sim\",\"\")","v":""},{"$f":"Tabela3[[#This Row],[Saldo Estoque]]*Tabela3[[#This Row],[Valor]]","v":0}]
[396,null,null,null,null,{"$f":"SUMIFS(BDMovEstoque!C:C,BDMovEstoque!A:A,Tabela3[[#This Row],[Código]],BDMovEstoque!G:G,\"Entrada\")-SUMIFS(BDMovEstoque!C:C,BDMovEstoque!A:A,Tabela3[[#This Row],[Código]],BDMovEstoque!G:G,\"Saída\")","v":0},{"$f":"IF(Tabela3[[#This Row],[Saldo Estoque]]<Tabela3[[#This Row],[Estoque Mínimo]],\"Sim\",\"\")","v":""},{"$f":"Tabela3[[#This Row],[Saldo Estoque]]*Tabela3[[#This Row],[Valor]]","v":0}]
[397,null,null,null,null,{"$f":"SUMIFS(BDMovEstoque!C:C,BDMovEstoque!A:A,Tabela3[[#This Row],[Código]],BDMovEstoque!G:G,\"Entrada\")-SUMIFS(BDMovEstoque!C:C,BDMovEstoque!A:A,Tabela3[[#This Row],[Código]],BDMovEstoque!G:G,\"Saída\")","v":0},{"$f":"IF(Tabela3[[#This Row],[Saldo Estoque]]<Tabela3[[#This Row],[Estoque Mínimo]],\"Sim\",\"\")","v":""},{"$f":"Tabela3[[#This Row],[Saldo Estoque]]*Tabela3[[#This Row],[Valor]]","v":0}]
[398,null,null,null,null,{"$f":"SUMIFS(BDMovEstoque!C:C,BDMovEstoque!A:A,Tabela3[[#This Row],[Código]],BDMovEstoque!G:G,\"Entrada\")-SUMIFS(BDMovEstoque!C:C,BDMovEstoque!A:A,Tabela3[[#This Row],[Código]],BDMovEstoque!G:G,\"Saída\")","v":0},{"$f":"IF(Tabela3[[#This Row],[Saldo Estoque]]<Tabela3[[#This Row],[Estoque Mínimo]],\"Sim\",\"\")","v":""},{"$f":"Tabela3[[#This Row],[Saldo Estoque]]*Tabela3[[#This Row],[Valor]]","v":0}]
[399,null,null,null,null,{"$f":"SUMIFS(BDMovEstoque!C:C,BDMovEstoque!A:A,Tabela3[[#This Row],[Código]],BDMovEstoque!G:G,\"Entrada\")-SUMIFS(BDMovEstoque!C:C,BDMovEstoque!A:A,Tabela3[[#This Row],[Código]],BDMovEstoque!G:G,\"Saída\")","v":0},{"$f":"IF(Tabela3[[#This Row],[Saldo Estoque]]<Tabela3[[#This Row],[Estoque Mínimo]],\"Sim\",\"\")","v":""},{"$f":"Tabela3[[#This Row],[Saldo Estoque]]*Tabela3[[#This Row],[Valor]]","v":0}]
[400,null,null,null,null,{"$f":"SUMIFS(BDMovEstoque!C:C,BDMovEstoque!A:A,Tabela3[[#This Row],[Código]],BDMovEstoque!G:G,\"Entrada\")-SUMIFS(BDMovEstoque!C:C,BDMovEstoque!A:A,Tabela3[[#This Row],[Código]],BDMovEstoque!G:G,\"Saída\")","v":0},{"$f":"IF(Tabela3[[#This Row],[Saldo Estoque]]<Tabela3[[#This Row],[Estoque Mínimo]],\"Sim\",\"\")","v":""},{"$f":"Tabela3[[#This Row],[Saldo Estoque]]*Tabela3[[#This Row],[Valor]]","v":0}]
[401,null,null,null,null,{"$f":"SUMIFS(BDMovEstoque!C:C,BDMovEstoque!A:A,Tabela3[[#This Row],[Código]],BDMovEstoque!G:G,\"Entrada\")-SUMIFS(BDMovEstoque!C:C,BDMovEstoque!A:A,Tabela3[[#This Row],[Código]],BDMovEstoque!G:G,\"Saída\")","v":0},{"$f":"IF(Tabela3[[#This Row],[Saldo Estoque]]<Tabela3[[#This Row],[Estoque Mínimo]],\"Sim\",\"\")","v":""},{"$f":"Tabela3[[#This Row],[Saldo Estoque]]*Tabela3[[#This Row],[Valor]]","v":0}]
[402,null,null,null,null,{"$f":"SUMIFS(BDMovEstoque!C:C,BDMovEstoque!A:A,Tabela3[[#This Row],[Código]],BDMovEstoque!G:G,\"Entrada\")-SUMIFS(BDMovEstoque!C:C,BDMovEstoque!A:A,Tabela3[[#This Row],[Código]],BDMovEstoque!G:G,\"Saída\")","v":0},{"$f":"IF(Tabela3[[#This Row],[Saldo Estoque]]<Tabela3[[#This Row],[Estoque Mínimo]],\"Sim\",\"\")","v":""},{"$f":"Tabela3[[#This Row],[Saldo Estoque]]*Tabela3[[#This Row],[Valor]]","v":0}]
[403,null,null,null,null,{"$f":"SUMIFS(BDMovEstoque!C:C,BDMovEstoque!A:A,Tabela3[[#This Row],[Código]],BDMovEstoque!G:G,\"Entrada\")-SUMIFS(BDMovEstoque!C:C,BDMovEstoque!A:A,Tabela3[[#This Row],[Código]],BDMovEstoque!G:G,\"Saída\")","v":0},{"$f":"IF(Tabela3[[#This Row],[Saldo Estoque]]<Tabela3[[#This Row],[Estoque Mínimo]],\"Sim\",\"\")","v":""},{"$f":"Tabela3[[#This Row],[Saldo Estoque]]*Tabela3[[#This Row],[Valor]]","v":0}]
[404,null,null,null,null,{"$f":"SUMIFS(BDMovEstoque!C:C,BDMovEstoque!A:A,Tabela3[[#This Row],[Código]],BDMovEstoque!G:G,\"Entrada\")-SUMIFS(BDMovEstoque!C:C,BDMovEstoque!A:A,Tabela3[[#This Row],[Código]],BDMovEstoque!G:G,\"Saída\")","v":0},{"$f":"IF(Tabela3[[#This Row],[Saldo Estoque]]<Tabela3[[#This Row],[Estoque Mínimo]],\"Sim\",\"\")","v":""},{"$f":"Tabela3[[#This Row],[Saldo Estoque]]*Tabela3[[#This Row],[Valor]]","v":0}]
[405,null,null,null,null,{"$f":"SUMIFS(BDMovEstoque!C:C,BDMovEstoque!A:A,Tabela3[[#This Row],[Código]],BDMovEstoque!G:G,\"Entrada\")-SUMIFS(BDMovEstoque!C:C,BDMovEstoque!A:A,Tabela3[[#This Row],[Código]],BDMovEstoque!G:G,\"Saída\")","v":0},{"$f":"IF(Tabela3[[#This Row],[Saldo Estoque]]<Tabela3[[#This Row],[Estoque Mínimo]],\"Sim\",\"\")","v":""},{"$f":"Tabela3[[#This Row],[Saldo Estoque]]*Tabela3[[#This Row],[Valor]]","v":0}]
[406,null,null,null,null,{"$f":"SUMIFS(BDMovEstoque!C:C,BDMovEstoque!A:A,Tabela3[[#This Row],[Código]],BDMovEstoque!G:G,\"Entrada\")-SUMIFS(BDMovEstoque!C:C,BDMovEstoque!A:A,Tabela3[[#This Row],[Código]],BDMovEstoque!G:G,\"Saída\")","v":0},{"$f":"IF(Tabela3[[#This Row],[Saldo Estoque]]<Tabela3[[#This Row],[Estoque Mínimo]],\"Sim\",\"\")","v":""},{"$f":"Tabela3[[#This Row],[Saldo Estoque]]*Tabela3[[#This Row],[Valor]]","v":0}]
[407,null,null,null,null,{"$f":"SUMIFS(BDMovEstoque!C:C,BDMovEstoque!A:A,Tabela3[[#This Row],[Código]],BDMovEstoque!G:G,\"Entrada\")-SUMIFS(BDMovEstoque!C:C,BDMovEstoque!A:A,Tabela3[[#This Row],[Código]],BDMovEstoque!G:G,\"Saída\")","v":0},{"$f":"IF(Tabela3[[#This Row],[Saldo Estoque]]<Tabela3[[#This Row],[Estoque Mínimo]],\"Sim\",\"\")","v":""},{"$f":"Tabela3[[#This Row],[Saldo Estoque]]*Tabela3[[#This Row],[Valor]]","v":0}]
[408,null,null,null,null,{"$f":"SUMIFS(BDMovEstoque!C:C,BDMovEstoque!A:A,Tabela3[[#This Row],[Código]],BDMovEstoque!G:G,\"Entrada\")-SUMIFS(BDMovEstoque!C:C,BDMovEstoque!A:A,Tabela3[[#This Row],[Código]],BDMovEstoque!G:G,\"Saída\")","v":0},{"$f":"IF(Tabela3[[#This Row],[Saldo Estoque]]<Tabela3[[#This Row],[Estoque Mínimo]],\"Sim\",\"\")","v":""},{"$f":"Tabela3[[#This Row],[Saldo Estoque]]*Tabela3[[#This Row],[Valor]]","v":0}]
[409,null,null,null,null,{"$f":"SUMIFS(BDMovEstoque!C:C,BDMovEstoque!A:A,Tabela3[[#This Row],[Código]],BDMovEstoque!G:G,\"Entrada\")-SUMIFS(BDMovEstoque!C:C,BDMovEstoque!A:A,Tabela3[[#This Row],[Código]],BDMovEstoque!G:G,\"Saída\")","v":0},{"$f":"IF(Tabela3[[#This Row],[Saldo Estoque]]<Tabela3[[#This Row],[Estoque Mínimo]],\"Sim\",\"\")","v":""},{"$f":"Tabela3[[#This Row],[Saldo Estoque]]*Tabela3[[#This Row],[Valor]]","v":0}]
[410,null,null,null,null,{"$f":"SUMIFS(BDMovEstoque!C:C,BDMovEstoque!A:A,Tabela3[[#This Row],[Código]],BDMovEstoque!G:G,\"Entrada\")-SUMIFS(BDMovEstoque!C:C,BDMovEstoque!A:A,Tabela3[[#This Row],[Código]],BDMovEstoque!G:G,\"Saída\")","v":0},{"$f":"IF(Tabela3[[#This Row],[Saldo Estoque]]<Tabela3[[#This Row],[Estoque Mínimo]],\"Sim\",\"\")","v":""},{"$f":"Tabela3[[#This Row],[Saldo Estoque]]*Tabela3[[#This Row],[Valor]]","v":0}]
[411,null,null,null,null,{"$f":"SUMIFS(BDMovEstoque!C:C,BDMovEstoque!A:A,Tabela3[[#This Row],[Código]],BDMovEstoque!G:G,\"Entrada\")-SUMIFS(BDMovEstoque!C:C,BDMovEstoque!A:A,Tabela3[[#This Row],[Código]],BDMovEstoque!G:G,\"Saída\")","v":0},{"$f":"IF(Tabela3[[#This Row],[Saldo Estoque]]<Tabela3[[#This Row],[Estoque Mínimo]],\"Sim\",\"\")","v":""},{"$f":"Tabela3[[#This Row],[Saldo Estoque]]*Tabela3[[#This Row],[Valor]]","v":0}]
[412,null,null,null,null,{"$f":"SUMIFS(BDMovEstoque!C:C,BDMovEstoque!A:A,Tabela3[[#This Row],[Código]],BDMovEstoque!G:G,\"Entrada\")-SUMIFS(BDMovEstoque!C:C,BDMovEstoque!A:A,Tabela3[[#This Row],[Código]],BDMovEstoque!G:G,\"Saída\")","v":0},{"$f":"IF(Tabela3[[#This Row],[Saldo Estoque]]<Tabela3[[#This Row],[Estoque Mínimo]],\"Sim\",\"\")","v":""},{"$f":"Tabela3[[#This Row],[Saldo Estoque]]*Tabela3[[#This Row],[Valor]]","v":0}]
[413,null,null,null,null,{"$f":"SUMIFS(BDMovEstoque!C:C,BDMovEstoque!A:A,Tabela3[[#This Row],[Código]],BDMovEstoque!G:G,\"Entrada\")-SUMIFS(BDMovEstoque!C:C,BDMovEstoque!A:A,Tabela3[[#This Row],[Código]],BDMovEstoque!G:G,\"Saída\")","v":0},{"$f":"IF(Tabela3[[#This Row],[Saldo Estoque]]<Tabela3[[#This Row],[Estoque Mínimo]],\"Sim\",\"\")","v":""},{"$f":"Tabela3[[#This Row],[Saldo Estoque]]*Tabela3[[#This Row],[Valor]]","v":0}]
[414,null,null,null,null,{"$f":"SUMIFS(BDMovEstoque!C:C,BDMovEstoque!A:A,Tabela3[[#This Row],[Código]],BDMovEstoque!G:G,\"Entrada\")-SUMIFS(BDMovEstoque!C:C,BDMovEstoque!A:A,Tabela3[[#This Row],[Código]],BDMovEstoque!G:G,\"Saída\")","v":0},{"$f":"IF(Tabela3[[#This Row],[Saldo Estoque]]<Tabela3[[#This Row],[Estoque Mínimo]],\"Sim\",\"\")","v":""},{"$f":"Tabela3[[#This Row],[Saldo Estoque]]*Tabela3[[#This Row],[Valor]]","v":0}]
[415,null,null,null,null,{"$f":"SUMIFS(BDMovEstoque!C:C,BDMovEstoque!A:A,Tabela3[[#This Row],[Código]],BDMovEstoque!G:G,\"Entrada\")-SUMIFS(BDMovEstoque!C:C,BDMovEstoque!A:A,Tabela3[[#This Row],[Código]],BDMovEstoque!G:G,\"Saída\")","v":0},{"$f":"IF(Tabela3[[#This Row],[Saldo Estoque]]<Tabela3[[#This Row],[Estoque Mínimo]],\"Sim\",\"\")","v":""},{"$f":"Tabela3[[#This Row],[Saldo Estoque]]*Tabela3[[#This Row],[Valor]]","v":0}]
[416,null,null,null,null,{"$f":"SUMIFS(BDMovEstoque!C:C,BDMovEstoque!A:A,Tabela3[[#This Row],[Código]],BDMovEstoque!G:G,\"Entrada\")-SUMIFS(BDMovEstoque!C:C,BDMovEstoque!A:A,Tabela3[[#This Row],[Código]],BDMovEstoque!G:G,\"Saída\")","v":0},{"$f":"IF(Tabela3[[#This Row],[Saldo Estoque]]<Tabela3[[#This Row],[Estoque Mínimo]],\"Sim\",\"\")","v":""},{"$f":"Tabela3[[#This Row],[Saldo Estoque]]*Tabela3[[#This Row],[Valor]]","v":0}]
[417,null,null,null,null,{"$f":"SUMIFS(BDMovEstoque!C:C,BDMovEstoque!A:A,Tabela3[[#This Row],[Código]],BDMovEstoque!G:G,\"Entrada\")-SUMIFS(BDMovEstoque!C:C,BDMovEstoque!A:A,Tabela3[[#This Row],[Código]],BDMovEstoque!G:G,\"Saída\")","v":0},{"$f":"IF(Tabela3[[#This Row],[Saldo Estoque]]<Tabela3[[#This Row],[Estoque Mínimo]],\"Sim\",\"\")","v":""},{"$f":"Tabela3[[#This Row],[Saldo Estoque]]*Tabela3[[#This Row],[Valor]]","v":0}]
[418,null,null,null,null,{"$f":"SUMIFS(BDMovEstoque!C:C,BDMovEstoque!A:A,Tabela3[[#This Row],[Código]],BDMovEstoque!G:G,\"Entrada\")-SUMIFS(BDMovEstoque!C:C,BDMovEstoque!A:A,Tabela3[[#This Row],[Código]],BDMovEstoque!G:G,\"Saída\")","v":0},{"$f":"IF(Tabela3[[#This Row],[Saldo Estoque]]<Tabela3[[#This Row],[Estoque Mínimo]],\"Sim\",\"\")","v":""},{"$f":"Tabela3[[#This Row],[Saldo Estoque]]*Tabela3[[#This Row],[Valor]]","v":0}]
[419,null,null,null,null,{"$f":"SUMIFS(BDMovEstoque!C:C,BDMovEstoque!A:A,Tabela3[[#This Row],[Código]],BDMovEstoque!G:G,\"Entrada\")-SUMIFS(BDMovEstoque!C:C,BDMovEstoque!A:A,Tabela3[[#This Row],[Código]],BDMovEstoque!G:G,\"Saída\")","v":0},{"$f":"IF(Tabela3[[#This Row],[Saldo Estoque]]<Tabela3[[#This Row],[Estoque Mínimo]],\"Sim\",\"\")","v":""},{"$f":"Tabela3[[#This Row],[Saldo Estoque]]*Tabela3[[#This Row],[Valor]]","v":0}]
[420,null,null,null,null,{"$f":"SUMIFS(BDMovEstoque!C:C,BDMovEstoque!A:A,Tabela3[[#This Row],[Código]],BDMovEstoque!G:G,\"Entrada\")-SUMIFS(BDMovEstoque!C:C,BDMovEstoque!A:A,Tabela3[[#This Row],[Código]],BDMovEstoque!G:G,\"Saída\")","v":0},{"$f":"IF(Tabela3[[#This Row],[Saldo Estoque]]<Tabela3[[#This Row],[Estoque Mínimo]],\"Sim\",\"\")","v":""},{"$f":"Tabela3[[#This Row],[Saldo Estoque]]*Tabela3[[#This Row],[Valor]]","v":0}]
[421,null,null,null,null,{"$f":"SUMIFS(BDMovEstoque!C:C,BDMovEstoque!A:A,Tabela3[[#This Row],[Código]],BDMovEstoque!G:G,\"Entrada\")-SUMIFS(BDMovEstoque!C:C,BDMovEstoque!A:A,Tabela3[[#This Row],[Código]],BDMovEstoque!G:G,\"Saída\")","v":0},{"$f":"IF(Tabela3[[#This Row],[Saldo Estoque]]<Tabela3[[#This Row],[Estoque Mínimo]],\"Sim\",\"\")","v":""},{"$f":"Tabela3[[#This Row],[Saldo Estoque]]*Tabela3[[#This Row],[Valor]]","v":0}]
[422,null,null,null,null,{"$f":"SUMIFS(BDMovEstoque!C:C,BDMovEstoque!A:A,Tabela3[[#This Row],[Código]],BDMovEstoque!G:G,\"Entrada\")-SUMIFS(BDMovEstoque!C:C,BDMovEstoque!A:A,Tabela3[[#This Row],[Código]],BDMovEstoque!G:G,\"Saída\")","v":0},{"$f":"IF(Tabela3[[#This Row],[Saldo Estoque]]<Tabela3[[#This Row],[Estoque Mínimo]],\"Sim\",\"\")","v":""},{"$f":"Tabela3[[#This Row],[Saldo Estoque]]*Tabela3[[#This Row],[Valor]]","v":0}]
[423,null,null,null,null,{"$f":"SUMIFS(BDMovEstoque!C:C,BDMovEstoque!A:A,Tabela3[[#This Row],[Código]],BDMovEstoque!G:G,\"Entrada\")-SUMIFS(BDMovEstoque!C:C,BDMovEstoque!A:A,Tabela3[[#This Row],[Código]],BDMovEstoque!G:G,\"Saída\")","v":0},{"$f":"IF(Tabela3[[#This Row],[Saldo Estoque]]<Tabela3[[#This Row],[Estoque Mínimo]],\"Sim\",\"\")","v":""},{"$f":"Tabela3[[#This Row],[Saldo Estoque]]*Tabela3[[#This Row],[Valor]]","v":0}]
[424,null,null,null,null,{"$f":"SUMIFS(BDMovEstoque!C:C,BDMovEstoque!A:A,Tabela3[[#This Row],[Código]],BDMovEstoque!G:G,\"Entrada\")-SUMIFS(BDMovEstoque!C:C,BDMovEstoque!A:A,Tabela3[[#This Row],[Código]],BDMovEstoque!G:G,\"Saída\")","v":0},{"$f":"IF(Tabela3[[#This Row],[Saldo Estoque]]<Tabela3[[#This Row],[Estoque Mínimo]],\"Sim\",\"\")","v":""},{"$f":"Tabela3[[#This Row],[Saldo Estoque]]*Tabela3[[#This Row],[Valor]]","v":0}]
[425,null,null,null,null,{"$f":"SUMIFS(BDMovEstoque!C:C,BDMovEstoque!A:A,Tabela3[[#This Row],[Código]],BDMovEstoque!G:G,\"Entrada\")-SUMIFS(BDMovEstoque!C:C,BDMovEstoque!A:A,Tabela3[[#This Row],[Código]],BDMovEstoque!G:G,\"Saída\")","v":0},{"$f":"IF(Tabela3[[#This Row],[Saldo Estoque]]<Tabela3[[#This Row],[Estoque Mínimo]],\"Sim\",\"\")","v":""},{"$f":"Tabela3[[#This Row],[Saldo Estoque]]*Tabela3[[#This Row],[Valor]]","v":0}]
[426,null,null,null,null,{"$f":"SUMIFS(BDMovEstoque!C:C,BDMovEstoque!A:A,Tabela3[[#This Row],[Código]],BDMovEstoque!G:G,\"Entrada\")-SUMIFS(BDMovEstoque!C:C,BDMovEstoque!A:A,Tabela3[[#This Row],[Código]],BDMovEstoque!G:G,\"Saída\")","v":0},{"$f":"IF(Tabela3[[#This Row],[Saldo Estoque]]<Tabela3[[#This Row],[Estoque Mínimo]],\"Sim\",\"\")","v":""},{"$f":"Tabela3[[#This Row],[Saldo Estoque]]*Tabela3[[#This Row],[Valor]]","v":0}]
[427,null,null,null,null,{"$f":"SUMIFS(BDMovEstoque!C:C,BDMovEstoque!A:A,Tabela3[[#This Row],[Código]],BDMovEstoque!G:G,\"Entrada\")-SUMIFS(BDMovEstoque!C:C,BDMovEstoque!A:A,Tabela3[[#This Row],[Código]],BDMovEstoque!G:G,\"Saída\")","v":0},{"$f":"IF(Tabela3[[#This Row],[Saldo Estoque]]<Tabela3[[#This Row],[Estoque Mínimo]],\"Sim\",\"\")","v":""},{"$f":"Tabela3[[#This Row],[Saldo Estoque]]*Tabela3[[#This Row],[Valor]]","v":0}]
[428,null,null,null,null,{"$f":"SUMIFS(BDMovEstoque!C:C,BDMovEstoque!A:A,Tabela3[[#This Row],[Código]],BDMovEstoque!G:G,\"Entrada\")-SUMIFS(BDMovEstoque!C:C,BDMovEstoque!A:A,Tabela3[[#This Row],[Código]],BDMovEstoque!G:G,\"Saída\")","v":0},{"$f":"IF(Tabela3[[#This Row],[Saldo Estoque]]<Tabela3[[#This Row],[Estoque Mínimo]],\"Sim\",\"\")","v":""},{"$f":"Tabela3[[#This Row],[Saldo Estoque]]*Tabela3[[#This Row],[Valor]]","v":0}]
[429,null,null,null,null,{"$f":"SUMIFS(BDMovEstoque!C:C,BDMovEstoque!A:A,Tabela3[[#This Row],[Código]],BDMovEstoque!G:G,\"Entrada\")-SUMIFS(BDMovEstoque!C:C,BDMovEstoque!A:A,Tabela3[[#This Row],[Código]],BDMovEstoque!G:G,\"Saída\")","v":0},{"$f":"IF(Tabela3[[#This Row],[Saldo Estoque]]<Tabela3[[#This Row],[Estoque Mínimo]],\"Sim\",\"\")","v":""},{"$f":"Tabela3[[#This Row],[Saldo Estoque]]*Tabela3[[#This Row],[Valor]]","v":0}]
[430,null,null,null,null,{"$f":"SUMIFS(BDMovEstoque!C:C,BDMovEstoque!A:A,Tabela3[[#This Row],[Código]],BDMovEstoque!G:G,\"Entrada\")-SUMIFS(BDMovEstoque!C:C,BDMovEstoque!A:A,Tabela3[[#This Row],[Código]],BDMovEstoque!G:G,\"Saída\")","v":0},{"$f":"IF(Tabela3[[#This Row],[Saldo Estoque]]<Tabela3[[#This Row],[Estoque Mínimo]],\"Sim\",\"\")","v":""},{"$f":"Tabela3[[#This Row],[Saldo Estoque]]*Tabela3[[#This Row],[Valor]]","v":0}]
[431,null,null,null,null,{"$f":"SUMIFS(BDMovEstoque!C:C,BDMovEstoque!A:A,Tabela3[[#This Row],[Código]],BDMovEstoque!G:G,\"Entrada\")-SUMIFS(BDMovEstoque!C:C,BDMovEstoque!A:A,Tabela3[[#This Row],[Código]],BDMovEstoque!G:G,\"Saída\")","v":0},{"$f":"IF(Tabela3[[#This Row],[Saldo Estoque]]<Tabela3[[#This Row],[Estoque Mínimo]],\"Sim\",\"\")","v":""},{"$f":"Tabela3[[#This Row],[Saldo Estoque]]*Tabela3[[#This Row],[Valor]]","v":0}]
[432,null,null,null,null,{"$f":"SUMIFS(BDMovEstoque!C:C,BDMovEstoque!A:A,Tabela3[[#This Row],[Código]],BDMovEstoque!G:G,\"Entrada\")-SUMIFS(BDMovEstoque!C:C,BDMovEstoque!A:A,Tabela3[[#This Row],[Código]],BDMovEstoque!G:G,\"Saída\")","v":0},{"$f":"IF(Tabela3[[#This Row],[Saldo Estoque]]<Tabela3[[#This Row],[Estoque Mínimo]],\"Sim\",\"\")","v":""},{"$f":"Tabela3[[#This Row],[Saldo Estoque]]*Tabela3[[#This Row],[Valor]]","v":0}]
[433,null,null,null,null,{"$f":"SUMIFS(BDMovEstoque!C:C,BDMovEstoque!A:A,Tabela3[[#This Row],[Código]],BDMovEstoque!G:G,\"Entrada\")-SUMIFS(BDMovEstoque!C:C,BDMovEstoque!A:A,Tabela3[[#This Row],[Código]],BDMovEstoque!G:G,\"Saída\")","v":0},{"$f":"IF(Tabela3[[#This Row],[Saldo Estoque]]<Tabela3[[#This Row],[Estoque Mínimo]],\"Sim\",\"\")","v":""},{"$f":"Tabela3[[#This Row],[Saldo Estoque]]*Tabela3[[#This Row],[Valor]]","v":0}]
[434,null,null,null,null,{"$f":"SUMIFS(BDMovEstoque!C:C,BDMovEstoque!A:A,Tabela3[[#This Row],[Código]],BDMovEstoque!G:G,\"Entrada\")-SUMIFS(BDMovEstoque!C:C,BDMovEstoque!A:A,Tabela3[[#This Row],[Código]],BDMovEstoque!G:G,\"Saída\")","v":0},{"$f":"IF(Tabela3[[#This Row],[Saldo Estoque]]<Tabela3[[#This Row],[Estoque Mínimo]],\"Sim\",\"\")","v":""},{"$f":"Tabela3[[#This Row],[Saldo Estoque]]*Tabela3[[#This Row],[Valor]]","v":0}]
[435,null,null,null,null,{"$f":"SUMIFS(BDMovEstoque!C:C,BDMovEstoque!A:A,Tabela3[[#This Row],[Código]],BDMovEstoque!G:G,\"Entrada\")-SUMIFS(BDMovEstoque!C:C,BDMovEstoque!A:A,Tabela3[[#This Row],[Código]],BDMovEstoque!G:G,\"Saída\")","v":0},{"$f":"IF(Tabela3[[#This Row],[Saldo Estoque]]<Tabela3[[#This Row],[Estoque Mínimo]],\"Sim\",\"\")","v":""},{"$f":"Tabela3[[#This Row],[Saldo Estoque]]*Tabela3[[#This Row],[Valor]]","v":0}]
[436,null,null,null,null,{"$f":"SUMIFS(BDMovEstoque!C:C,BDMovEstoque!A:A,Tabela3[[#This Row],[Código]],BDMovEstoque!G:G,\"Entrada\")-SUMIFS(BDMovEstoque!C:C,BDMovEstoque!A:A,Tabela3[[#This Row],[Código]],BDMovEstoque!G:G,\"Saída\")","v":0},{"$f":"IF(Tabela3[[#This Row],[Saldo Estoque]]<Tabela3[[#This Row],[Estoque Mínimo]],\"Sim\",\"\")","v":""},{"$f":"Tabela3[[#This Row],[Saldo Estoque]]*Tabela3[[#This Row],[Valor]]","v":0}]
[437,null,null,null,null,{"$f":"SUMIFS(BDMovEstoque!C:C,BDMovEstoque!A:A,Tabela3[[#This Row],[Código]],BDMovEstoque!G:G,\"Entrada\")-SUMIFS(BDMovEstoque!C:C,BDMovEstoque!A:A,Tabela3[[#This Row],[Código]],BDMovEstoque!G:G,\"Saída\")","v":0},{"$f":"IF(Tabela3[[#This Row],[Saldo Estoque]]<Tabela3[[#This Row],[Estoque Mínimo]],\"Sim\",\"\")","v":""},{"$f":"Tabela3[[#This Row],[Saldo Estoque]]*Tabela3[[#This Row],[Valor]]","v":0}]
[438,null,null,null,null,{"$f":"SUMIFS(BDMovEstoque!C:C,BDMovEstoque!A:A,Tabela3[[#This Row],[Código]],BDMovEstoque!G:G,\"Entrada\")-SUMIFS(BDMovEstoque!C:C,BDMovEstoque!A:A,Tabela3[[#This Row],[Código]],BDMovEstoque!G:G,\"Saída\")","v":0},{"$f":"IF(Tabela3[[#This Row],[Saldo Estoque]]<Tabela3[[#This Row],[Estoque Mínimo]],\"Sim\",\"\")","v":""},{"$f":"Tabela3[[#This Row],[Saldo Estoque]]*Tabela3[[#This Row],[Valor]]","v":0}]
[439,null,null,null,null,{"$f":"SUMIFS(BDMovEstoque!C:C,BDMovEstoque!A:A,Tabela3[[#This Row],[Código]],BDMovEstoque!G:G,\"Entrada\")-SUMIFS(BDMovEstoque!C:C,BDMovEstoque!A:A,Tabela3[[#This Row],[Código]],BDMovEstoque!G:G,\"Saída\")","v":0},{"$f":"IF(Tabela3[[#This Row],[Saldo Estoque]]<Tabela3[[#This Row],[Estoque Mínimo]],\"Sim\",\"\")","v":""},{"$f":"Tabela3[[#This Row],[Saldo Estoque]]*Tabela3[[#This Row],[Valor]]","v":0}]
[440,null,null,null,null,{"$f":"SUMIFS(BDMovEstoque!C:C,BDMovEstoque!A:A,Tabela3[[#This Row],[Código]],BDMovEstoque!G:G,\"Entrada\")-SUMIFS(BDMovEstoque!C:C,BDMovEstoque!A:A,Tabela3[[#This Row],[Código]],BDMovEstoque!G:G,\"Saída\")","v":0},{"$f":"IF(Tabela3[[#This Row],[Saldo Estoque]]<Tabela3[[#This Row],[Estoque Mínimo]],\"Sim\",\"\")","v":""},{"$f":"Tabela3[[#This Row],[Saldo Estoque]]*Tabela3[[#This Row],[Valor]]","v":0}]
[441,null,null,null,null,{"$f":"SUMIFS(BDMovEstoque!C:C,BDMovEstoque!A:A,Tabela3[[#This Row],[Código]],BDMovEstoque!G:G,\"Entrada\")-SUMIFS(BDMovEstoque!C:C,BDMovEstoque!A:A,Tabela3[[#This Row],[Código]],BDMovEstoque!G:G,\"Saída\")","v":0},{"$f":"IF(Tabela3[[#This Row],[Saldo Estoque]]<Tabela3[[#This Row],[Estoque Mínimo]],\"Sim\",\"\")","v":""},{"$f":"Tabela3[[#This Row],[Saldo Estoque]]*Tabela3[[#This Row],[Valor]]","v":0}]
[442,null,null,null,null,{"$f":"SUMIFS(BDMovEstoque!C:C,BDMovEstoque!A:A,Tabela3[[#This Row],[Código]],BDMovEstoque!G:G,\"Entrada\")-SUMIFS(BDMovEstoque!C:C,BDMovEstoque!A:A,Tabela3[[#This Row],[Código]],BDMovEstoque!G:G,\"Saída\")","v":0},{"$f":"IF(Tabela3[[#This Row],[Saldo Estoque]]<Tabela3[[#This Row],[Estoque Mínimo]],\"Sim\",\"\")","v":""},{"$f":"Tabela3[[#This Row],[Saldo Estoque]]*Tabela3[[#This Row],[Valor]]","v":0}]
[443,null,null,null,null,{"$f":"SUMIFS(BDMovEstoque!C:C,BDMovEstoque!A:A,Tabela3[[#This Row],[Código]],BDMovEstoque!G:G,\"Entrada\")-SUMIFS(BDMovEstoque!C:C,BDMovEstoque!A:A,Tabela3[[#This Row],[Código]],BDMovEstoque!G:G,\"Saída\")","v":0},{"$f":"IF(Tabela3[[#This Row],[Saldo Estoque]]<Tabela3[[#This Row],[Estoque Mínimo]],\"Sim\",\"\")","v":""},{"$f":"Tabela3[[#This Row],[Saldo Estoque]]*Tabela3[[#This Row],[Valor]]","v":0}]
[444,null,null,null,null,{"$f":"SUMIFS(BDMovEstoque!C:C,BDMovEstoque!A:A,Tabela3[[#This Row],[Código]],BDMovEstoque!G:G,\"Entrada\")-SUMIFS(BDMovEstoque!C:C,BDMovEstoque!A:A,Tabela3[[#This Row],[Código]],BDMovEstoque!G:G,\"Saída\")","v":0},{"$f":"IF(Tabela3[[#This Row],[Saldo Estoque]]<Tabela3[[#This Row],[Estoque Mínimo]],\"Sim\",\"\")","v":""},{"$f":"Tabela3[[#This Row],[Saldo Estoque]]*Tabela3[[#This Row],[Valor]]","v":0}]
[445,null,null,null,null,{"$f":"SUMIFS(BDMovEstoque!C:C,BDMovEstoque!A:A,Tabela3[[#This Row],[Código]],BDMovEstoque!G:G,\"Entrada\")-SUMIFS(BDMovEstoque!C:C,BDMovEstoque!A:A,Tabela3[[#This Row],[Código]],BDMovEstoque!G:G,\"Saída\")","v":0},{"$f":"IF(Tabela3[[#This Row],[Saldo Estoque]]<Tabela3[[#This Row],[Estoque Mínimo]],\"Sim\",\"\")","v":""},{"$f":"Tabela3[[#This Row],[Saldo Estoque]]*Tabela3[[#This Row],[Valor]]","v":0}]
[446,null,null,null,null,{"$f":"SUMIFS(BDMovEstoque!C:C,BDMovEstoque!A:A,Tabela3[[#This Row],[Código]],BDMovEstoque!G:G,\"Entrada\")-SUMIFS(BDMovEstoque!C:C,BDMovEstoque!A:A,Tabela3[[#This Row],[Código]],BDMovEstoque!G:G,\"Saída\")","v":0},{"$f":"IF(Tabela3[[#This Row],[Saldo Estoque]]<Tabela3[[#This Row],[Estoque Mínimo]],\"Sim\",\"\")","v":""},{"$f":"Tabela3[[#This Row],[Saldo Estoque]]*Tabela3[[#This Row],[Valor]]","v":0}]
[447,null,null,null,null,{"$f":"SUMIFS(BDMovEstoque!C:C,BDMovEstoque!A:A,Tabela3[[#This Row],[Código]],BDMovEstoque!G:G,\"Entrada\")-SUMIFS(BDMovEstoque!C:C,BDMovEstoque!A:A,Tabela3[[#This Row],[Código]],BDMovEstoque!G:G,\"Saída\")","v":0},{"$f":"IF(Tabela3[[#This Row],[Saldo Estoque]]<Tabela3[[#This Row],[Estoque Mínimo]],\"Sim\",\"\")","v":""},{"$f":"Tabela3[[#This Row],[Saldo Estoque]]*Tabela3[[#This Row],[Valor]]","v":0}]
[448,null,null,null,null,{"$f":"SUMIFS(BDMovEstoque!C:C,BDMovEstoque!A:A,Tabela3[[#This Row],[Código]],BDMovEstoque!G:G,\"Entrada\")-SUMIFS(BDMovEstoque!C:C,BDMovEstoque!A:A,Tabela3[[#This Row],[Código]],BDMovEstoque!G:G,\"Saída\")","v":0},{"$f":"IF(Tabela3[[#This Row],[Saldo Estoque]]<Tabela3[[#This Row],[Estoque Mínimo]],\"Sim\",\"\")","v":""},{"$f":"Tabela3[[#This Row],[Saldo Estoque]]*Tabela3[[#This Row],[Valor]]","v":0}]
[449,null,null,null,null,{"$f":"SUMIFS(BDMovEstoque!C:C,BDMovEstoque!A:A,Tabela3[[#This Row],[Código]],BDMovEstoque!G:G,\"Entrada\")-SUMIFS(BDMovEstoque!C:C,BDMovEstoque!A:A,Tabela3[[#This Row],[Código]],BDMovEstoque!G:G,\"Saída\")","v":0},{"$f":"IF(Tabela3[[#This Row],[Saldo Estoque]]<Tabela3[[#This Row],[Estoque Mínimo]],\"Sim\",\"\")","v":""},{"$f":"Tabela3[[#This Row],[Saldo Estoque]]*Tabela3[[#This Row],[Valor]]","v":0}]
[450,null,null,null,null,{"$f":"SUMIFS(BDMovEstoque!C:C,BDMovEstoque!A:A,Tabela3[[#This Row],[Código]],BDMovEstoque!G:G,\"Entrada\")-SUMIFS(BDMovEstoque!C:C,BDMovEstoque!A:A,Tabela3[[#This Row],[Código]],BDMovEstoque!G:G,\"Saída\")","v":0},{"$f":"IF(Tabela3[[#This Row],[Saldo Estoque]]<Tabela3[[#This Row],[Estoque Mínimo]],\"Sim\",\"\")","v":""},{"$f":"Tabela3[[#This Row],[Saldo Estoque]]*Tabela3[[#This Row],[Valor]]","v":0}]
[451,null,null,null,null,{"$f":"SUMIFS(BDMovEstoque!C:C,BDMovEstoque!A:A,Tabela3[[#This Row],[Código]],BDMovEstoque!G:G,\"Entrada\")-SUMIFS(BDMovEstoque!C:C,BDMovEstoque!A:A,Tabela3[[#This Row],[Código]],BDMovEstoque!G:G,\"Saída\")","v":0},{"$f":"IF(Tabela3[[#This Row],[Saldo Estoque]]<Tabela3[[#This Row],[Estoque Mínimo]],\"Sim\",\"\")","v":""},{"$f":"Tabela3[[#This Row],[Saldo Estoque]]*Tabela3[[#This Row],[Valor]]","v":0}]
[452,null,null,null,null,{"$f":"SUMIFS(BDMovEstoque!C:C,BDMovEstoque!A:A,Tabela3[[#This Row],[Código]],BDMovEstoque!G:G,\"Entrada\")-SUMIFS(BDMovEstoque!C:C,BDMovEstoque!A:A,Tabela3[[#This Row],[Código]],BDMovEstoque!G:G,\"Saída\")","v":0},{"$f":"IF(Tabela3[[#This Row],[Saldo Estoque]]<Tabela3[[#This Row],[Estoque Mínimo]],\"Sim\",\"\")","v":""},{"$f":"Tabela3[[#This Row],[Saldo Estoque]]*Tabela3[[#This Row],[Valor]]","v":0}]
[453,null,null,null,null,{"$f":"SUMIFS(BDMovEstoque!C:C,BDMovEstoque!A:A,Tabela3[[#This Row],[Código]],BDMovEstoque!G:G,\"Entrada\")-SUMIFS(BDMovEstoque!C:C,BDMovEstoque!A:A,Tabela3[[#This Row],[Código]],BDMovEstoque!G:G,\"Saída\")","v":0},{"$f":"IF(Tabela3[[#This Row],[Saldo Estoque]]<Tabela3[[#This Row],[Estoque Mínimo]],\"Sim\",\"\")","v":""},{"$f":"Tabela3[[#This Row],[Saldo Estoque]]*Tabela3[[#This Row],[Valor]]","v":0}]
[454,null,null,null,null,{"$f":"SUMIFS(BDMovEstoque!C:C,BDMovEstoque!A:A,Tabela3[[#This Row],[Código]],BDMovEstoque!G:G,\"Entrada\")-SUMIFS(BDMovEstoque!C:C,BDMovEstoque!A:A,Tabela3[[#This Row],[Código]],BDMovEstoque!G:G,\"Saída\")","v":0},{"$f":"IF(Tabela3[[#This Row],[Saldo Estoque]]<Tabela3[[#This Row],[Estoque Mínimo]],\"Sim\",\"\")","v":""},{"$f":"Tabela3[[#This Row],[Saldo Estoque]]*Tabela3[[#This Row],[Valor]]","v":0}]
[455,null,null,null,null,{"$f":"SUMIFS(BDMovEstoque!C:C,BDMovEstoque!A:A,Tabela3[[#This Row],[Código]],BDMovEstoque!G:G,\"Entrada\")-SUMIFS(BDMovEstoque!C:C,BDMovEstoque!A:A,Tabela3[[#This Row],[Código]],BDMovEstoque!G:G,\"Saída\")","v":0},{"$f":"IF(Tabela3[[#This Row],[Saldo Estoque]]<Tabela3[[#This Row],[Estoque Mínimo]],\"Sim\",\"\")","v":""},{"$f":"Tabela3[[#This Row],[Saldo Estoque]]*Tabela3[[#This Row],[Valor]]","v":0}]
[456,null,null,null,null,{"$f":"SUMIFS(BDMovEstoque!C:C,BDMovEstoque!A:A,Tabela3[[#This Row],[Código]],BDMovEstoque!G:G,\"Entrada\")-SUMIFS(BDMovEstoque!C:C,BDMovEstoque!A:A,Tabela3[[#This Row],[Código]],BDMovEstoque!G:G,\"Saída\")","v":0},{"$f":"IF(Tabela3[[#This Row],[Saldo Estoque]]<Tabela3[[#This Row],[Estoque Mínimo]],\"Sim\",\"\")","v":""},{"$f":"Tabela3[[#This Row],[Saldo Estoque]]*Tabela3[[#This Row],[Valor]]","v":0}]
[457,null,null,null,null,{"$f":"SUMIFS(BDMovEstoque!C:C,BDMovEstoque!A:A,Tabela3[[#This Row],[Código]],BDMovEstoque!G:G,\"Entrada\")-SUMIFS(BDMovEstoque!C:C,BDMovEstoque!A:A,Tabela3[[#This Row],[Código]],BDMovEstoque!G:G,\"Saída\")","v":0},{"$f":"IF(Tabela3[[#This Row],[Saldo Estoque]]<Tabela3[[#This Row],[Estoque Mínimo]],\"Sim\",\"\")","v":""},{"$f":"Tabela3[[#This Row],[Saldo Estoque]]*Tabela3[[#This Row],[Valor]]","v":0}]
[458,null,null,null,null,{"$f":"SUMIFS(BDMovEstoque!C:C,BDMovEstoque!A:A,Tabela3[[#This Row],[Código]],BDMovEstoque!G:G,\"Entrada\")-SUMIFS(BDMovEstoque!C:C,BDMovEstoque!A:A,Tabela3[[#This Row],[Código]],BDMovEstoque!G:G,\"Saída\")","v":0},{"$f":"IF(Tabela3[[#This Row],[Saldo Estoque]]<Tabela3[[#This Row],[Estoque Mínimo]],\"Sim\",\"\")","v":""},{"$f":"Tabela3[[#This Row],[Saldo Estoque]]*Tabela3[[#This Row],[Valor]]","v":0}]
[459,null,null,null,null,{"$f":"SUMIFS(BDMovEstoque!C:C,BDMovEstoque!A:A,Tabela3[[#This Row],[Código]],BDMovEstoque!G:G,\"Entrada\")-SUMIFS(BDMovEstoque!C:C,BDMovEstoque!A:A,Tabela3[[#This Row],[Código]],BDMovEstoque!G:G,\"Saída\")","v":0},{"$f":"IF(Tabela3[[#This Row],[Saldo Estoque]]<Tabela3[[#This Row],[Estoque Mínimo]],\"Sim\",\"\")","v":""},{"$f":"Tabela3[[#This Row],[Saldo Estoque]]*Tabela3[[#This Row],[Valor]]","v":0}]
[460,null,null,null,null,{"$f":"SUMIFS(BDMovEstoque!C:C,BDMovEstoque!A:A,Tabela3[[#This Row],[Código]],BDMovEstoque!G:G,\"Entrada\")-SUMIFS(BDMovEstoque!C:C,BDMovEstoque!A:A,Tabela3[[#This Row],[Código]],BDMovEstoque!G:G,\"Saída\")","v":0},{"$f":"IF(Tabela3[[#This Row],[Saldo Estoque]]<Tabela3[[#This Row],[Estoque Mínimo]],\"Sim\",\"\")","v":""},{"$f":"Tabela3[[#This Row],[Saldo Estoque]]*Tabela3[[#This Row],[Valor]]","v":0}]
[461,null,null,null,null,{"$f":"SUMIFS(BDMovEstoque!C:C,BDMovEstoque!A:A,Tabela3[[#This Row],[Código]],BDMovEstoque!G:G,\"Entrada\")-SUMIFS(BDMovEstoque!C:C,BDMovEstoque!A:A,Tabela3[[#This Row],[Código]],BDMovEstoque!G:G,\"Saída\")","v":0},{"$f":"IF(Tabela3[[#This Row],[Saldo Estoque]]<Tabela3[[#This Row],[Estoque Mínimo]],\"Sim\",\"\")","v":""},{"$f":"Tabela3[[#This Row],[Saldo Estoque]]*Tabela3[[#This Row],[Valor]]","v":0}]
[462,null,null,null,null,{"$f":"SUMIFS(BDMovEstoque!C:C,BDMovEstoque!A:A,Tabela3[[#This Row],[Código]],BDMovEstoque!G:G,\"Entrada\")-SUMIFS(BDMovEstoque!C:C,BDMovEstoque!A:A,Tabela3[[#This Row],[Código]],BDMovEstoque!G:G,\"Saída\")","v":0},{"$f":"IF(Tabela3[[#This Row],[Saldo Estoque]]<Tabela3[[#This Row],[Estoque Mínimo]],\"Sim\",\"\")","v":""},{"$f":"Tabela3[[#This Row],[Saldo Estoque]]*Tabela3[[#This Row],[Valor]]","v":0}]
[463,null,null,null,null,{"$f":"SUMIFS(BDMovEstoque!C:C,BDMovEstoque!A:A,Tabela3[[#This Row],[Código]],BDMovEstoque!G:G,\"Entrada\")-SUMIFS(BDMovEstoque!C:C,BDMovEstoque!A:A,Tabela3[[#This Row],[Código]],BDMovEstoque!G:G,\"Saída\")","v":0},{"$f":"IF(Tabela3[[#This Row],[Saldo Estoque]]<Tabela3[[#This Row],[Estoque Mínimo]],\"Sim\",\"\")","v":""},{"$f":"Tabela3[[#This Row],[Saldo Estoque]]*Tabela3[[#This Row],[Valor]]","v":0}]
[464,null,null,null,null,{"$f":"SUMIFS(BDMovEstoque!C:C,BDMovEstoque!A:A,Tabela3[[#This Row],[Código]],BDMovEstoque!G:G,\"Entrada\")-SUMIFS(BDMovEstoque!C:C,BDMovEstoque!A:A,Tabela3[[#This Row],[Código]],BDMovEstoque!G:G,\"Saída\")","v":0},{"$f":"IF(Tabela3[[#This Row],[Saldo Estoque]]<Tabela3[[#This Row],[Estoque Mínimo]],\"Sim\",\"\")","v":""},{"$f":"Tabela3[[#This Row],[Saldo Estoque]]*Tabela3[[#This Row],[Valor]]","v":0}]
[465,null,null,null,null,{"$f":"SUMIFS(BDMovEstoque!C:C,BDMovEstoque!A:A,Tabela3[[#This Row],[Código]],BDMovEstoque!G:G,\"Entrada\")-SUMIFS(BDMovEstoque!C:C,BDMovEstoque!A:A,Tabela3[[#This Row],[Código]],BDMovEstoque!G:G,\"Saída\")","v":0},{"$f":"IF(Tabela3[[#This Row],[Saldo Estoque]]<Tabela3[[#This Row],[Estoque Mínimo]],\"Sim\",\"\")","v":""},{"$f":"Tabela3[[#This Row],[Saldo Estoque]]*Tabela3[[#This Row],[Valor]]","v":0}]
[466,null,null,null,null,{"$f":"SUMIFS(BDMovEstoque!C:C,BDMovEstoque!A:A,Tabela3[[#This Row],[Código]],BDMovEstoque!G:G,\"Entrada\")-SUMIFS(BDMovEstoque!C:C,BDMovEstoque!A:A,Tabela3[[#This Row],[Código]],BDMovEstoque!G:G,\"Saída\")","v":0},{"$f":"IF(Tabela3[[#This Row],[Saldo Estoque]]<Tabela3[[#This Row],[Estoque Mínimo]],\"Sim\",\"\")","v":""},{"$f":"Tabela3[[#This Row],[Saldo Estoque]]*Tabela3[[#This Row],[Valor]]","v":0}]
[467,null,null,null,null,{"$f":"SUMIFS(BDMovEstoque!C:C,BDMovEstoque!A:A,Tabela3[[#This Row],[Código]],BDMovEstoque!G:G,\"Entrada\")-SUMIFS(BDMovEstoque!C:C,BDMovEstoque!A:A,Tabela3[[#This Row],[Código]],BDMovEstoque!G:G,\"Saída\")","v":0},{"$f":"IF(Tabela3[[#This Row],[Saldo Estoque]]<Tabela3[[#This Row],[Estoque Mínimo]],\"Sim\",\"\")","v":""},{"$f":"Tabela3[[#This Row],[Saldo Estoque]]*Tabela3[[#This Row],[Valor]]","v":0}]
[468,null,null,null,null,{"$f":"SUMIFS(BDMovEstoque!C:C,BDMovEstoque!A:A,Tabela3[[#This Row],[Código]],BDMovEstoque!G:G,\"Entrada\")-SUMIFS(BDMovEstoque!C:C,BDMovEstoque!A:A,Tabela3[[#This Row],[Código]],BDMovEstoque!G:G,\"Saída\")","v":0},{"$f":"IF(Tabela3[[#This Row],[Saldo Estoque]]<Tabela3[[#This Row],[Estoque Mínimo]],\"Sim\",\"\")","v":""},{"$f":"Tabela3[[#This Row],[Saldo Estoque]]*Tabela3[[#This Row],[Valor]]","v":0}]
[469,null,null,null,null,{"$f":"SUMIFS(BDMovEstoque!C:C,BDMovEstoque!A:A,Tabela3[[#This Row],[Código]],BDMovEstoque!G:G,\"Entrada\")-SUMIFS(BDMovEstoque!C:C,BDMovEstoque!A:A,Tabela3[[#This Row],[Código]],BDMovEstoque!G:G,\"Saída\")","v":0},{"$f":"IF(Tabela3[[#This Row],[Saldo Estoque]]<Tabela3[[#This Row],[Estoque Mínimo]],\"Sim\",\"\")","v":""},{"$f":"Tabela3[[#This Row],[Saldo Estoque]]*Tabela3[[#This Row],[Valor]]","v":0}]
[470,null,null,null,null,{"$f":"SUMIFS(BDMovEstoque!C:C,BDMovEstoque!A:A,Tabela3[[#This Row],[Código]],BDMovEstoque!G:G,\"Entrada\")-SUMIFS(BDMovEstoque!C:C,BDMovEstoque!A:A,Tabela3[[#This Row],[Código]],BDMovEstoque!G:G,\"Saída\")","v":0},{"$f":"IF(Tabela3[[#This Row],[Saldo Estoque]]<Tabela3[[#This Row],[Estoque Mínimo]],\"Sim\",\"\")","v":""},{"$f":"Tabela3[[#This Row],[Saldo Estoque]]*Tabela3[[#This Row],[Valor]]","v":0}]
[471,null,null,null,null,{"$f":"SUMIFS(BDMovEstoque!C:C,BDMovEstoque!A:A,Tabela3[[#This Row],[Código]],BDMovEstoque!G:G,\"Entrada\")-SUMIFS(BDMovEstoque!C:C,BDMovEstoque!A:A,Tabela3[[#This Row],[Código]],BDMovEstoque!G:G,\"Saída\")","v":0},{"$f":"IF(Tabela3[[#This Row],[Saldo Estoque]]<Tabela3[[#This Row],[Estoque Mínimo]],\"Sim\",\"\")","v":""},{"$f":"Tabela3[[#This Row],[Saldo Estoque]]*Tabela3[[#This Row],[Valor]]","v":0}]
[472,null,null,null,null,{"$f":"SUMIFS(BDMovEstoque!C:C,BDMovEstoque!A:A,Tabela3[[#This Row],[Código]],BDMovEstoque!G:G,\"Entrada\")-SUMIFS(BDMovEstoque!C:C,BDMovEstoque!A:A,Tabela3[[#This Row],[Código]],BDMovEstoque!G:G,\"Saída\")","v":0},{"$f":"IF(Tabela3[[#This Row],[Saldo Estoque]]<Tabela3[[#This Row],[Estoque Mínimo]],\"Sim\",\"\")","v":""},{"$f":"Tabela3[[#This Row],[Saldo Estoque]]*Tabela3[[#This Row],[Valor]]","v":0}]
[473,null,null,null,null,{"$f":"SUMIFS(BDMovEstoque!C:C,BDMovEstoque!A:A,Tabela3[[#This Row],[Código]],BDMovEstoque!G:G,\"Entrada\")-SUMIFS(BDMovEstoque!C:C,BDMovEstoque!A:A,Tabela3[[#This Row],[Código]],BDMovEstoque!G:G,\"Saída\")","v":0},{"$f":"IF(Tabela3[[#This Row],[Saldo Estoque]]<Tabela3[[#This Row],[Estoque Mínimo]],\"Sim\",\"\")","v":""},{"$f":"Tabela3[[#This Row],[Saldo Estoque]]*Tabela3[[#This Row],[Valor]]","v":0}]
[474,null,null,null,null,{"$f":"SUMIFS(BDMovEstoque!C:C,BDMovEstoque!A:A,Tabela3[[#This Row],[Código]],BDMovEstoque!G:G,\"Entrada\")-SUMIFS(BDMovEstoque!C:C,BDMovEstoque!A:A,Tabela3[[#This Row],[Código]],BDMovEstoque!G:G,\"Saída\")","v":0},{"$f":"IF(Tabela3[[#This Row],[Saldo Estoque]]<Tabela3[[#This Row],[Estoque Mínimo]],\"Sim\",\"\")","v":""},{"$f":"Tabela3[[#This Row],[Saldo Estoque]]*Tabela3[[#This Row],[Valor]]","v":0}]
[475,null,null,null,null,{"$f":"SUMIFS(BDMovEstoque!C:C,BDMovEstoque!A:A,Tabela3[[#This Row],[Código]],BDMovEstoque!G:G,\"Entrada\")-SUMIFS(BDMovEstoque!C:C,BDMovEstoque!A:A,Tabela3[[#This Row],[Código]],BDMovEstoque!G:G,\"Saída\")","v":0},{"$f":"IF(Tabela3[[#This Row],[Saldo Estoque]]<Tabela3[[#This Row],[Estoque Mínimo]],\"Sim\",\"\")","v":""},{"$f":"Tabela3[[#This Row],[Saldo Estoque]]*Tabela3[[#This Row],[Valor]]","v":0}]
[476,null,null,null,null,{"$f":"SUMIFS(BDMovEstoque!C:C,BDMovEstoque!A:A,Tabela3[[#This Row],[Código]],BDMovEstoque!G:G,\"Entrada\")-SUMIFS(BDMovEstoque!C:C,BDMovEstoque!A:A,Tabela3[[#This Row],[Código]],BDMovEstoque!G:G,\"Saída\")","v":0},{"$f":"IF(Tabela3[[#This Row],[Saldo Estoque]]<Tabela3[[#This Row],[Estoque Mínimo]],\"Sim\",\"\")","v":""},{"$f":"Tabela3[[#This Row],[Saldo Estoque]]*Tabela3[[#This Row],[Valor]]","v":0}]
[477,null,null,null,null,{"$f":"SUMIFS(BDMovEstoque!C:C,BDMovEstoque!A:A,Tabela3[[#This Row],[Código]],BDMovEstoque!G:G,\"Entrada\")-SUMIFS(BDMovEstoque!C:C,BDMovEstoque!A:A,Tabela3[[#This Row],[Código]],BDMovEstoque!G:G,\"Saída\")","v":0},{"$f":"IF(Tabela3[[#This Row],[Saldo Estoque]]<Tabela3[[#This Row],[Estoque Mínimo]],\"Sim\",\"\")","v":""},{"$f":"Tabela3[[#This Row],[Saldo Estoque]]*Tabela3[[#This Row],[Valor]]","v":0}]
[478,null,null,null,null,{"$f":"SUMIFS(BDMovEstoque!C:C,BDMovEstoque!A:A,Tabela3[[#This Row],[Código]],BDMovEstoque!G:G,\"Entrada\")-SUMIFS(BDMovEstoque!C:C,BDMovEstoque!A:A,Tabela3[[#This Row],[Código]],BDMovEstoque!G:G,\"Saída\")","v":0},{"$f":"IF(Tabela3[[#This Row],[Saldo Estoque]]<Tabela3[[#This Row],[Estoque Mínimo]],\"Sim\",\"\")","v":""},{"$f":"Tabela3[[#This Row],[Saldo Estoque]]*Tabela3[[#This Row],[Valor]]","v":0}]
[479,null,null,null,null,{"$f":"SUMIFS(BDMovEstoque!C:C,BDMovEstoque!A:A,Tabela3[[#This Row],[Código]],BDMovEstoque!G:G,\"Entrada\")-SUMIFS(BDMovEstoque!C:C,BDMovEstoque!A:A,Tabela3[[#This Row],[Código]],BDMovEstoque!G:G,\"Saída\")","v":0},{"$f":"IF(Tabela3[[#This Row],[Saldo Estoque]]<Tabela3[[#This Row],[Estoque Mínimo]],\"Sim\",\"\")","v":""},{"$f":"Tabela3[[#This Row],[Saldo Estoque]]*Tabela3[[#This Row],[Valor]]","v":0}]
[480,null,null,null,null,{"$f":"SUMIFS(BDMovEstoque!C:C,BDMovEstoque!A:A,Tabela3[[#This Row],[Código]],BDMovEstoque!G:G,\"Entrada\")-SUMIFS(BDMovEstoque!C:C,BDMovEstoque!A:A,Tabela3[[#This Row],[Código]],BDMovEstoque!G:G,\"Saída\")","v":0},{"$f":"IF(Tabela3[[#This Row],[Saldo Estoque]]<Tabela3[[#This Row],[Estoque Mínimo]],\"Sim\",\"\")","v":""},{"$f":"Tabela3[[#This Row],[Saldo Estoque]]*Tabela3[[#This Row],[Valor]]","v":0}]
[481,null,null,null,null,{"$f":"SUMIFS(BDMovEstoque!C:C,BDMovEstoque!A:A,Tabela3[[#This Row],[Código]],BDMovEstoque!G:G,\"Entrada\")-SUMIFS(BDMovEstoque!C:C,BDMovEstoque!A:A,Tabela3[[#This Row],[Código]],BDMovEstoque!G:G,\"Saída\")","v":0},{"$f":"IF(Tabela3[[#This Row],[Saldo Estoque]]<Tabela3[[#This Row],[Estoque Mínimo]],\"Sim\",\"\")","v":""},{"$f":"Tabela3[[#This Row],[Saldo Estoque]]*Tabela3[[#This Row],[Valor]]","v":0}]
[482,null,null,null,null,{"$f":"SUMIFS(BDMovEstoque!C:C,BDMovEstoque!A:A,Tabela3[[#This Row],[Código]],BDMovEstoque!G:G,\"Entrada\")-SUMIFS(BDMovEstoque!C:C,BDMovEstoque!A:A,Tabela3[[#This Row],[Código]],BDMovEstoque!G:G,\"Saída\")","v":0},{"$f":"IF(Tabela3[[#This Row],[Saldo Estoque]]<Tabela3[[#This Row],[Estoque Mínimo]],\"Sim\",\"\")","v":""},{"$f":"Tabela3[[#This Row],[Saldo Estoque]]*Tabela3[[#This Row],[Valor]]","v":0}]
[483,null,null,null,null,{"$f":"SUMIFS(BDMovEstoque!C:C,BDMovEstoque!A:A,Tabela3[[#This Row],[Código]],BDMovEstoque!G:G,\"Entrada\")-SUMIFS(BDMovEstoque!C:C,BDMovEstoque!A:A,Tabela3[[#This Row],[Código]],BDMovEstoque!G:G,\"Saída\")","v":0},{"$f":"IF(Tabela3[[#This Row],[Saldo Estoque]]<Tabela3[[#This Row],[Estoque Mínimo]],\"Sim\",\"\")","v":""},{"$f":"Tabela3[[#This Row],[Saldo Estoque]]*Tabela3[[#This Row],[Valor]]","v":0}]
[484,null,null,null,null,{"$f":"SUMIFS(BDMovEstoque!C:C,BDMovEstoque!A:A,Tabela3[[#This Row],[Código]],BDMovEstoque!G:G,\"Entrada\")-SUMIFS(BDMovEstoque!C:C,BDMovEstoque!A:A,Tabela3[[#This Row],[Código]],BDMovEstoque!G:G,\"Saída\")","v":0},{"$f":"IF(Tabela3[[#This Row],[Saldo Estoque]]<Tabela3[[#This Row],[Estoque Mínimo]],\"Sim\",\"\")","v":""},{"$f":"Tabela3[[#This Row],[Saldo Estoque]]*Tabela3[[#This Row],[Valor]]","v":0}]
[485,null,null,null,null,{"$f":"SUMIFS(BDMovEstoque!C:C,BDMovEstoque!A:A,Tabela3[[#This Row],[Código]],BDMovEstoque!G:G,\"Entrada\")-SUMIFS(BDMovEstoque!C:C,BDMovEstoque!A:A,Tabela3[[#This Row],[Código]],BDMovEstoque!G:G,\"Saída\")","v":0},{"$f":"IF(Tabela3[[#This Row],[Saldo Estoque]]<Tabela3[[#This Row],[Estoque Mínimo]],\"Sim\",\"\")","v":""},{"$f":"Tabela3[[#This Row],[Saldo Estoque]]*Tabela3[[#This Row],[Valor]]","v":0}]
[486,null,null,null,null,{"$f":"SUMIFS(BDMovEstoque!C:C,BDMovEstoque!A:A,Tabela3[[#This Row],[Código]],BDMovEstoque!G:G,\"Entrada\")-SUMIFS(BDMovEstoque!C:C,BDMovEstoque!A:A,Tabela3[[#This Row],[Código]],BDMovEstoque!G:G,\"Saída\")","v":0},{"$f":"IF(Tabela3[[#This Row],[Saldo Estoque]]<Tabela3[[#This Row],[Estoque Mínimo]],\"Sim\",\"\")","v":""},{"$f":"Tabela3[[#This Row],[Saldo Estoque]]*Tabela3[[#This Row],[Valor]]","v":0}]
[487,null,null,null,null,{"$f":"SUMIFS(BDMovEstoque!C:C,BDMovEstoque!A:A,Tabela3[[#This Row],[Código]],BDMovEstoque!G:G,\"Entrada\")-SUMIFS(BDMovEstoque!C:C,BDMovEstoque!A:A,Tabela3[[#This Row],[Código]],BDMovEstoque!G:G,\"Saída\")","v":0},{"$f":"IF(Tabela3[[#This Row],[Saldo Estoque]]<Tabela3[[#This Row],[Estoque Mínimo]],\"Sim\",\"\")","v":""},{"$f":"Tabela3[[#This Row],[Saldo Estoque]]*Tabela3[[#This Row],[Valor]]","v":0}]
[488,null,null,null,null,{"$f":"SUMIFS(BDMovEstoque!C:C,BDMovEstoque!A:A,Tabela3[[#This Row],[Código]],BDMovEstoque!G:G,\"Entrada\")-SUMIFS(BDMovEstoque!C:C,BDMovEstoque!A:A,Tabela3[[#This Row],[Código]],BDMovEstoque!G:G,\"Saída\")","v":0},{"$f":"IF(Tabela3[[#This Row],[Saldo Estoque]]<Tabela3[[#This Row],[Estoque Mínimo]],\"Sim\",\"\")","v":""},{"$f":"Tabela3[[#This Row],[Saldo Estoque]]*Tabela3[[#This Row],[Valor]]","v":0}]
[489,null,null,null,null,{"$f":"SUMIFS(BDMovEstoque!C:C,BDMovEstoque!A:A,Tabela3[[#This Row],[Código]],BDMovEstoque!G:G,\"Entrada\")-SUMIFS(BDMovEstoque!C:C,BDMovEstoque!A:A,Tabela3[[#This Row],[Código]],BDMovEstoque!G:G,\"Saída\")","v":0},{"$f":"IF(Tabela3[[#This Row],[Saldo Estoque]]<Tabela3[[#This Row],[Estoque Mínimo]],\"Sim\",\"\")","v":""},{"$f":"Tabela3[[#This Row],[Saldo Estoque]]*Tabela3[[#This Row],[Valor]]","v":0}]
[490,null,null,null,null,{"$f":"SUMIFS(BDMovEstoque!C:C,BDMovEstoque!A:A,Tabela3[[#This Row],[Código]],BDMovEstoque!G:G,\"Entrada\")-SUMIFS(BDMovEstoque!C:C,BDMovEstoque!A:A,Tabela3[[#This Row],[Código]],BDMovEstoque!G:G,\"Saída\")","v":0},{"$f":"IF(Tabela3[[#This Row],[Saldo Estoque]]<Tabela3[[#This Row],[Estoque Mínimo]],\"Sim\",\"\")","v":""},{"$f":"Tabela3[[#This Row],[Saldo Estoque]]*Tabela3[[#This Row],[Valor]]","v":0}]
[491,null,null,null,null,{"$f":"SUMIFS(BDMovEstoque!C:C,BDMovEstoque!A:A,Tabela3[[#This Row],[Código]],BDMovEstoque!G:G,\"Entrada\")-SUMIFS(BDMovEstoque!C:C,BDMovEstoque!A:A,Tabela3[[#This Row],[Código]],BDMovEstoque!G:G,\"Saída\")","v":0},{"$f":"IF(Tabela3[[#This Row],[Saldo Estoque]]<Tabela3[[#This Row],[Estoque Mínimo]],\"Sim\",\"\")","v":""},{"$f":"Tabela3[[#This Row],[Saldo Estoque]]*Tabela3[[#This Row],[Valor]]","v":0}]
[492,null,null,null,null,{"$f":"SUMIFS(BDMovEstoque!C:C,BDMovEstoque!A:A,Tabela3[[#This Row],[Código]],BDMovEstoque!G:G,\"Entrada\")-SUMIFS(BDMovEstoque!C:C,BDMovEstoque!A:A,Tabela3[[#This Row],[Código]],BDMovEstoque!G:G,\"Saída\")","v":0},{"$f":"IF(Tabela3[[#This Row],[Saldo Estoque]]<Tabela3[[#This Row],[Estoque Mínimo]],\"Sim\",\"\")","v":""},{"$f":"Tabela3[[#This Row],[Saldo Estoque]]*Tabela3[[#This Row],[Valor]]","v":0}]
[493,null,null,null,null,{"$f":"SUMIFS(BDMovEstoque!C:C,BDMovEstoque!A:A,Tabela3[[#This Row],[Código]],BDMovEstoque!G:G,\"Entrada\")-SUMIFS(BDMovEstoque!C:C,BDMovEstoque!A:A,Tabela3[[#This Row],[Código]],BDMovEstoque!G:G,\"Saída\")","v":0},{"$f":"IF(Tabela3[[#This Row],[Saldo Estoque]]<Tabela3[[#This Row],[Estoque Mínimo]],\"Sim\",\"\")","v":""},{"$f":"Tabela3[[#This Row],[Saldo Estoque]]*Tabela3[[#This Row],[Valor]]","v":0}]
[494,null,null,null,null,{"$f":"SUMIFS(BDMovEstoque!C:C,BDMovEstoque!A:A,Tabela3[[#This Row],[Código]],BDMovEstoque!G:G,\"Entrada\")-SUMIFS(BDMovEstoque!C:C,BDMovEstoque!A:A,Tabela3[[#This Row],[Código]],BDMovEstoque!G:G,\"Saída\")","v":0},{"$f":"IF(Tabela3[[#This Row],[Saldo Estoque]]<Tabela3[[#This Row],[Estoque Mínimo]],\"Sim\",\"\")","v":""},{"$f":"Tabela3[[#This Row],[Saldo Estoque]]*Tabela3[[#This Row],[Valor]]","v":0}]
[495,null,null,null,null,{"$f":"SUMIFS(BDMovEstoque!C:C,BDMovEstoque!A:A,Tabela3[[#This Row],[Código]],BDMovEstoque!G:G,\"Entrada\")-SUMIFS(BDMovEstoque!C:C,BDMovEstoque!A:A,Tabela3[[#This Row],[Código]],BDMovEstoque!G:G,\"Saída\")","v":0},{"$f":"IF(Tabela3[[#This Row],[Saldo Estoque]]<Tabela3[[#This Row],[Estoque Mínimo]],\"Sim\",\"\")","v":""},{"$f":"Tabela3[[#This Row],[Saldo Estoque]]*Tabela3[[#This Row],[Valor]]","v":0}]
[496,null,null,null,null,{"$f":"SUMIFS(BDMovEstoque!C:C,BDMovEstoque!A:A,Tabela3[[#This Row],[Código]],BDMovEstoque!G:G,\"Entrada\")-SUMIFS(BDMovEstoque!C:C,BDMovEstoque!A:A,Tabela3[[#This Row],[Código]],BDMovEstoque!G:G,\"Saída\")","v":0},{"$f":"IF(Tabela3[[#This Row],[Saldo Estoque]]<Tabela3[[#This Row],[Estoque Mínimo]],\"Sim\",\"\")","v":""},{"$f":"Tabela3[[#This Row],[Saldo Estoque]]*Tabela3[[#This Row],[Valor]]","v":0}]
[497,null,null,null,null,{"$f":"SUMIFS(BDMovEstoque!C:C,BDMovEstoque!A:A,Tabela3[[#This Row],[Código]],BDMovEstoque!G:G,\"Entrada\")-SUMIFS(BDMovEstoque!C:C,BDMovEstoque!A:A,Tabela3[[#This Row],[Código]],BDMovEstoque!G:G,\"Saída\")","v":0},{"$f":"IF(Tabela3[[#This Row],[Saldo Estoque]]<Tabela3[[#This Row],[Estoque Mínimo]],\"Sim\",\"\")","v":""},{"$f":"Tabela3[[#This Row],[Saldo Estoque]]*Tabela3[[#This Row],[Valor]]","v":0}]
[498,null,null,null,null,{"$f":"SUMIFS(BDMovEstoque!C:C,BDMovEstoque!A:A,Tabela3[[#This Row],[Código]],BDMovEstoque!G:G,\"Entrada\")-SUMIFS(BDMovEstoque!C:C,BDMovEstoque!A:A,Tabela3[[#This Row],[Código]],BDMovEstoque!G:G,\"Saída\")","v":0},{"$f":"IF(Tabela3[[#This Row],[Saldo Estoque]]<Tabela3[[#This Row],[Estoque Mínimo]],\"Sim\",\"\")","v":""},{"$f":"Tabela3[[#This Row],[Saldo Estoque]]*Tabela3[[#This Row],[Valor]]","v":0}]
[499,null,null,null,null,{"$f":"SUMIFS(BDMovEstoque!C:C,BDMovEstoque!A:A,Tabela3[[#This Row],[Código]],BDMovEstoque!G:G,\"Entrada\")-SUMIFS(BDMovEstoque!C:C,BDMovEstoque!A:A,Tabela3[[#This Row],[Código]],BDMovEstoque!G:G,\"Saída\")","v":0},{"$f":"IF(Tabela3[[#This Row],[Saldo Estoque]]<Tabela3[[#This Row],[Estoque Mínimo]],\"Sim\",\"\")","v":""},{"$f":"Tabela3[[#This Row],[Saldo Estoque]]*Tabela3[[#This Row],[Valor]]","v":0}]
[500,null,null,null,null,{"$f":"SUMIFS(BDMovEstoque!C:C,BDMovEstoque!A:A,Tabela3[[#This Row],[Código]],BDMovEstoque!G:G,\"Entrada\")-SUMIFS(BDMovEstoque!C:C,BDMovEstoque!A:A,Tabela3[[#This Row],[Código]],BDMovEstoque!G:G,\"Saída\")","v":0},{"$f":"IF(Tabela3[[#This Row],[Saldo Estoque]]<Tabela3[[#This Row],[Estoque Mínimo]],\"Sim\",\"\")","v":""},{"$f":"Tabela3[[#This Row],[Saldo Estoque]]*Tabela3[[#This Row],[Valor]]","v":0}]

{"sheet":"BDVendas","index":8,"n_rows":2,"n_cols":4,"rows_kept":2,"cut":false,"hidden":false,"merged":[]}
["Código Cliente","Cliente","Total","Data"]
[1,"Cliente A",50,"2021-11-08"]

{"sheet":"BDMovEstoque","index":9,"n_rows":5,"n_cols":7,"rows_kept":5,"cut":false,"hidden":false,"merged":[]}
["Código Produto","Descrição","Quantidade","Valor","Data Entrada","Data Saída","Tipo"]
[2,"Produto 2",15,10,"2021-11-08",null,"Entrada"]
[2,"Produto 2",5,10,null,"2021-11-08","Saída"]
[1,"Produto 1",100,50,"2021-11-08",null,"Entrada"]
[1,"Produto 1",20,50,null,"2021-11-08","Saída"]

{"sheet":"Tab","index":10,"n_rows":9,"n_cols":26,"rows_kept":9,"cut":false,"hidden":false,"merged":[]}
["Estoque Crítico","Sim",null,null,"Rótulos de Linha","Soma de Saldo Estoque",null,"Rótulos de Linha","Soma de Saldo Estoque R$",null,null,null,null,null,null,null,null,null,null,null,"Tipo","Saída",null,null,"Tipo","Entrada"]
[null,null,null,null,"Produto 1",80,null,"Produto 1",4000,null,null,"Tipo","Entrada"]
["Rótulos de Linha","Soma de Saldo Estoque",null,null,"Produto 2",10,null,"Produto 2",100,null,null,null,null,null,null,null,null,null,null,null,"Rótulos de Linha","Soma de Quantidade",null,null,"Rótulos de Linha","Soma de Quantidade"]
["Produto 2",10,null,null,"Produto 5",0,null,"Produto 5",0,null,null,"Rótulos de Linha","Descrição","Soma de Quantidade",null,"Compra Recente","Descrição","Qtde.",null,null,"Produto 1",20,null,null,"Produto 1",100]
["Produto 3",0,null,null,"Produto 4",0,null,"Produto 4",0,null,null,"08/nov","Produto 2",15,null,{"$f":"L5","v":"08/nov"},{"$f":"M5","v":"Produto 2"},{"$f":"N5","v":15},null,null,"Produto 2",5,null,null,"Produto 2",15]
["Produto 4",0,null,null,"Produto 6",0,null,"Produto 6",0,null,null,"08/nov","Produto 1",100,null,{"$f":"L6","v":"08/nov"},{"$f":"M6","v":"Produto 1"},{"$f":"N6","v":100},null,null,"Total Geral",25,null,null,"Total Geral",115]
["Produto 5",0,null,null,"(vazio)",0,null,"(vazio)",0,null,null,null,null,null,null,0,0,0]
["Produto 6",0,null,null,"Produto 3",0,null,"Produto 3",0,null,null,null,null,null,null,0,0,0]
["Total Geral",10,null,null,"Total Geral",90,null,"Total Geral",4100,null,null,null,null,null,null,0,0,0]